Workbook

Sheet AER CF (hidden)
B1: AER CONDITIONAL FORMATTING
B4: CONDITIONAL FORMATTING MAP
F5: =INDEX(dms_CF_3.6.1, MATCH(dms_TradingName,dms_CF_TradingName))="Y" | G5: =INDEX(dms_CF_3.6.5, MATCH(dms_TradingName,dms_CF_TradingName))="Y" | H5: =INDEX(dms_CF_3.6.6, MATCH(dms_TradingName,dms_CF_TradingName))="Y" | I5: =INDEX(dms_CF_3.6.7.1, MATCH(dms_TradingName,dms_CF_TradingName))="Y" | J5: =INDEX(dms_CF_3.6.7.2, MATCH(dms_TradingName,dms_CF_TradingName))="Y" | K5: =INDEX(dms_CF_3.6.7.3, MATCH(dms_TradingName,dms_CF_TradingName))="Y" | L5: =INDEX(dms_CF_3.6.7.4, MATCH(dms_TradingName,dms_CF_TradingName))="Y" | M5: =INDEX(dms_CF_3.6.8, MATCH(dms_TradingName,dms_CF_TradingName))="Y" | N5: =INDEX(dms_CF_4.1, MATCH(dms_TradingName,dms_CF_TradingName))="Y" | O5: =INDEX(dms_CF_6.6.1, MATCH(dms_TradingName,dms_CF_TradingName))="Y" | P5: =INDEX(dms_CF_6.8, MATCH(dms_TradingName,dms_CF_TradingName))="Y" | Q5: =INDEX(dms_CF_7.12, MATCH(dms_TradingName,dms_CF_TradingName))="Y" | R5: =INDEX(dms_CF_8.1_A, MATCH(dms_TradingName,dms_CF_TradingName))="Y" | S5: =INDEX(dms_CF_8.1_B, MATCH(dms_TradingName,dms_CF_TradingName))="Y" | T5: =INDEX(dms_CF_8.1_Neg, MATCH(dms_TradingName,dms_CF_TradingName))="Y" | U5: =INDEX(dms_CF_4.4.1_Neg, MATCH(dms_TradingName,dms_CF_TradingName))="Y"
B6: dms_CF_TradingName | C6: JurisdictionList | D6: Sector | E6: Segment | F6: dms_CF_3.6.1 | G6: dms_CF_3.6.5 | H6: dms_CF_3.6.6 | I6: dms_CF_3.6.7.1 | J6: dms_CF_3.6.7.2 | K6: dms_CF_3.6.7.3 | L6: dms_CF_3.6.7.4 | M6: dms_CF_3.6.8 | N6: dms_CF_4.1 | O6: dms_CF_6.6.1 | P6: dms_CF_6.8 | Q6: dms_CF_7.12 | R6: dms_CF_8.1_A | S6: dms_CF_8.1_B | T6: dms_CF_8.1_Neg | U6: dms_CF_4.4.1 | V6: dms_CF_MAIFI_flag | W6: Spare1 | X6: Spare2
B7: AusNet (D) | C7: Vic | D7: Electricity | E7: Distribution | G7: N | I7: N | J7: N | K7: N | L7: N | M7: N | N7: N | O7: N | P7: Y | Q7: N | R7: N | S7: N | T7: Y | U7: N | V7: N | W7: N | X7: N
B8: CitiPower | C8: Vic | D8: Electricity | E8: Distribution | G8: N | I8: N | J8: N | K8: N | L8: N | M8: N | N8: N | O8: N | P8: Y | Q8: N | R8: N | S8: N | T8: Y | U8: N | V8: N | W8: N | X8: N
B9: Jemena Electricity | C9: Vic | D9: Electricity | E9: Distribution | G9: N | I9: N | J9: N | K9: N | L9: N | M9: N | N9: N | O9: N | P9: Y | Q9: N | R9: N | S9: N | T9: Y | U9: N | V9: N | W9: N | X9: N
B10: Powercor Australia | C10: Vic | D10: Electricity | E10: Distribution | G10: N | I10: N | J10: N | K10: N | L10: N | M10: N | N10: N | O10: N | P10: Y | Q10: N | R10: N | S10: N | T10: Y | U10: N | V10: N | W10: N | X10: N
B11: United Energy | C11: Vic | D11: Electricity | E11: Distribution | G11: N | I11: N | J11: N | K11: N | L11: N | M11: N | N11: N | O11: N | P11: Y | Q11: N | R11: N | S11: N | T11: Y | U11: N | V11: N | W11: N | X11: N
B14: Confidential
B15: Amended
B17: Worksheet 6.2 STPIS reliability
B18: Formula | F18: Applied to:
B20: =INDEX(dms_CBD_flag,MATCH(dms_TradingName,dms_TradingName_List))="NO" | F20: $D$11,$D$17,$D$23,$D$33,$D$39,$D$45,$D$55,$D$61,$D$67,$D$77,$D$83,$D$89
B21: =INDEX(dms_Urban_flag,MATCH(dms_TradingName,dms_TradingName_List))="NO" | F21: $D$12,$D$18,$D$24,$D$56,$D$62,$D$78,$D$68,$D$84
B22: =INDEX(dms_ShortRural_flag,MATCH(dms_TradingName,dms_TradingName_List))="NO" | F22: $D$13,$D$19,$D$25,$D$57,$D$63,$D$69,$D$79,$D$85
B23: =INDEX(dms_LongRural_flag,MATCH(dms_TradingName,dms_TradingName_List))="NO" | F23: $D$14,$D$20,$D$26,$D$58,$D$64,$D$65,$D$70,$D$71,$D$80,$D$86
B24: =INDEX(dms_FeederType_5_flag,MATCH(dms_TradingName,dms_TradingName_List))="NO" | F24: $D$87,$D$81,$D$71,$D$65,$D$59,$D$49,$D$43,$D$37,$D$21,$D$15
B25: =dms_MAIFI_Flag="No" | F25: $D$55:$D$72
B28: Business & other details
B29: =(INDEX(dms_Model_Span,MATCH(dms_Model,dms_Model_List))>1)
B30: =(INDEX(dms_Model_Span,MATCH(dms_Model,dms_Model_List))=1)
B33: STYLES IN USE
C34: dms_1
C35: dms_2
C36: dms_3
C37: dms_4
C38: dms_5
C39: dms_NUM
C40: dms_NUM%
C41: dms_Row_Locked
C42: dms_Row1
C43: dms_Row2
C44: dms_T1
C45: dms_T2
C46: dms_BH
C47: dms_BY1
C48: dms_BY2
C49: dms_GH
C50: dms_GY1
C51: dms_GY2
C110: 0
C111: =IFERROR(IF(dms_Model="ARR",(MAX(0,dms_0608_LastRow-dms_0608_OffsetRows)),"not an ARR"),"0") -> not an ARR

Sheet AER NRs (hidden)
B1: AER NAMED RANGES
B3: DROP DOWN SELECTORS USED IN WORKBOOKS
B5: COVER SHEET | C5: dms_DataQuality_List | D5: dms_Confid_status_List
C6: -- select -- | D6: -- select --
C7: Actual | D7: Public
C8: Estimate | D8: Confidential
C9: Consolidated
C12: For all files either AER or business needs to be able to specify the type of submission | D12: For PTRM & RFM templates we must provide a choice in case they change their form of control - otherwise it is drawn from the business specific lookup table above.
C13: dms_SourceList | D13: dms_FormControl_Choices
C14: -- select -- | D14: Revenue cap
C15: After appeal | D15: Revenue yield
C16: Draft decision | D16: Weighted average price cap
C17: Final decision
C18: PTRM update 1
C19: PTRM update 2
C20: PTRM update 3
C21: PTRM update 4
C22: PTRM update 5
C23: PTRM update 6
C24: PTRM update 7
C25: Regulatory proposal
C26: Reporting
C27: Revised regulatory proposal
L30: This is used to create an image to insert on 6.3 STPIS sheet - not for dropdown lists.
B31: CA & RESET RINS DNSP | C31: dms_DNSP_020301_SubstationType | D31: dms_DNSP_020301_ProjectType | E31: dms_DNSP_020301_ProjectTrigger | F31: dms_DNSP_020302_ProjectType | G31: dms_DNSP_020302_ProjectTrigger | H31: dms_STPIS_Exclusion_List | I31: dms_Reason_Interruption | J31: dms_Reason_Interruption_Detailed | L31: Reason for interruption
C32: Subtransmission substation | D32: New substation establishment | E32: Demand growth | F32: New line on new route - single circuit | G32: Demand growth | H32: Weather | I32: Animal | J32: Animal impact | L32: Animal | M32: Animal impact
C33: Zone substation | D33: Substation upgrade - capacity | E33: Voltage issues | F33: New line on new route - dual circuit | G33: Voltage issues | H33: Equipment failure | I33: Asset failure | J33: Animal nesting/burrowing, etc and other | M33: Animal nesting/burrowing, etc and other
C34: Switching station | D34: Substation upgrade - voltage | E34: Reactive power issue | F34: New line on new route - other | G34: Reactive power issue | H34: Operational error | I34: Other | J34: Other | M34: Other
C35: Other | D35: Other | E35: Fault level issues | F35: Line rebuild over existing route - single circuit | G35: Fault level issues | H35: Vegetation | I35: Overloads | J35: LV | L35: Asset failure | M35: LV
E36: Safety | F36: Line rebuild over existing route - dual circuit | G36: Net market benefit | H36: Animals | I36: Planned | J36: Distribution substation | M36: Distribution substation
E37: Environment | F37: Reconductor - Single circuit | G37: Safety | H37: Third party impacts | I37: Network business | J37: HV | M37: HV
E38: Other | F38: Reconductor - Dual circuit | G38: Environment | H38: Transmission failure | I38: Third party | J38: Zone substation | M38: Zone substation
F39: Reconductor - Other | G39: Other | H39: Load shedding | I39: Unknown | J39: Subtransmission | M39: Subtransmission
F40: Line upgrade - raising/retensoring | H40: Inter-distributor connection failure | I40: Vegetation | J40: insert description of 'other' | L40: Other | M40: insert description of 'other'
F41: Line upgrade - voltage upgrade | H41: Other | I41: Weather | J41: Network error | L41: Overloads
F42: Line upgrade - capacity | I42: 2 - STPIS Exclusion (3.3)(a) | J42: Switching and protection error | L42: Planned
F43: String spare circuit | I43: 3 - STPIS Exclusion (3.3)(a) | J43: Fire | L43: Network business | M43: Network error
F44: Other | I44: 4 - STPIS Exclusion (3.3)(a) | J44: Other | M44: Switching and protection error
I45: 5 - STPIS Exclusion (3.3)(a) | J45: Dig-in | L45: Third party | M45: Fire
I46: 6 - STPIS Exclusion (3.3)(a) | J46: Unauthorised access | M46: Other
I47: 7 - STPIS Exclusion (3.3)(a) | J47: Vehicle impact | M47: Dig-in
J48: Unknown | M48: Unauthorised access
J49: Blow-in/Fall-in - NSP responsibility | M49: Vehicle impact
J50: Grow-in - NSP responsibility | L50: Unknown | M50: Unknown
J51: Blow-in/Fall-in - Other responsible party | L51: Vegetation | M51: Blow-in/Fall-in - NSP responsibility
J52: Grow-in - Other responsible party | M52: Grow-in - NSP responsibility
M53: Blow-in/Fall-in - Other responsible party
M54: Grow-in - Other responsible party
L55: Weather
L56: 2 - STPIS Exclusion (3.3)(a)
L57: 3 - STPIS Exclusion (3.3)(a)
L58: 4 - STPIS Exclusion (3.3)(a)
L59: 5 - STPIS Exclusion (3.3)(a)
L60: 6 - STPIS Exclusion (3.3)(a)
L61: 7 - STPIS Exclusion (3.3)(a)
B64: CA & RESET RINS TNSP | C64: dms_TNSP_0203_SubstationType | D64: dms_TNSP_020301_ProjectType | E64: dms_TNSP_020301_ProjectTrigger | F64: dms_TNSP_020302_ProjectType | G64: dms_TNSP_0203_ProjectTrigger
C65: Terminal station | D65: New substation establishment | E65: Demand growth | F65: New line on new route - single circuit | G65: Demand growth
C66: Switching station | D66: Capacity upgrade | E66: Voltage issues | F66: New line on new route - dual circuit | G66: Voltage issues
C67: Transmission substation | D67: Voltage upgrade | E67: Reactive power issue | F67: New line on new route - other | G67: Reactive power issue
C68: Other | D68: Other | E68: Fault level issues | F68: Line rebuild over existing route - single circuit | G68: Fault level issues
E69: Net market benefit | F69: Line rebuild over existing route - dual circuit | G69: Net market benefit
E70: Safety | F70: Reconductor - Single circuit | G70: Safety
E71: Environment | F71: Reconductor - Dual circuit | G71: Environment
E72: Other | F72: Reconductor - Other | G72: Other
F73: Line upgrade - raising/retensoring
F74: Line upgrade - voltage upgrade
F75: Line upgrade - capacity
F76: String spare circuit
F77: Other
B81: NAMED RANGES USED IN ETL PROCESS
B83: CA & RESET RINS DNSP ONLY | C83: dms_020303_01_UOM | D83: dms_020501_01_UOM | E83: dms_020501_02_UOM | F83: dms_020501_03_UOM | G83: dms_020501_04_UOM | H83: dms_020701_01_UOM | I83: dms_020701_02_UOM | J83: dms_020701_01_Rows | K83: dms_040102_01_UOM | L83: dms_040102_04_UOM
C84: Circuit line length in km | D84: 0's | E84: 0's | F84: 0's | G84: 0's | H84: km | I84: km | J84: Route line length within zone | K84: 0's | L84: days
C85: Circuit line length in km | D85: 0's | E85: 0's | F85: 0's | G85: 0's | H85: 0's | I85: 0's | J85: Number of maintenance spans | K85: 0's | L85: 0's
C86: Circuit line length in km | D86: MVA added | E86: MVA added | F86: MVA added | G86: MVA added | H86: km | I86: km | J86: Total length of maintenance spans | K86: 0's | L86: $0s
C87: Circuit line length in km | D87: 0's | E87: 0's | F87: 0's | G87: 0's | H87: km | I87: km | J87: Length of vegetation corridors | K87: $0s | L87: 0's
C88: Number | D88: total spend $0s | E88: total spend $0s | F88: total spend $0s | G88: total spend $0s | H88: 0's | I88: 0's | J88: Average number of trees per maintenance span
C89: Number | D89: net circuit km added | E89: net circuit km added | F89: net circuit km added | G89: net circuit km added | H89: years | I89: years | J89: Average frequency of cutting cycle
C90: Number | D90: total spend $0s | E90: total spend $0s | F90: total spend $0s | G90: total spend $0s
D91: net circuit km added | E91: net circuit km added | F91: net circuit km added | G91: net circuit km added
D92: total spend $0s | E92: total spend $0s | F92: total spend $0s | G92: total spend $0s
D93: 0's | F93: $0s
D94: 0's
D95: 0's
D96: $0s
B99: CA & RESET RINS TNSP ONLY | C99: dms_020701_01_UOM
C100: km
C101: 0's
C102: km
C103: 0's
C104: km
C105: metres
C106: years
B109: CA & RESET RINS DNSP & TNSP | C109: dms_020603_01_UOM
C110: 0's
C111: 0's
C112: 0's
C113: 0's
C114: (per cent)
B117: EB & RESET RINS DNSP ONLY | C117: dms_030601_01_UOM | D117: dms_030601_02_UOM | E117: dms_030701_01_UOM | F117: dms_030702_01_UOM | G117: dms_030703_01_UOM
C118: minutes/customer | D118: minutes/customer | E118: Customer / km | F118: % | G118: km
C119: minutes/customer | D119: minutes/customer | E119: MWh/customer | F119: Number of spans
C120: interruptions/customer | D120: interruptions/customer | E120: kVA / customer | F120: Number of spans
C121: interruptions/customer | D121: interruptions/customer | F121: Number of spans
F122: Number of spans
F123: Years
F124: Years
F125: Trees
F126: Trees
F127: Defects
F128: Defects
F129: Spans
F130: km
F131: Spans
C133: WHEN INSERTING COVER SHEET INTO A TNSP FILE - APPLY THESE NAMED RANGES
B134: EB & RESET RINS TNSP ONLY | C134: dms_030601_01_UOM | E134: dms_030701_01_UOM | F134: dms_030702_01_UOM
C135: % | E135: Number of spans | F135: km
C136: number | E136: Years | F136: %
C137: number | E137: Trees | F137: km
C138: % | E138: Defects | F138: number
C139: number | E139: Number of spans
C140: number | E140: km
C141: % | E141: km
C142: number | E142: Number of spans
C143: number
C144: %
C145: number
C146: %
C147: number
C148: %
C149: number
B151: EB & RESET RINS DNSP & TNSP | C151: dms_EB_RAB_PIT
C152: Beginning of year
C153: End of year
C154: End of year
C155: End of year
C156: End of year
C157: End of year
B159: ARR DNSP ONLY | C159: dms_030605_UOM | D159: dms_03060703_UOM | E159: Spare | F159: Spare
C160: number | D160: number
C161: number | D161: number
C162: number | D162: number
C163: number | D163: number
C164: number | D164: (per cent)
C165: number
C166: number
C167: number
C168: number
C169: number
C170: number
C171: number
C172: (per cent)
C173: (per cent)
B175: RFM | C175: dms_Beg | D175: dms_Mid | E175: dms_End
C176: Beginning of year | D176: Mid year | E176: End of Year
B178: PTRM | C178: dms_PTRM_RAB_PIT | D178: dms_PTRM_TAB_PIT | E178: DMS_Xfactor
C179: Beginning of year | D179: Beginning of year | E179: x factors
C180: End of year | D180: End of year
C181: End of year | D181: End of year
C182: End of year | D182: End of year
C183: End of year
B186: STPIS & MIC NAMED RANGES
B188: These "row descriptions" are the column headings in the various templates but become row descriptions in the ETL process
B190: Table 6.3 sustained interruptions - row descriptions | C190: dms_060301_CustNo_Affected_Row | D190: dms_060301_Avg_Duration_Sustained_Int_Row | E190: dms_060301_Effect_unplanned_SAIDI_Row | F190: dms_060301_Effect_unplanned_SAIFI_Row
C191: Number of customers affected by the interruption | D191: Average duration of sustained customer interruption | E191: Effect on unplanned SAIDI | F191: Effect on unplanned SAIFI
B194: Table 6.1 telephone answering - row descriptions and start date | C194: dms_060101_Rows | D194: dms_060102_Rows | E194: dms_060101_StartDateTxt
C195: Total number of calls (after removing excluded events) | D195: Number of calls answered within 30 seconds (after excluding excluded events) | E195: =dms_060701_StartDateTxt -> 1-Jul-2006
B198: Table 6.8.1 - row descriptions | C198: dms_060801_01_Rows | D198: dms_060801_02_Rows | E198: dms_060801_03_Rows | F198: dms_060801_04_Rows
C199: Number of interruptions | D199: Duration of interruptions | E199: Total unplanned minutes off supply | F199: Effect on unplanned MAIFI
B202: Table 7.9.4 - market impact component - row descriptions | C202: dms_070904_01_Rows | D202: without exclusions | E202: with exclusions
B205: These headings (Lists) are determined from the INDEX/MATCH function on the NSP selected on the Business & other details sheet
B207: Table 6.7.1 - daily performance data - unplanned - MAIFI -- row descriptions and header named range values | C207: dms_060701_Feeder_Header_Lvl4 | D207: =INDEX(dms_FeederName_1,MATCH(dms_TradingName,dms_TradingName_List)) -> CBD | E207: =INDEX(dms_FeederName_1,MATCH(dms_TradingName,dms_TradingName_List)) -> CBD | F207: =INDEX(dms_FeederName_2,MATCH(dms_TradingName,dms_TradingName_List)) -> Urban | G207: =INDEX(dms_FeederName_2,MATCH(dms_TradingName,dms_TradingName_List)) -> Urban | H207: =INDEX(dms_FeederName_3,MATCH(dms_TradingName,dms_TradingName_List)) -> Short rural | I207: =INDEX(dms_FeederName_3,MATCH(dms_TradingName,dms_TradingName_List)) -> Short rural | J207: =INDEX(dms_FeederName_4,MATCH(dms_TradingName,dms_TradingName_List)) -> Long rural | K207: =INDEX(dms_FeederName_4,MATCH(dms_TradingName,dms_TradingName_List)) -> Long rural | L207: =IF((INDEX(dms_FeederName_5,MATCH(dms_TradingName,dms_TradingName_List))=0),"Network",(INDEX(dms_FeederName_5,MATCH(dms_TradingName,dms_TradingName_List)))) -> Network | M207: =IF((INDEX(dms_FeederName_5,MATCH(dms_TradingName,dms_TradingName_List))=0),"Network",(INDEX(dms_FeederName_5,MATCH(dms_TradingName,dms_TradingName_List)))) -> Network | N207: Network | O207: Network
C209: dms_060701_Rows | D209: All events | E209: After removing excluded events | F209: All events | G209: After removing excluded events | H209: All events | I209: After removing excluded events | J209: All events | K209: After removing excluded events | L209: All events | M209: After removing excluded events | N209: All events | O209: After removing excluded events
D210: the number of column headings changes from 10 to 12 depending on the number of feeder categories for the NSP
C212: dms_0603_FeederList | D212: =INDEX(dms_FeederName_1,MATCH(dms_TradingName,dms_TradingName_List)) -> CBD | E212: =INDEX(dms_FeederName_2,MATCH(dms_TradingName,dms_TradingName_List)) -> Urban | F212: =INDEX(dms_FeederName_3,MATCH(dms_TradingName,dms_TradingName_List)) -> Short rural | G212: =INDEX(dms_FeederName_4,MATCH(dms_TradingName,dms_TradingName_List)) -> Long rural
B215: Use these to add to specific worksheets in existing files | C215: Use these to add to specific worksheets in existing files
B218: ARRs 6.7 STPIS daily performance | C218: dms_060101_Values | D218: dms_060102_Values | E218: dms_060701_Values
C219: dms_LeapYear
B222: ARR's 6.8 STPIS exclusions | C222: dms_060801_Event_Date | D222: dms_060801_OutageID | E222: dms_060801_FeederID | F222: dms_060801_FeederClass | G222: dms_060801_CauseID | H222: dms_060801_01_Values | I222: dms_060801_02_Values | J222: dms_060801_03_Values | K222: dms_060801_Excl_Cat | L222: dms_060801_04_Values
C223: dms_060801_StartCell
B226: CA 6.3 sustained interruptions | C226: dms_060301_Event_Date | D226: dms_060301_Event_Time | E226: dms_060301_AssetID | F226: dms_060301_FeederClass | G226: dms_060301_Reason | H226: dms_060301_DetailedReason | I226: dms_060301_CustNo_Affected_Values | J226: dms_060301_Avg_Duration_Sustained_Int_Values | K226: dms_060301_Effect_unplanned_SAIDI_Values | L226: dms_060301_Effect_unplanned_SAIFI_Values | M226: dms_060301_MED

Sheet AER lookups (hidden)
B1: AER LOOKUP TABLES
B3: Data in these columns used for data validation and database purposes.
B4: Date last modified: | C4: 2017-01-16 | D4: added (Albury and Victora) for AGN
C5: 2016-10-17 | D5: updated TransGrid's correct legal name, corrected TasNetworks (T) to June financial year
C6: 2017-02-01 | D6: inserted Power and Water, added NRs (dms_FeederCat_1 and dms_FeederCat_2)
C7: 2017-03-03 | D7: inserted AEMO as a business | AB7: FOR ELECTRICITY BUSINESSES ONLY
C8: 2018-03-28 | D8: major changes to accommodate STPIS
C9: Template Version | D9: 5 | AB9: Feeder Types | AF9: TasNetworks (D) | AG9: MAIFI flag | AH9: Feeder Names
AB11: CBD | AC11: Urban | AD11: Short rural | AE11: long rural | AF11: EXTRA
B12: dms_TradingName_List | C12: dms_TradingNameFull_List | D12: dms_ABN_List | E12: dms_JurisdictionList | F12: dms_Sector_List | G12: dms_Segment_List | H12: dms_FormControl_List | I12: dms_RPT_List | J12: dms_RPTMonth_List | K12: dms_CRCPlength_List | L12: dms_FRCPlength_List | M12: dms_PRCPlength_List | N12: dms_663_List | O12: dms_DeterminationRef_List | P12: dms_Addr1_List | Q12: dms_Addr2_List | R12: dms_Suburb_List | S12: dms_State_List | T12: dms_PostCode_List | U12: dms_PAddr1_List | V12: dms_PAddr2_List | W12: dms_PSuburb_List | X12: dms_PState_List | Y12: dms_PPostCode_List | Z12: dms_ContactName1_List | AA12: dms_ContactPh1_List | AB12: dms_ContactEmail_List | AC12: dms_CBD_flag | AD12: dms_Urban_flag | AE12: dms_ShortRural_flag | AF12: dms_LongRural_flag | AG12: dms_FeederType_5_flag | AH12: dms_MAIFI_flag_List | AI12: dms_FeederName_1 | AJ12: dms_FeederName_2 | AK12: dms_FeederName_3 | AL12: dms_FeederName_4 | AM12: dms_FeederName_5 | AN12: dms_Public_Lighting_List | AO12: Column1
B13: AusNet (D) | C13: AusNet Electricity Services Pty Ltd | D13: 91064651118 | E13: Vic | F13: Electricity | G13: Distribution | H13: Revenue cap | I13: Financial | J13: June | K13: 5 | L13: 5 | M13: 5 | N13: 2 | O13: 2016-20 Distribution Determination | P13: Level 32 | Q13: 2 Southbank Boulevard | R13: SOUTHBANK | S13: Vic | T13: 3006 | U13: Locked Bag 14051 | W13: MELBOURNE CITY MAIL CENTRE | X13: Vic | Y13: 8001 | Z13: Thomas Hall | AB13: thomas. hall@ausnetservices.com.au | AC13: NO | AD13: YES | AE13: YES | AF13: YES | AG13: NO | AH13: YES | AI13: CBD | AJ13: Urban | AK13: Short rural | AL13: Long rural | AN13: YES | AO13: AusNet (D)
B14: Australian Distribution Co. (Vic) | C14: Australian Distribution Co. | D14: 11222333444 | E14: Vic | F14: Electricity | G14: Distribution | H14: Revenue cap | I14: Financial | J14: June | K14: 5 | L14: 5 | M14: 5 | N14: 2 | O14: distribution determination | P14: 123 Straight Street | R14: MELBOURNE | S14: Vic | T14: 3000 | U14: PO Box 123 | W14: MELBOURNE | X14: Vic | Y14: 3000 | Z14: Bob Smith | AA14: 02 1234 5678 | AB14: bob@auselec.net.au | AC14: YES | AD14: YES | AE14: YES | AF14: YES | AG14: NO | AH14: NO | AI14: CBD | AJ14: Urban | AK14: Short rural | AL14: Long rural | AN14: YES | AO14: Australian Distribution Co.
B15: CitiPower | C15: CitiPower | D15: 76064651056 | E15: Vic | F15: Electricity | G15: Distribution | H15: Revenue cap | I15: Financial | J15: June | K15: 5 | L15: 5 | M15: 5 | N15: 2 | O15: 2016-20 Distribution Determination | P15: 40 Market Street | R15: MELBOURNE | S15: Vic | T15: 3000 | U15: Locked Bag 14090 | W15: MELBOURNE | X15: Vic | Y15: 8001 | Z15: Hannah Williams | AA15: 03 9683 4088 | AB15: hwilliams@powercor.com.au | AC15: YES | AD15: YES | AE15: NO | AF15: NO | AG15: NO | AH15: YES | AI15: CBD | AJ15: Urban | AK15: Short rural | AL15: Long rural | AN15: YES | AO15: CitiPower
B16: Jemena Electricity | C16: Jemena Electricity | D16: 82064651083 | E16: Vic | F16: Electricity | G16: Distribution | H16: Revenue cap | I16: Financial | J16: June | K16: 5 | L16: 5 | M16: 5 | N16: 2 | O16: 2016-20 Distribution Determination | P16: Level 16 | Q16: 567 Collins Street | R16: MELBOURNE | S16: Vic | T16: 3000 | U16: PO Box 16182 | W16: MELBOURNE | X16: Vic | Y16: 8001 | Z16: Matthew Serpell | AA16: 03 9173 8231 | AB16: matthew.serpell@jemena.com.au | AC16: NO | AD16: YES | AE16: YES | AF16: NO | AG16: NO | AH16: YES | AI16: CBD | AJ16: Urban | AK16: Short rural | AL16: Long rural | AN16: YES | AO16: Jemena Electricity
B17: Powercor Australia | C17: Powercor Australia | D17: 89064651109 | E17: Vic | F17: Electricity | G17: Distribution | H17: Revenue cap | I17: Financial | J17: June | K17: 5 | L17: 5 | M17: 5 | N17: 2 | O17: 2016-20 Distribution Determination | P17: 40 Market Street | R17: MELBOURNE | S17: Vic | T17: 3000 | U17: Locked bag 14090 | W17: MELBOURNE | X17: Vic | Y17: 8001 | Z17: Hannah Williams | AA17: 03 9683 4088 | AB17: hwilliams@powercor.com.au | AC17: NO | AD17: YES | AE17: YES | AF17: YES | AG17: NO | AH17: YES | AI17: CBD | AJ17: Urban | AK17: Short rural | AL17: Long rural | AN17: YES | AO17: Powercor Australia
B18: United Energy | C18: United Energy | D18: 70064651029 | E18: Vic | F18: Electricity | G18: Distribution | H18: Revenue cap | I18: Financial | J18: June | K18: 5 | L18: 5 | M18: 5 | N18: 2 | O18: 2016-20 Distribution Determination | P18: 43-45 Centreway | R18: MOUNT WAVERLEY | S18: Vic | T18: 3149 | U18: PO Box 449 | W18: MOUNT WAVERLEY | X18: Vic | Y18: 3170 | Z18: Mathew Abraham | AA18: 03 8846 9758 | AB18: mathew.abraham@ue.com.au | AC18: NO | AD18: YES | AE18: YES | AF18: NO | AG18: NO | AH18: YES | AI18: CBD | AJ18: Urban | AK18: Short rural | AL18: Long rural | AN18: YES | AO18: United Energy
B23: The Reg Year Ending (dms_RYE) must be set to the last year of the regulatory period. For forecast data is is usually (FRCP_y5) for actual it is a single year (CRY). For historical actual data the RYE will need to be set manually in the business details sheet by setting the dms_Multiyear_flag to 1 and putting the correct value in 'dms_Specified_FinalYear. See cells C67:C68
B24: dms_Model_List | C24: dms_Model_Name_Format1 | D24: dms_Worksheet_List | E24: dms_Model_Span_List
B25: ARR | C25: Annual Reporting | D25: =IF(dms_MultiYear_ResponseFlag="yes","RECAST HISTORICAL ANNUAL REPORTING","ANNUAL REPORTING") -> RECAST HISTORICAL ANNUAL REPORTING | E25: 1
B26: CA | C26: Category Analysis | D26: =IF(dms_MultiYear_ResponseFlag="yes","RECAST HISTORICAL CATEGORY ANALYSIS","CATEGORY ANALYSIS") -> RECAST HISTORICAL CATEGORY ANALYSIS | E26: 1
B27: CESS | C27: Capitlal Expenditure | D27: CAPITLAL EXPENDITURE SHARING SCHEMING | E27: 5
B28: CPI | C28: CPI | D28: CPI | E28: 5
B29: EB | C29: Economic Benchmarking | D29: =IF(dms_MultiYear_ResponseFlag="yes","REALLOCATED HISTORICAL ECONOMIC BENCHMARKING","ECONOMIC BENCHMARKING") -> REALLOCATED HISTORICAL ECONOMIC BENCHMARKING | E29: 1
B30: Pricing | C30: Pricing Proposal | D30: PRICING PROPOSAL | E30: 5
B31: PTRM | C31: Post Tax Revenue Model | D31: POST TAX REVENUE MODEL | E31: 5
B32: Reset | C32: Regulatory Reporting (Reset) | D32: REGULATORY REPORTING STATEMENT | E32: 5
B33: RFM | C33: Roll Forward Model | D33: ROLL FORWARD MODEL | E33: 5
B34: WACC | C34: Weighted Average Cost of Capital | D34: WEIGHTED AVERAGE COST OF CAPITAL | E34: 1
B38: Financial | C38: Calendar | E38: PREVIOUS | G38: CURRENT | I38: FORTHCOMING
B39: 1987-88 | C39: 1988 | D39: PRCP_y1 | E39: =INDEX(INDIRECT(dms_RPT),dms_PRCP_start_row) -> 2011-12 | F39: CRCP_y1 | G39: =INDEX(INDIRECT(dms_RPT),dms_CRCP_start_row) -> 2016-17 | H39: =FRCP_y1 -> 2021-22 | I39: =INDEX(INDIRECT(dms_RPT),dms_FRCP_start_row) -> 2021-22
B40: 1988-89 | C40: 1989 | D40: PRCP_y2 | E40: =INDEX(INDIRECT(dms_RPT),dms_PRCP_start_row+1) -> 2012-13 | F40: CRCP_y2 | G40: =INDEX(INDIRECT(dms_RPT),dms_CRCP_start_row+1) -> 2017-18 | H40: FRCP_y2 | I40: =INDEX(INDIRECT(dms_RPT),dms_FRCP_start_row+1) -> 2022-23
B41: 1989-90 | C41: 1990 | D41: PRCP_y3 | E41: =INDEX(INDIRECT(dms_RPT),dms_PRCP_start_row+2) -> 2013-14 | F41: CRCP_y3 | G41: =INDEX(INDIRECT(dms_RPT),dms_CRCP_start_row+2) -> 2018-19 | H41: FRCP_y3 | I41: =INDEX(INDIRECT(dms_RPT),dms_FRCP_start_row+2) -> 2023-24
B42: 1990-91 | C42: 1991 | D42: PRCP_y4 | E42: =INDEX(INDIRECT(dms_RPT),dms_PRCP_start_row+3) -> 2014-15 | F42: CRCP_y4 | G42: =INDEX(INDIRECT(dms_RPT),dms_CRCP_start_row+3) -> 2019-20 | H42: FRCP_y4 | I42: =INDEX(INDIRECT(dms_RPT),dms_FRCP_start_row+3) -> 2024-25
B43: 1991-92 | C43: 1992 | D43: PRCP_y5 | E43: =INDEX(INDIRECT(dms_RPT),dms_PRCP_start_row+4) -> 2015-16 | F43: CRCP_y5 | G43: =INDEX(INDIRECT(dms_RPT),dms_CRCP_start_row+4) -> 2020-21 | H43: FRCP_y5 | I43: =INDEX(INDIRECT(dms_RPT),dms_FRCP_start_row+4) -> 2025-26
B44: 1992-93 | C44: 1993 | D44: PRCP_y6 | E44: =INDEX(INDIRECT(dms_RPT),dms_PRCP_start_row+5) -> 2016-17 | F44: CRCP_y6 | G44: =INDEX(INDIRECT(dms_RPT),dms_CRCP_start_row+5) -> 2021-22 | H44: FRCP_y6 | I44: =INDEX(INDIRECT(dms_RPT),dms_FRCP_start_row+5) -> 2026-27
B45: 1993-94 | C45: 1994 | D45: PRCP_y7 | E45: =INDEX(INDIRECT(dms_RPT),dms_PRCP_start_row+6) -> 2017-18 | F45: CRCP_y7 | G45: =INDEX(INDIRECT(dms_RPT),dms_CRCP_start_row+6) -> 2022-23 | H45: FRCP_y7 | I45: =INDEX(INDIRECT(dms_RPT),dms_FRCP_start_row+6) -> 2027-28
B46: 1994-95 | C46: 1995 | D46: PRCP_y8 | E46: =INDEX(INDIRECT(dms_RPT),dms_PRCP_start_row+7) -> 2018-19 | F46: CRCP_y8 | G46: =INDEX(INDIRECT(dms_RPT),dms_CRCP_start_row+7) -> 2023-24 | H46: FRCP_y8 | I46: =INDEX(INDIRECT(dms_RPT),dms_FRCP_start_row+7) -> 2028-29
B47: 1995-96 | C47: 1996 | D47: PRCP_y9 | E47: =INDEX(INDIRECT(dms_RPT),dms_PRCP_start_row+8) -> 2019-20 | F47: CRCP_y9 | G47: =INDEX(INDIRECT(dms_RPT),dms_CRCP_start_row+8) -> 2024-25 | H47: FRCP_y9 | I47: =INDEX(INDIRECT(dms_RPT),dms_FRCP_start_row+8) -> 2029-30
B48: 1996-97 | C48: 1997 | D48: PRCP_y10 | E48: =INDEX(INDIRECT(dms_RPT),dms_PRCP_start_row+9) -> 2020-21 | F48: CRCP_y10 | G48: =INDEX(INDIRECT(dms_RPT),dms_CRCP_start_row+9) -> 2025-26 | H48: FRCP_y10 | I48: =INDEX(INDIRECT(dms_RPT),dms_FRCP_start_row+9) -> 2030-31
B49: 1997-98 | C49: 1998 | D49: PRCP_y11 | E49: =INDEX(INDIRECT(dms_RPT),dms_PRCP_start_row+10) -> 2021-22 | F49: CRCP_y11 | G49: =INDEX(INDIRECT(dms_RPT),dms_CRCP_start_row+10) -> 2026-27 | H49: FRCP_y11 | I49: =INDEX(INDIRECT(dms_RPT),dms_FRCP_start_row+10) -> 2031-32
B50: 1998-99 | C50: 1999 | D50: PRCP_y12 | E50: =INDEX(INDIRECT(dms_RPT),dms_PRCP_start_row+11) -> 2022-23 | F50: CRCP_y12 | G50: =INDEX(INDIRECT(dms_RPT),dms_CRCP_start_row+11) -> 2027-28 | H50: FRCP_y12 | I50: =INDEX(INDIRECT(dms_RPT),dms_FRCP_start_row+11) -> 2032-33
B51: 1999-00 | C51: 2000 | D51: PRCP_y13 | E51: =INDEX(INDIRECT(dms_RPT),dms_PRCP_start_row+12) -> 2023-24 | F51: CRCP_y13 | G51: =INDEX(INDIRECT(dms_RPT),dms_CRCP_start_row+12) -> 2028-29 | H51: FRCP_y13 | I51: =INDEX(INDIRECT(dms_RPT),dms_FRCP_start_row+12) -> 2033-34
B52: 2000-01 | C52: 2001 | D52: PRCP_y14 | E52: =INDEX(INDIRECT(dms_RPT),dms_PRCP_start_row+13) -> 2024-25 | F52: CRCP_y14 | G52: =INDEX(INDIRECT(dms_RPT),dms_CRCP_start_row+13) -> 2029-30 | H52: FRCP_y14 | I52: =INDEX(INDIRECT(dms_RPT),dms_FRCP_start_row+13) -> 2034-35
B53: 2001-02 | C53: 2002 | D53: PRCP_y15 | E53: =INDEX(INDIRECT(dms_RPT),dms_PRCP_start_row+14) -> 2025-26 | F53: CRCP_y15 | G53: =INDEX(INDIRECT(dms_RPT),dms_CRCP_start_row+14) -> 2030-31 | H53: FRCP_y15 | I53: =INDEX(INDIRECT(dms_RPT),dms_FRCP_start_row+14) -> 2035-36
B54: 2002-03 | C54: 2003 | D54: PRCP_y16 | E54: =INDEX(INDIRECT(dms_RPT),dms_PRCP_start_row+15) -> 2026-27 | F54: CRCP_y16 | G54: =INDEX(INDIRECT(dms_RPT),dms_CRCP_start_row+15) -> 2031-32 | H54: FRCP_y16 | I54: =INDEX(INDIRECT(dms_RPT),dms_FRCP_start_row+15) -> 2036-37
B55: 2003-04 | C55: 2004
B56: 2004-05 | C56: 2005
B57: 2005-06 | C57: 2006 | E57: CRY - FRY
B58: 2006-07 | C58: 2007 | D58: dms_y1 | E58: =IFERROR(INDEX(INDIRECT(dms_RPT),dms_CRY_start_row),0) -> 2006-07
B59: 2007-08 | C59: 2008 | D59: dms_y2 | E59: =IFERROR(INDEX(INDIRECT(dms_RPT),dms_CRY_start_row+1),0) -> 2007-08
B60: 2008-09 | C60: 2009 | D60: dms_y3 | E60: =IFERROR(INDEX(INDIRECT(dms_RPT),dms_CRY_start_row+2),0) -> 2008-09
B61: 2009-10 | C61: 2010 | D61: dms_y4 | E61: =IFERROR(INDEX(INDIRECT(dms_RPT),dms_CRY_start_row+3),0) -> 2009-10
B62: 2010-11 | C62: 2011 | D62: dms_y5 | E62: =IFERROR(INDEX(INDIRECT(dms_RPT),dms_CRY_start_row+4),0) -> 2010-11
B63: 2011-12 | C63: 2012 | D63: dms_y6 | E63: =IFERROR(INDEX(INDIRECT(dms_RPT),dms_CRY_start_row+5),0) -> 2011-12
B64: 2012-13 | C64: 2013 | D64: dms_y7 | E64: =IFERROR(INDEX(INDIRECT(dms_RPT),dms_CRY_start_row+6),0) -> 2012-13
B65: 2013-14 | C65: 2014 | D65: dms_y8 | E65: =IFERROR(INDEX(INDIRECT(dms_RPT),dms_CRY_start_row+7),0) -> 2013-14
B66: 2014-15 | C66: 2015 | D66: dms_y9 | E66: =IFERROR(INDEX(INDIRECT(dms_RPT),dms_CRY_start_row+8),0) -> 2014-15
B67: 2015-16 | C67: 2016 | D67: dms_y10 | E67: =IFERROR(INDEX(INDIRECT(dms_RPT),dms_CRY_start_row+9),0) -> 2015-16
B68: 2016-17 | C68: 2017 | D68: dms_y11 | E68: =IFERROR(INDEX(INDIRECT(dms_RPT),dms_CRY_start_row+10),0) -> 2016-17
B69: 2017-18 | C69: 2018 | D69: dms_y12 | E69: =IFERROR(INDEX(INDIRECT(dms_RPT),dms_CRY_start_row+11),0) -> 2017-18
B70: 2018-19 | C70: 2019 | D70: dms_y13 | E70: =IFERROR(INDEX(INDIRECT(dms_RPT),dms_CRY_start_row+12),0) -> 2018-19
B71: 2019-20 | C71: 2020 | D71: dms_y14 | E71: =IFERROR(INDEX(INDIRECT(dms_RPT),dms_CRY_start_row+13),0) -> 2019-20
B72: 2020-21 | C72: 2021 | D72: dms_y15 | E72: =IFERROR(INDEX(INDIRECT(dms_RPT),dms_CRY_start_row+14),0) -> 2020-21
B73: 2021-22 | C73: 2022 | D73: dms_y16 | E73: =IFERROR(INDEX(INDIRECT(dms_RPT),dms_CRY_start_row+15),0) -> 2021-22
B74: 2022-23 | C74: 2023
B75: 2023-24 | C75: 2024
B76: 2024-25 | C76: 2025
B77: 2025-26 | C77: 2026
B78: 2026-27 | C78: 2027
B79: 2027-28 | C79: 2028
B80: 2028-29 | C80: 2029
B81: 2029-30 | C81: 2030
B82: 2030-31 | C82: 2031
B83: 2031-32 | C83: 2032
B84: 2032-33 | C84: 2033
B85: 2033-34 | C85: 2034
B86: 2034-35 | C86: 2035
B87: 2035-36 | C87: 2036
B88: 2036-37 | C88: 2037

Sheet AER ETL (hidden)
B1: AER ETL INFORMATION
B3: USES NAMED RANGES FLAG | C3: yes | D3: dms_Defined_Names_Used
B5: IF THIS IS AN ABC RIN - make sure the the named range CRY is applied and the named range dms_dollar_nom_UOM is applied
B6: IF THIS IS A RESET RIN - make sure the named ranges CRY and dms_dollar_nom_UOM are NOT present in the workbook
B7: FOR ABC RINS THAT SPAN MULTIPLE YEARS - make sure MultiYear Flag is set and final year entered as required
B9: Full trading name | C9: =INDEX(dms_TradingNameFull_List,MATCH(dms_TradingName,dms_TradingName_List)) -> AusNet Electricity Services Pty Ltd | E9: dms_TradingNameFull
A10: Selected here | B10: Model / RIN | C10: EB | D10: dms_Model
A11: Read from Business & other details | B11: Source | C11: =dms_Selected_Source -> Reporting | D11: dms_Source
B12: Data quality | C12: =dms_Selected_Quality -> Consolidated | D12: dms_DQ_1
B13: Data status | C13: =dms_Selected_Status -> Public | D13: dms_DQ_2
B14: Amendment reason | C14: =dms_Amendment_Text -> . | F14: dms_AmendmentReason
B15: Submission date | C15: =dms_Typed_Submission_Date -> 2020-01-31 | D15: dms_SubmissionDate
A17: Redundant | B17: EBSS - First application of scheme in forthcoming period? | C17: No
A18: Pre-populated from lookup table | B18: Data ingestion data quality | C18: =IF(dms_DQ_2="Confidential","Consolidated","Public") -> Public | D18: dms_DataQuality | E18: =IF(dms_DQ_2="Confidential","Consolidated","Public")
B19: Sector | C19: =INDEX(dms_Sector_List,MATCH(dms_TradingName,dms_TradingName_List)) -> Electricity | D19: dms_Sector | E19: =INDEX(dms_Sector_List,MATCH(dms_TradingName,dms_TradingName_List))
B20: Segment | C20: =INDEX(dms_Segment_List,MATCH(dms_TradingName,dms_TradingName_List)) -> Distribution | D20: dms_Segment | E20: =INDEX(dms_Segment_List,MATCH(dms_TradingName,dms_TradingName_List))
B21: Regulatory Year Ending | C21: =dms_RYE_result -> 2019 | D21: dms_RYE | E21: =IF(dms_MultiYear_Flag=1,LEFT(dms_Specified_FinalYear,2)&RIGHT(dms_Specified_FinalYear,2),INDEX(dms_RYE_Formula_Result,MATCH(dms_Model,dms_Model_List)))
B22: Reporting Period Type | C22: =INDEX(dms_RPT_List,MATCH(dms_TradingName,dms_TradingName_List)) -> Financial | D22: dms_RPT | E22: =INDEX(dms_RPT_List,MATCH(dms_TradingName,dms_TradingName_List))
B23: EB/CA Unit of Measure for Monetary Values | C23: $0s | D23: dms_dollar_nom_UOM | E23: If the cover sheet is attached to an ABC RIN apply the NAMED RANGE to the cell
B24: Security Classification | C24: Public | D24: dms_Classification | E24: Always Public
B25: Jurisdiction | C25: =INDEX(dms_JurisdictionList,MATCH(dms_TradingName,dms_TradingName_List)) -> Vic | D25: dms_Jurisdiction | E25: =INDEX(dms_JurisdictionList,MATCH(dms_TradingName,dms_TradingName_List))
A26: Relevant for PTRM, RFMs and Reset RINS | B26: $ REAL REFERENCES
B27: Does the named range CRY exist in this file? | C27: =IFERROR(CRY,"NO") -> 2006-07
B28: CRY-1 (last full calendar year before CRY) | C28: =IFERROR(IF(dms_RPT="calendar",CRY-1,LEFT(CRY,4)),"CRY not present") -> 2006 | D28: dms_Cal_Year_B4_CRY | E28: '=IF(dms_RPT="financial",VALUE(LEFT(dms_SingleYear_FinalYear_Result,4)),VALUE(LEFT(dms_SingleYear_FinalYear_Result,4)-1))
B29: Dollar $ real month | C29: =INDEX(dms_RPTMonth_List,MATCH(dms_TradingName,dms_TradingName_List)) -> June | D29: dms_RPTMonth | E29: =INDEX(dms_RPTMonth_List,MATCH(dms_TradingName,dms_TradingName_List))
B30: Dollar $ real (the last month before the FRCP_y1) | C30: =IF(dms_SingleYearModel="yes",CONCATENATE(dms_RPTMonth)&" "&VALUE((LEFT(CRY,2))&RIGHT(CRY,2)),CONCATENATE(dms_RPTMonth)&" "&dms_DollarReal_year) -> June 2007 | D30: dms_DollarReal | E30: =IF(SUM(dms_SingleYear_Model)>0,CONCATENATE(dms_RPTMonth)&" "&VALUE((LEFT(CRY,2))&RIGHT(CRY,2)),CONCATENATE(dms_RPTMonth)&" "&VALUE((LEFT(dms_RYE,2)&RIGHT(dms_RYE,2))))
B31: Dollar $ real previous year (PRCP_y5) | C31: =IF(dms_SingleYearModel="yes",CONCATENATE(dms_RPTMonth)&" "&VALUE((LEFT(CRY,2))&RIGHT(CRY,2)),CONCATENATE(dms_RPTMonth)&" "&dms_Previous_DollarReal_year) -> June 2007 | D31: dms_DollarReal_Prev | E31: =IF(SUM(dms_SingleYear_Model)>0,CONCATENATE(dms_RPTMonth)&" "&VALUE(((LEFT(CRY,2))&RIGHT(CRY,2))-1),CONCATENATE(dms_RPTMonth)&" "&VALUE(((LEFT(dms_CRCP_FirstYear_Result,2)&RIGHT(dms_CRCP_FirstYear_Result,2))))-1)
B32: PTRM/ RFMs
B33: Form of control | C33: =INDEX(dms_FormControl_List,MATCH(dms_TradingName,dms_TradingName_List)) -> Revenue cap | D33: dms_FormControl | E33: =INDEX(dms_FormControl_List,MATCH(dms_TradingName,dms_TradingName_List))
A34: All potential values for Regulatory Years or RYEs as calculated | B34: This block works out the various RYE's for ALL RIN types and MODELS
B35: dms_start_year | C35: =FRCP_y1 -> 2021-22 | D35: FRCP_y1 from cover sheet
B36: dms_CRY_start_year | C36: =IFERROR(CRY,CRCP_y4) -> 2006-07 | D36: If this has a year in it then named range CRY exists
B37: dms_CRY_start_row | C37: =IFERROR(MATCH(dms_CRY_start_year,INDIRECT(dms_RPT),0),0) -> 20
B38: dms_FRCP_start_row | C38: =MATCH(dms_start_year,INDIRECT(dms_RPT),0) -> 35 | D38: Uses FRCP_y1 as a start reference
B39: dms_CRCP_start_row | C39: =dms_FRCP_start_row-dms_CRCPlength_Num -> 30 | D39: Uses the value in dms_CRCPlength_Num
B40: dms_PRCP_start_row | C40: =dms_FRCP_start_row-SUM(dms_CRCPlength_Num+dms_PRCPlength_Num) -> 25 | D40: Uses the value in dms_CRCPlength_Num and dms_PRCPlength_Num
B41: dms_RYE_start_row | C41: =dms_FRCP_start_row+(dms_FRCPlength_Num-1) -> 39 | D41: Uses the value in dms_FRCPlength_Num-1
B42: FRCP_start_year | C42: =INDEX(INDIRECT(dms_RPT),dms_FRCP_start_row) -> 2021-22 | D42: Converts the FRCP start row to display the year
B43: CRCP_start_year | C43: =INDEX(INDIRECT(dms_RPT),dms_CRCP_start_row) -> 2016-17 | D43: Converts the CRCP start row to display the year
B44: PRCP_start_year | C44: =INDEX(INDIRECT(dms_RPT),dms_PRCP_start_row) -> 2011-12 | D44: Converts the PRCP start row to display the year
B45: FRCP_final_year | C45: =INDEX(INDIRECT(dms_RPT),dms_FRCP_start_row+dms_FRCPlength_Num-1) -> 2025-26 | D45: Finds the FRCP final year
B46: CRCP_final_year | C46: =INDEX(INDIRECT(dms_RPT),dms_CRCP_start_row+dms_CRCPlength_Num-1) -> 2020-21 | D46: Finds the CRCP final year
B47: PRCP_final_year | C47: =INDEX(INDIRECT(dms_RPT),dms_PRCP_start_row+dms_FRCPlength_Num-1) -> 2015-16 | D47: Finds the PRCP final year
B48: dms_Reset_final_year | C48: =INDEX(INDIRECT(dms_RPT),dms_RYE_start_row) -> 2025-26 | D48: For Resets and PTRM/RFMs (same as FRCP_final_year)
B49: dms_SpecifiedYear_final_year | C49: =FRY -> 2018-19 | D49: FRY from cover sheet
B50: dms_DollarReal_year | C50: =LEFT(CRCP_final_year,2)&RIGHT(CRCP_final_year,2) -> 2021 | D50: Uses the value in CRCP_final_year
B51: dms_Previous_DollarReal_year | C51: =LEFT(PRCP_final_year,2)&RIGHT(PRCP_final_year,2) -> 2016 | D51: Uses the value in PRCP_final_year
B52: dms_CRY_RYE | C52: =IFERROR(LEFT(CRY,2)&RIGHT(CRY,2),0) -> 2007 | D52: For ABC single year RINS
B53: dms_Reset_RYE | C53: =IF(dms_Model_Span>1,(LEFT(dms_Reset_final_year,2)&RIGHT(dms_Reset_final_year,2)),0) -> 0 | D53: If model span > 1 then uses dms_Reset_final_year otherwise it's a multi year ABC
B54: dms_Specified_RYE | C54: =IF(dms_MultiYear_ResponseFlag="Yes",(LEFT(dms_Specified_FinalYear,2)&RIGHT(dms_Specified_FinalYear,2)),0) -> 2019 | D54: If multi year ABC then it uses dms_Specified_FinalYear
B55: dms_Model_Span | C55: =INDEX(dms_Model_Span_List,MATCH(dms_Model,dms_Model_List)) -> 1 | D55: Only single year RINS are set as 1. Otherwise the result of 5 is used to signify that it is more than 1 year span
B56: dms_RYE_result | C56: =IF(dms_MultiYear_ResponseFlag="yes",dms_Specified_RYE,(IF(dms_Model_Span>1,dms_Reset_RYE,dms_CRY_RYE))) -> 2019 | D56: Nested IF - feeds into dms_RYE
B57: dms_Reset_Span | C57: =IF(dms_Reset_RYE>0,CONCATENATE(FRCP_y1," to ",FRCP_final_year),0) -> 0 | D57: Reset span of years as text
B58: dms_SpecifiedYear_Span | C58: =IF(dms_Specified_RYE>0,CONCATENATE(CRY," to ",dms_Specified_FinalYear),0) -> 2006-07 to 2018-19 | D58: Multi year ABC span of years as text
B59: dms_Header_Span | C59: =IF(dms_MultiYear_Flag=1,dms_SpecifiedYear_Span,IF(dms_Model_Span>1,dms_Reset_Span,CRY)) -> 2006-07 to 2018-19 | D59: NESTED IF - for Sheet Headers
B60: ABC RINS THAT SPAN MULTIPLE YEARS
B61: This is a multi year ABC RIN? | C61: Yes
C62: =IF(dms_MultiYear_ResponseFlag="No",0,1) -> 1 | D62: dms_MultiYear_Flag | E62: This is set from the answer provided above
C63: =IF(dms_MultiYear_Flag=1,FRY,"not a Multiple year submission") -> 2018-19 | D63: dms_Specified_FinalYear | E63: The result here is returned to dms_CRCP_FinalYear_Result if response to Q in C73 is "yes" and dms_MultiYear_Flag is set to 1
B64: Start year for 5.2 in Multi year ABC RINS | C64: =IFERROR(IF(dms_MultiYear_Flag=1,FRY,CRY),"not an ABC") -> 2018-19 | D64: dms_0502_Inst_Year | E64: =IF(dms_MultiYear_Flag=1,FRY,CRY) | G64: For single year RINS this is CRY - multi year RINS need to start a the end of the span of years (ie. FRY)
B65: WHAT IS THE RYE?
B66: Reg Period Lengths
B67: PRCP length in years | C67: =INDEX(dms_PRCPlength_List,MATCH(dms_TradingName,dms_TradingName_List)) -> 5 | D67: dms_PRCPlength_Num | E67: =INDEX(dms_PRCPlength_List,MATCH(dms_TradingName,dms_TradingName_List))
B68: CRCP length in years | C68: =INDEX(dms_CRCPlength_List,MATCH(dms_TradingName,dms_TradingName_List)) -> 5 | D68: dms_CRCPlength_Num | E68: =INDEX(dms_CRCPlength_List,MATCH(dms_TradingName,dms_TradingName_List))
B69: FRCP length in years | C69: =INDEX(dms_FRCPlength_List,MATCH(dms_TradingName,dms_TradingName_List)) -> 5 | D69: dms_FRCPlength_Num | E69: =INDEX(dms_FRCPlength_List,MATCH(dms_TradingName,dms_TradingName_List))
B70: Single year RIN?
B71: Single Year ABC RIN ? | C71: =IF(dms_Model="EB",1,0) -> 1 | D71: dms_EB
C72: =IF(dms_Model="CA",1,0) -> 0 | D72: dms_CA | E72: =dms_SingleYear_Model
C73: =IF(dms_Model="ARR",1,0) -> 0 | D73: dms_ARR
B74: Is this a single Year ABC RIN? | C74: =IF(SUM(dms_SingleYear_Model)=1,"yes","no") -> yes | D74: dms_SingleYearModel | E74: =IF(SUM(dms_SingleYear_Model)=1,"yes","no")
B75: Single Year Final Year Result | C75: =IF(AND(dms_SingleYearModel="yes",dms_MultiYear_Flag=0),CRY,0) -> 0 | D75: dms_SingleYear_FinalYear_Result | E75: =IFERROR(IF(SUM(dms_SingleYear_Model)<>0,(INDIRECT(dms_SingleYear_FinalYear_Ref)),"not a single year RIN"),"CRY not present")
B76: Multi year RIN?
B78: Multi Year Reset/Model? | C78: =IF(dms_Model_Span>1,"yes","no") -> no
B79: Final year result for Reset/Model | C79: =IF(dms_Model_Span>1,dms_Reset_final_year,0) -> 0
B81: Multi Year ABC RIN? | C81: =IF(dms_MultiYear_Flag=1,"yes","no") -> yes
B82: Final year result for ABC multi year | C82: =IF(dms_MultiYear_Flag=1,dms_SpecifiedYear_final_year,0) -> 2018-19
B84: EB RINS
B85: Calendar Year for table 3.6 data | C85: =IFERROR(IF(dms_Segment="Transmission",dms_Cal_Year_B4_CRY,CRY),"CRY not present") -> 2006-07 | D85: dms_0306_Year | E85: =IF(dms_Segment="Transmission",dms_Cal_Year_B4_CRY,CRY)
B86: CA RINS
B87: Find how many rows in tables 6.3 sustained interruptions? | E87: dms_060301_MaxRows only returns a valid value when cover sheet is attached to a CA file
C88: =IF(dms_Model<>"CA","not a CA","Is a CA") -> not a CA | E88: =IF(dms_Model<>"CA","not a CA","Is a CA")
B89: dms_060301_Avg_Duration_Sustained_Int_Values present? | C89: =IFERROR(IF(INDEX(dms_060301_Avg_Duration_Sustained_Int_Values,1,1)<>"","yes","no"),"no") -> no | D89: dms_060301_checkvalue | E89: =IFERROR(IF(INDEX(dms_060301_Avg_Duration_Sustained_Int_Values,1,1)<>"","yes","no"),"no")
C90: =IF(AND(dms_Model="CA",(dms_060301_checkvalue="no")),"error - NR not present","no errors") -> no errors | E90: =IF(AND(dms_Model="CA",(dms_060301_checkvalue="no")),"error - NR not present","no errors")
B91: Table 6.3.1 - last row reference | C91: =IFERROR(IF(dms_Model="CA",LOOKUP(2,1/(dms_060301_Avg_Duration_Sustained_Int_Values<>""),(ROW(dms_060301_Avg_Duration_Sustained_Int_Values))),"not a CA"),"6.3 not present") -> not a CA | D91: dms_060301_LastRow | E91: =IFERROR(IF(dms_Model="CA",LOOKUP(2,1/(dms_060301_Avg_Duration_Sustained_Int_Values<>""),(ROW(dms_060301_Avg_Duration_Sustained_Int_Values))),"not a CA"),"6.3 not present")
B92: Table 6.3.1 - max number rows | C92: =IFERROR(IF(dms_Model="CA",(dms_060301_LastRow-15),"not a CA"),"error") -> not a CA | D92: dms_060301_MaxRows | E92: =IFERROR(IF(dms_Model="CA",(dms_060301_LastRow-15),"not a CA"),"error")
B93: Table 6.6.3 - Public lighting repair - no. business days | C93: =INDEX(dms_663_List,MATCH(dms_TradingName,dms_TradingName_List)) -> 2 | D93: dms_663 | E93: =INDEX(dms_663_List,MATCH(dms_TradingName,dms_TradingName_List))
B94: ARR or RESET RINS
B95: How many rows in tables 6.1 or 6.7? (leap year?) | C95: insert dms_LeapYear NR if required | E95: 'dms_LeapYear is used to determine dms_060701_Max_Rows BUT it is only found on worksheet 6.1 or 6.7 and the date value in the cell is used to determine whether it is a leap year
B96: Is dms_LeapYear named range present? | C96: =IFERROR(IF(dms_LeapYear,"yes"),"no") -> no
B97: Table 6.7.1 - includes a leap year? | C97: =IFERROR(IF(MONTH(DATE(YEAR(dms_LeapYear),2,29))=2,"is a leap year","not a leap year"), "dms_LeapYear not present") -> dms_LeapYear not present | D97: dms_LeapYear_Result | E97: =IFERROR(IF(MONTH(DATE(YEAR(dms_LeapYear),2,29))=2,"is a leap year","not a leap year"),"dms_LeapYear not present")
B98: MaxRows if Reset and leap year | C98: =IF(dms_LeapYear_Result="is a leap year",1827,1826) -> 1826 | D98: dms_060701_Reset_MaxRows | E98: =IF(dms_LeapYear_Result="is a leap year",1827,1826) | H98: number of days present in Reset RIN table
B99: MaxRows if ARR and leap year | C99: =IF(dms_LeapYear_Result="is a leap year",366,365) -> 365 | D99: dms_060701_ARR_MaxRows | E99: =IF(dms_LeapYear_Result="is a leap year",366,365) | H99: number of days present in ARR RIN table
B100: Table 6.7.1 - Max Rows (leap year/ non leap year) | C100: =IF(dms_Model="ARR",dms_060701_ARR_MaxRows,IF(dms_Model="Reset",dms_060701_Reset_MaxRows,"not a relevant RIN type")) -> not a relevant RIN type | D100: dms_060701_MaxRows | E100: =IF(dms_Model="ARR",dms_060701_ARR_MaxRows,IF(dms_Model="Reset",dms_060701_Reset_MaxRows,"not a relevant RIN type"))
B101: How many columns in 6.7? (4 or 5 feeder categories) | C101: =IF(dms_FifthFeeder_flag_NSP="NO","This NSP has only 4 feeder categories","This NSP has 5 feeder categories") -> This NSP has only 4 feeder categories
B102: Table 6.7.1 - Last column (# of feeder categories > 4) | C102: =IF(dms_FifthFeeder_flag_NSP="NO",10,12) -> 10 | D102: dms_060701_MaxCols | E102: =IF(dms_FifthFeeder_flag_NSP="NO",8,10)
B103: Table 6.7.1 - Number of offset rows | C103: =IF(dms_Model="ARR",15,9) -> 9 | D103: dms_060701_OffsetRows | E103: =IF(dms_Model="ARR",15,9)
B104: Start date for telephone answering in 6.1 or 6.7? | E104: Using 060101 as naming standard not 060701 for start dates
B105: Table 6.1.1 and 6.7.1 - Start Date as Text | C105: =IF(dms_SingleYearModel="yes",(CONCATENATE(IF(LEN(CRY)=4,"1-Jan-","1-Jul-"),LEFT(CRY,4))),(CONCATENATE(IF(LEN(PRCP_y4)=4,"1-Jan-","1-Jul-"),LEFT(PRCP_y4,4)))) -> 1-Jul-2006 | D105: dms_060101_StartDateTxt | E105: =IF(SUM(dms_SingleYear_Model)>1,(CONCATENATE(IF(LEN(CRY)=4,"1-Jan-","1-Jul-"),LEFT(CRY,4))),(CONCATENATE(IF(LEN(CRCP_y4)=4,"1-Jan-","1-Jul-"),LEFT(CRCP_y4,4))))
B106: Table 6.1.1 and 6.7.1 - Start Date as Date Value | C106: =DATEVALUE(dms_060701_StartDateTxt) -> 38899 | D106: dms_060101_StartDateVal | E106: =DATEVALUE(dms_060701_StartDateTxt)
B107: ARRs
B108: How many rows in table 6.8? | C108: insert dms_060801_StartCell NR if required | E108: dms_060801_StartCell is only found on worksheet 6.8 and is used to determine the starting date for the date range
B109: Is dms_060801_StartCell named range present? | C109: yes | E109: =IFERROR(IF((ROW(dms_060801_StartCell)-1)=1,"yes","yes"),"no")
B110: Table 6.8 - Number of offset rows | C110: 12 | D110: dms_0608_OffsetRows | E110: =IFERROR(IF(dms_Model="ARR",(ROW(dms_060801_StartCell)-1),"not an ARR"),"6.8 error")
B111: Table 6.8 - Last row | C111: 0 | D111: dms_0608_LastRow | E111: =IFERROR(IF(dms_060801_StartCell<>"",IF(dms_Model="ARR",(LOOKUP(2,1/(dms_060801_01_Values<>""),(ROW(dms_060801_01_Values)))),"not an ARR"),0),"0")
B112: Table 6.8 - MaxRows | C112: =IFERROR(IF(dms_Model="ARR",(MAX(0,dms_0608_LastRow-dms_0608_OffsetRows)),"not an ARR"),"0") -> not an ARR | D112: dms_060801_MaxRows | E112: =IFERROR(IF(dms_Model="ARR",(MAX(0,dms_0608_LastRow-dms_0608_OffsetRows)),"not an ARR"),"0")
B113: TNSP RESET RINS
B114: Table 7.9.4 only appears in TNSPs Reset RIN
B115: Table 7.9.4 - first year | C115: =LEFT(PRCP_y3,4) -> 2013 | D115: dms_070904_Start_Year | E115: =LEFT(PRCP_y3,4)
B117: MISC
B118: Distribution Determination Reference | C118: =INDEX(dms_DeterminationRef_List,MATCH(dms_TradingName,dms_TradingName_List)) -> 2016-20 Distribution Determination | D118: dms_DeterminationRef
B119: Public lighting NSP? | C119: =INDEX(dms_Public_Lighting_List,MATCH(dms_TradingName,dms_TradingName_List)) -> YES | D119: dms_Public_Lighting | E119: =INDEX(dms_Public_Lighting_List,MATCH(dms_TradingName,dms_TradingName_List))
B120: CBD Feeder for this business | C120: =INDEX(dms_CBD_flag,MATCH(dms_TradingName,dms_TradingName_List)) -> NO | D120: dms_CBD_flag_NSP
B121: Urban Feeder for this business | C121: =INDEX(dms_Urban_flag,MATCH(dms_TradingName,dms_TradingName_List)) -> YES | D121: dms_Urban_flag_NSP
B122: Short rural Feeder for this business | C122: =INDEX(dms_ShortRural_flag,MATCH(dms_TradingName,dms_TradingName_List)) -> YES | D122: dms_ShortRural_flag_NSP
B123: Long rural Feeder for this business | C123: =INDEX(dms_LongRural_flag,MATCH(dms_TradingName,dms_TradingName_List)) -> YES | D123: dms_LongRural_flag_NSP
B124: Fifth Feeder Category (eg. TasNetworks (D)) | C124: =INDEX(dms_FeederType_5_flag,MATCH(dms_TradingName,dms_TradingName_List)) -> NO | D124: dms_FifthFeeder_flag_NSP | E124: =INDEX(dms_FeederType_5_flag,MATCH(dms_TradingName,dms_TradingName_List))
B126: DISCARD FILES
B127: discard this record? | C127: NO | D127: dms_DISCARD | E127: If record is to be discarded from DB set this flag to YES
B129: SUBSET FILES
B130: Is this Submission File a Subset File | C130: YES | D130: dms_Partial
B133: REGULATORY YEARS FOR MULTI RYE SUBMISSIONS
B134: Multiple RYE flag | C134: YES | D134: dms_Multi_RYE_flag
C135: Manually specify RYE | D135: Named ranges to apply
C136: 2013 | D136: dms_RYE_01
C137: 2014 | D137: dms_RYE_02
C138: 2015 | D138: dms_RYE_03
C139: 2016 | D139: dms_RYE_04
C140: 2017 | D140: dms_RYE_05
C141: 2018 | D141: dms_RYE_06
C142: 2019 | D142: dms_RYE_07
C143: 2020 | D143: dms_RYE_08
C144: 2021 | D144: dms_RYE_09

Sheet Instructions
B2: =CONCATENATE(dms_Sector," ",dms_Segment," ", "Network Service Provider") -> Electricity Distribution Network Service Provider
B3: =INDEX(dms_Worksheet_List,MATCH(dms_Model,dms_Model_List)) -> REALLOCATED HISTORICAL ECONOMIC BENCHMARKING
B4: =CONCATENATE("This template is to be used by ",dms_TradingNameFull," to fulfil its reporting obligations to the AER.") -> This template is to be used by AusNet Electricity Services Pty Ltd to fulfil its reporting obligations to the AER.
B5: INSTRUCTIONS
B6: GENERAL | C6: Complete the Business & other details worksheet before entering data or values in any other worksheets. The Business & other details worksheet is linked to other worksheets within the workbook and automatically generates certain column headings and conditional formatting.
B8: CONFIDENTIAL INFORMATION | C8: Please use the macro at the top of each worksheet to identify confidential information in the confidential workbook.
C9: -Do this by selecting the cell or cells that contain confidential information and then run the Mark selection as CONFIDENTIAL macro. This will format the cells a specific colour that is identified by the AER's database which in turn marks that information as confidential. -To reverse this, select the cell or cells and run the Return selection to NON-CONFIDENTIAL macro.
B11: RESPONSES | C11: Please return two (2) files to the AER: 1. A confidential version which must contain a complete set of all responses with confidential information marked using the Mark selection CONFIDENTIAL macro and which has been completed using the locked template file provided by the AER. 2. A public version with confidential information either removed completely or aggregated in some form together with writtten consent to disclose the public version of the response. Use the drop down box on the Business and other details worksheet to identify the file as either confidential ('consolidated') or public.
B13: AMENDMENTS | C13: If an NSP wishes to correct data previously submitted to the AER it should resubmit that data using the original completed submission as the starting point. Please make any necessary changes to the data. Data that is not being amended should be left unchanged. NSPs must identify the reason for the amendments in the Amendment Reason box on the Business and other details worksheet. NSPs may provide further details regarding any amendments in the Amendments worksheet. .
C14: NSP may use Amended Data macro to highlight cells that contain amended data. NB: if data is also CONFIDENTIAL, re-apply the Confidentiality macro after applying the Amended macro
C15: Please resubmit two (2) files - a confidential version and a public version of the amended submission to the AER
B17: UNITS OF MEASURE | C17: All amounts are to be unrounded and reported on a one for one basis: that is 1000 is to be entered as '1000'. Applicable units of measure may be identified in the table column headings or row descriptors.
B19: INPUT / NON-INPUT CELLS
D20: Yellow = Input cell (mandatory)
D21: Darker yellow = input cell (mandatory)
D22: Orange = input cell (if data available)
D23: Grey = Not applicable/No inputs required
D24: PLEASE DO NOT ENTER TEXT into cells that are to contain numeric data.
B27: NAVIGATION | C27: Many tables in the worksheets have been "grouped" to allow for easy navigation. To ungroup or group data use the outline symbols in the left margin (for Row groupings) or above the columns (for column groupings).

Sheet Contents
B1: =INDEX(dms_Worksheet_List,MATCH(dms_Model,dms_Model_List)) -> REALLOCATED HISTORICAL ECONOMIC BENCHMARKING
B2: =INDEX(dms_TradingNameFull_List,MATCH(dms_TradingName,dms_TradingName_List)) -> AusNet Electricity Services Pty Ltd
B3: =dms_Header_Span -> 2006-07 to 2018-19
C7: CONTENTS
C9: SUBMISSION | D9: Business & other details
C11: ECONOMIC BENCHMARKING | D11: 3.1 Revenue
D12: 3.2 Operating expenditure
D13: 3.2.3 Provisions
D14: 3.3 Assets (RAB)
D15: 3.4 Operational data
D16: 3.5 Physical assets
D17: 3.6 Quality of service
D18: 3.7 Operating environment

Sheet Business & other details
V1: =INDEX(dms_Worksheet_List,MATCH(dms_Model,dms_Model_List)) -> REALLOCATED HISTORICAL ECONOMIC BENCHMARKING
V2: =INDEX(dms_TradingNameFull_List,MATCH(dms_TradingName,dms_TradingName_List)) -> AusNet Electricity Services Pty Ltd
V3: =dms_Header_Span -> 2006-07 to 2018-19
V4: BUSINESS & OTHER DETAILS
V6: INSTRUCTIONS
V7: Complete the following business details regulatory template before entering data or values in any other regulatory template. This regulatory template is linked to other cells within the spreadsheet and automatically generates column headings and conditional formatting to distinguish business specific input and non-input cells.
Q9: SUBMISSION PARTICULARS INPUT SHEET
V12: ENTITY DETAILS
V14: Business Name
V16: Short name | AL16: AusNet (D)
V17: ACN/ABN | AL17: =INDEX(dms_ABN_List,MATCH(dms_TradingName,dms_TradingName_List)) -> 91064651118
V21: Business Address | BQ21: Postal Address
V23: Address 1 | AL23: =INDEX(dms_Addr1_List,MATCH(dms_TradingName,dms_TradingName_List)) -> Level 32 | BI23: Address 1 | BQ23: =INDEX(dms_Addr1_List,MATCH(dms_TradingName,dms_TradingName_List)) -> Level 32
V24: Address 2 | AL24: =IF(ISBLANK(INDEX(dms_Addr2_List,MATCH(dms_TradingName,dms_TradingName_List))),"",(INDEX(dms_Addr2_List,MATCH(dms_TradingName,dms_TradingName_List)))) -> 2 Southbank Boulevard | BI24: Address 2 | BQ24: =IF(ISBLANK(INDEX(dms_Addr2_List,MATCH(dms_TradingName,dms_TradingName_List))),"",(INDEX(dms_Addr2_List,MATCH(dms_TradingName,dms_TradingName_List)))) -> 2 Southbank Boulevard
V25: Suburb | AL25: Southbank | BI25: Suburb | BQ25: Southbank
V26: State | AL26: =INDEX(dms_State_List,MATCH(dms_TradingName,dms_TradingName_List)) -> Vic | AV26: Post code | AX26: =INDEX(dms_PostCode_List,MATCH(dms_TradingName,dms_TradingName_List)) -> 3006 | BI26: State | BQ26: =INDEX(dms_PState_List,MATCH(dms_TradingName,dms_TradingName_List)) -> Vic | CA26: Post code | CC26: 3006
BA28: `
V30: Contact Names
V32: Name | AL32: Charlotte Eddy | BI32: Name | BQ32: Namrata Powale
V33: Phone | AL33: 03 9695 6309 | BI33: Phone | BQ33: 03 9695 6968
V34: Email | AL34: charlotte.eddy@ausnetservices.com.au | BI34: Email | BQ34: Namrata.Powale@ausnetservices.com.au
V39: REGULATORY CONTROL PERIODS
V42: RESETS | AF42: Forthcoming period | AR42: 2021-22 | BA42: =FRCP_y2 -> 2022-23 | BJ42: =FRCP_y3 -> 2023-24 | BS42: =FRCP_y4 -> 2024-25 | CB42: =FRCP_y5 -> 2025-26
AR43: =FRCP_y6 -> 2026-27 | BA43: =FRCP_y7 -> 2027-28 | BJ43: =FRCP_y8 -> 2028-29 | BS43: =FRCP_y9 -> 2029-30 | CB43: =FRCP_y10 -> 2030-31
AR44: =FRCP_y11 -> 2031-32 | BA44: =FRCP_y12 -> 2032-33 | BJ44: =FRCP_y13 -> 2033-34 | BS44: =FRCP_y14 -> 2034-35 | CB44: =FRCP_y15 -> 2035-36
AF46: Current period | AR46: =CRCP_y1 -> 2016-17 | BA46: =CRCP_y2 -> 2017-18 | BJ46: =CRCP_y3 -> 2018-19 | BS46: =CRCP_y4 -> 2019-20 | CB46: =CRCP_y5 -> 2020-21
AR47: =CRCP_y6 -> 2021-22 | BA47: =CRCP_y7 -> 2022-23 | BJ47: =CRCP_y8 -> 2023-24 | BS47: =CRCP_y9 -> 2024-25 | CB47: =CRCP_y10 -> 2025-26
AR48: =CRCP_y11 -> 2026-27 | BA48: =CRCP_y12 -> 2027-28 | BJ48: =CRCP_y13 -> 2028-29 | BS48: =CRCP_y14 -> 2029-30 | CB48: =CRCP_y15 -> 2030-31
AF50: Previous period | AR50: =PRCP_y1 -> 2011-12 | BA50: =PRCP_y2 -> 2012-13 | BJ50: =PRCP_y3 -> 2013-14 | BS50: =PRCP_y4 -> 2014-15 | CB50: =PRCP_y5 -> 2015-16
AR51: =PRCP_y6 -> 2016-17 | BA51: =PRCP_y7 -> 2017-18 | BJ51: =PRCP_y8 -> 2018-19 | BS51: =PRCP_y9 -> 2019-20 | CB51: =PRCP_y10 -> 2020-21
AR52: =PRCP_y11 -> 2021-22 | BA52: =PRCP_y12 -> 2022-23 | BJ52: =PRCP_y13 -> 2023-24 | BS52: =PRCP_y14 -> 2024-25 | CB52: =PRCP_y15 -> 2025-26
V54: ANNUAL RINS | AF54: Commencing year | AR54: 2006-07
AF56: Final year | AR56: 2018-19
V60: SUBMISSION DETAILS
AF62: RIN type | AR62: =INDIRECT(dms_Model) -> Economic Benchmarking
V64: THIS FILE | AF64: Source | AR64: Reporting
AF66: Data Quality | AR66: Consolidated
AF68: Confidentiality Status | AR68: Public
AF70: Amended RIN Amendment Reason | AR70: .
AF74: Submission Date | AR74: 2020-01-31

Sheet 3.1 Revenue
B1: =INDEX(dms_Worksheet_List,MATCH(dms_Model,dms_Model_List)) -> REALLOCATED HISTORICAL ECONOMIC BENCHMARKING
B2: =INDEX(dms_TradingNameFull_List,MATCH(dms_TradingName,dms_TradingName_List)) -> AusNet Electricity Services Pty Ltd
B3: =dms_Header_Span -> 2006-07 to 2018-19
B4: 3.1 REVENUE
B6: There are THREE (x TWO) tables on this worksheet. Both ROWS and COLUMNS have been grouped for ease of navigation. see the Instructions sheet on how to group or ungroup tables.
B8: 3.1.1 - REVENUE GROUPING BY CHARGEABLE QUANTITY
C9: STANDARD CONTROL SERVICES | P9: ALTERNATIVE CONTROL SERVICES
C10: REVENUE ($0's) | P10: REVENUE ($0's)
C11: =dms_y1 -> 2006-07 | D11: =dms_y2 -> 2007-08 | E11: =dms_y3 -> 2008-09 | F11: =dms_y4 -> 2009-10 | G11: =dms_y5 -> 2010-11 | H11: =dms_y6 -> 2011-12 | I11: =dms_y7 -> 2012-13 | J11: =dms_y8 -> 2013-14 | K11: =dms_y9 -> 2014-15 | L11: =dms_y10 -> 2015-16 | M11: =dms_y11 -> 2016-17 | N11: =dms_y12 -> 2017-18 | P11: =dms_y1 -> 2006-07 | Q11: =dms_y2 -> 2007-08 | R11: =dms_y3 -> 2008-09 | S11: =dms_y4 -> 2009-10 | T11: =dms_y5 -> 2010-11 | U11: =dms_y6 -> 2011-12 | V11: =dms_y7 -> 2012-13 | W11: =dms_y8 -> 2013-14 | X11: =dms_y9 -> 2014-15 | Y11: =dms_y10 -> 2015-16 | Z11: =dms_y11 -> 2016-17 | AA11: =dms_y12 -> 2017-18
A12: DREV0101 | B12: Revenue from Fixed Customer Charges | C12: 25258009.5 | D12: 21241670.5 | E12: 12759430 | F12: 9466903 | G12: 10256533.5 | H12: 11031768.5 | I12: 17547178 | J12: 34127930.9 | K12: 46300572.29 | L12: 63921320.73 | M12: 83863843.53 | N12: 88968764.38 | P12: 0 | Q12: 0 | R12: 0 | S12: 0 | T12: 0 | U12: 0 | V12: 0 | W12: 0 | X12: 0 | Y12: 0 | Z12: 0 | AA12: 0
A13: DREV0102 | B13: Revenue from Energy Delivery charges where time of use is not a determinant | C13: 115779447 | D13: 126405605.5 | E13: 134039730 | F13: 149775996 | G13: 170843063.5 | H13: 189259494.5 | I13: 204160752 | J13: 217234545 | K13: 239434438.5 | L13: 225654449.7 | M13: 204233841.3 | N13: 209698744.6 | P13: 0 | Q13: 0 | R13: 0 | S13: 0 | T13: 0 | U13: 0 | V13: 0 | W13: 0 | X13: 0 | Y13: 0 | Z13: 0 | AA13: 0
A14: DREV0103 | B14: Revenue from On–Peak Energy Delivery charges | C14: 97086193 | D14: 102947143.5 | E14: 105141070 | F14: 111180725.5 | G14: 122256067 | H14: 129346333 | I14: 138790891.5 | J14: 163867847.5 | K14: 194997186.6 | L14: 192776136 | M14: 189936384 | N14: 193561276.1 | P14: 0 | Q14: 0 | R14: 0 | S14: 0 | T14: 0 | U14: 0 | V14: 0 | W14: 0 | X14: 0 | Y14: 0 | Z14: 0 | AA14: 0
A15: DREV0104 | B15: Revenue from Shoulder period Energy Delivery Charges | C15: 3304859 | D15: 4420399.5 | E15: 5020696 | F15: 5658925.5 | G15: 7911014.5 | H15: 10710583 | I15: 14465314 | J15: 14739775.5 | K15: 11645193.25 | L15: 11219818.22 | M15: 11896997.99 | N15: 11983601.63 | P15: 0 | Q15: 0 | R15: 0 | S15: 0 | T15: 0 | U15: 0 | V15: 0 | W15: 0 | X15: 0 | Y15: 0 | Z15: 0 | AA15: 0
A16: DREV0105 | B16: Revenue from Off–Peak Energy Delivery charges | C16: 37799996.5 | D16: 38673590 | E16: 38729893.5 | F16: 39894392.5 | G16: 43308952.5 | H16: 45943558 | I16: 46437403 | J16: 46404036.62 | K16: 49734441.03 | L16: 48389786.03 | M16: 46512818.42 | N16: 47080070.01 | P16: 0 | Q16: 0 | R16: 0 | S16: 0 | T16: 0 | U16: 0 | V16: 0 | W16: 0 | X16: 0 | Y16: 0 | Z16: 0 | AA16: 0
A17: DREV0106 | B17: Revenue from controlled load customer charges | C17: 0 | D17: 0 | E17: 0 | F17: 0 | G17: 0 | H17: 0 | I17: 0 | J17: 0 | K17: 0 | L17: 0 | M17: 0 | N17: 0 | P17: 0 | Q17: 0 | R17: 0 | S17: 0 | T17: 0 | U17: 0 | V17: 0 | W17: 0 | X17: 0 | Y17: 0 | Z17: 0 | AA17: 0
A18: DREV0107 | B18: Revenue from unmetered supplies | C18: 3191016 | D18: 3492205 | E18: 3700390.5 | F18: 4089648 | G18: 4104423.5 | H18: 4059785 | I18: 5422843.5 | J18: 7016633.004 | K18: 7236625.276 | L18: 6516654.527 | M18: 6194661.109 | N18: 6062061.369 | P18: 0 | Q18: 0 | R18: 0 | S18: 0 | T18: 0 | U18: 0 | V18: 0 | W18: 0 | X18: 0 | Y18: 0 | Z18: 0 | AA18: 0
A19: DREV0108 | B19: Revenue from Contracted Maximum Demand charges | C19: 32211958 | D19: 33617318 | E19: 35998995.5 | F19: 39790523 | G19: 32714130.5 | H19: 23423114 | I19: 33624418.5 | J19: 37370522.82 | K19: 36541192 | L19: 40512488.9 | M19: 40723209.6 | N19: 41209404.12 | P19: 0 | Q19: 0 | R19: 0 | S19: 0 | T19: 0 | U19: 0 | V19: 0 | W19: 0 | X19: 0 | Y19: 0 | Z19: 0 | AA19: 0
A20: DREV0109 | B20: Revenue from Measured Maximum Demand charges | C20: 0 | D20: 0 | E20: 0 | F20: 0 | G20: 9842128 | H20: 20495617.5 | I20: 18433383.5 | J20: 25214646.36 | K20: 35679660.09 | L20: 35299385.68 | M20: 34855857.47 | N20: 35102475.54 | P20: 0 | Q20: 0 | R20: 0 | S20: 0 | T20: 0 | U20: 0 | V20: 0 | W20: 0 | X20: 0 | Y20: 0 | Z20: 0 | AA20: 0
A21: DREV0110 | B21: Revenue from metering charges | C21: 0 | D21: 0 | E21: 0 | F21: 0 | G21: 0 | H21: 0 | I21: 0 | J21: 0 | K21: 0 | L21: 0 | M21: 0 | N21: 0 | P21: 3223487 | Q21: 3340025.5 | R21: 3468041 | S21: 3609848.5 | T21: 3587577.5 | U21: 3696625.5 | V21: 3943079.5 | W21: 3877001.507 | X21: 3803856.142 | Y21: 50633682.63 | Z21: 94543809.07 | AA21: 72152935.52
A22: DREV0111 | B22: Revenue from connection charges | C22: 0 | D22: 0 | E22: 0 | F22: 0 | G22: 0 | H22: 0 | I22: 0 | J22: 0 | K22: 0 | L22: 0 | M22: 0 | N22: 0 | P22: 1695453 | Q22: 1804394.5 | R22: 1875505 | S22: 2009853.5 | T22: 2501161 | U22: 2770803 | V22: 2469450 | W22: 2470732.486 | X22: 2731132.756 | Y22: 3177897.47 | Z22: 3601430.332 | AA22: 3940418.255
A23: DREV0112 | B23: Revenue from public lighting charges | C23: 0 | D23: 0 | E23: 0 | F23: 0 | G23: 0 | H23: 0 | I23: 0 | J23: 0 | K23: 0 | L23: 0 | M23: 0 | N23: 0 | P23: 3661483.5 | Q23: 3972329 | R23: 4352794.5 | S23: 4689227.5 | T23: 5772203 | U23: 7039403.5 | V23: 7661041.5 | W23: 8159508.48 | X23: 8495820.62 | Y23: 7805988.92 | Z23: 7040137.33 | AA23: 7263661.655
A24: DREV0113 | B24: Revenue from other Sources | C24: 0 | D24: 0 | E24: 0 | F24: -8768 | G24: -137496.5 | H24: -963027.5 | I24: -2221059.5 | J24: -3173189.849 | K24: -4079577.161 | L24: -4004421.954 | M24: -3853139.97 | N24: -5347358.725 | P24: 5865720 | Q24: 5972462 | R24: 6497800.5 | S24: 7522638.5 | T24: 7604540 | U24: 7835013 | V24: 7226401.5 | W24: 6435772.365 | X24: 6018072.816 | Y24: 4866503.831 | Z24: 4200013.425 | AA24: 4332694.032
A25: DREV01 | B25: Total revenue by chargeable quantity | C25: =SUM(C12:C24) -> 314631479 | D25: =SUM(D12:D24) -> 330797932 | E25: 335390205.5 | F25: 359848345.5 | G25: 401098816.5 | H25: 433307226 | I25: 476661124.5 | J25: 542802747.9 | K25: =SUM(K12:K24) -> 617489731.8 | L25: 620285617.8 | M25: =SUM(M12:M24) -> 614364473.5 | N25: 628319039.1 | P25: =SUM(P12:P24) -> 14446143.5 | Q25: =SUM(Q12:Q24) -> 15089211 | R25: =SUM(R12:R24) -> 16194141 | S25: =SUM(S12:S24) -> 17831568 | T25: =SUM(T12:T24) -> 19465481.5 | U25: =SUM(U12:U24) -> 21341845 | V25: =SUM(V12:V24) -> 21299972.5 | W25: =SUM(W12:W24) -> 20943014.84 | X25: 21048882.33 | Y25: 66484072.85 | Z25: 109385390.2 | AA25: 87689709.46
B27: 3.1.2 - REVENUE GROUPING BY CUSTOMER TYPE OR CLASS
C28: STANDARD CONTROL SERVICES | P28: ALTERNATIVE CONTROL SERVICES
C29: REVENUE ($0's) | P29: REVENUE ($0's)
C30: =dms_y1 -> 2006-07 | D30: =dms_y2 -> 2007-08 | E30: =dms_y3 -> 2008-09 | F30: =dms_y4 -> 2009-10 | G30: =dms_y5 -> 2010-11 | H30: =dms_y6 -> 2011-12 | I30: =dms_y7 -> 2012-13 | J30: =dms_y8 -> 2013-14 | K30: =dms_y9 -> 2014-15 | L30: =dms_y10 -> 2015-16 | M30: =dms_y11 -> 2016-17 | N30: =dms_y12 -> 2017-18 | P30: =dms_y1 -> 2006-07 | Q30: =dms_y2 -> 2007-08 | R30: =dms_y3 -> 2008-09 | S30: =dms_y4 -> 2009-10 | T30: =dms_y5 -> 2010-11 | U30: =dms_y6 -> 2011-12 | V30: =dms_y7 -> 2012-13 | W30: =dms_y8 -> 2013-14 | X30: =dms_y9 -> 2014-15 | Y30: =dms_y10 -> 2015-16 | Z30: =dms_y11 -> 2016-17 | AA30: =dms_y12 -> 2017-18
A31: DREV0201 | B31: Revenue from residential Customers | C31: 139419587.5 | D31: 147631241.5 | E31: 150154923 | F31: 164374522 | G31: 186537198.5 | H31: 205087492.5 | I31: 226188938 | J31: 259056339.3 | K31: 303930137 | L31: 313287512.1 | M31: 317194248.2 | N31: 331235993.4 | P31: 0 | Q31: 0 | R31: 0 | S31: 0 | T31: 0 | U31: 0 | V31: 0 | W31: 0 | X31: 0 | Y31: 41840334.38 | Z31: 81562803.01 | AA31: 62223218.75
A32: DREV0202 | B32: Revenue from Non residential customers not on demand tariffs | C32: 103034620 | D32: 106768104.5 | E32: 106997459.5 | F32: 112848530.5 | G32: 124803200 | H32: 132091365.5 | I32: 137899621 | J32: 152138606.1 | K32: 171693762.2 | L32: 166278717.7 | M32: 156495676.9 | N32: 125612021.8 | P32: 0 | Q32: 0 | R32: 0 | S32: 0 | T32: 0 | U32: 0 | V32: 0 | W32: 0 | X32: 0 | Y32: 5463442.929 | Z32: 10423824.98 | AA32: 7696750.219
A33: DREV0203 | B33: Revenue from Non-residential low voltage demand tariff customers | C33: 54818418.5 | D33: 59174986 | E33: 61167639.5 | F33: 64708551.5 | G33: 71002052.5 | H33: 77584703.5 | I33: 90809099.5 | J33: 106229828.4 | K33: 115216608.4 | L33: 114550989.7 | M33: 115113306.7 | N33: 146391372 | P33: 0 | Q33: 0 | R33: 0 | S33: 0 | T33: 0 | U33: 0 | V33: 0 | W33: 0 | X33: 0 | Y33: 0 | Z33: 0 | AA33: 0
A34: DREV0204 | B34: Revenue from Non-residential high voltage demand tariff customers | C34: 14167837 | D34: 13731396 | E34: 13369793.5 | F34: 13827093.5 | G34: 14651942 | H34: 14483879.5 | I34: 16340622.5 | J34: 18361341.19 | K34: 19412598.92 | L34: 19651743.81 | M34: 19366580.54 | N34: 19017590.52 | P34: 0 | Q34: 0 | R34: 0 | S34: 0 | T34: 0 | U34: 0 | V34: 0 | W34: 0 | X34: 0 | Y34: 0 | Z34: 0 | AA34: 0
A35: DREV0205 | B35: Revenue from unmetered supplies | C35: 3191016 | D35: 3492205 | E35: 3700390.5 | F35: 4089648 | G35: 4104423.5 | H35: 4059785 | I35: 5422843.5 | J35: 7016633.004 | K35: 7236625.276 | L35: 6516654.527 | M35: 6194661.109 | N35: 6062061.369 | P35: 0 | Q35: 0 | R35: 0 | S35: 0 | T35: 0 | U35: 0 | V35: 0 | W35: 0 | X35: 0 | Y35: 0 | Z35: 0 | AA35: 0
A36: DREV0206 | B36: Revenue from Other Customers | C36: 0 | D36: 0 | E36: 0 | F36: 0 | G36: 0 | H36: 0 | I36: 0 | J36: 0 | K36: 0 | L36: 0 | M36: 0 | N36: 0 | P36: 14446143.5 | Q36: 15089211 | R36: 16194141 | S36: 17831568 | T36: 19465481.5 | U36: 21341845 | V36: 21299972 | W36: 20943014.34 | X36: 21048882.33 | Y36: 19180295.55 | Z36: 17398762.17 | AA36: 17769740.49
A37: DREV02 | B37: Total revenue by customer class | C37: =SUM(C31:C36) -> 314631479 | D37: =SUM(D31:D36) -> 330797933 | E37: 335390206 | F37: 359848345.5 | G37: 401098816.5 | H37: 433307226 | I37: 476661124.5 | J37: 542802747.9 | K37: =SUM(K31:K36) -> 617489731.8 | L37: 620285617.8 | M37: 614364473.5 | N37: 628319039.1 | P37: =SUM(P31:P36) -> 14446143.5 | Q37: =SUM(Q31:Q36) -> 15089211 | R37: =SUM(R31:R36) -> 16194141 | S37: =SUM(S31:S36) -> 17831568 | T37: =SUM(T31:T36) -> 19465481.5 | U37: =SUM(U31:U36) -> 21341845 | V37: =SUM(V31:V36) -> 21299972 | W37: =SUM(W31:W36) -> 20943014.34 | X37: 21048882.33 | Y37: 66484072.85 | Z37: 109385390.2 | AA37: 87689709.46
B39: 3.1.3 - REVENUE (penalties) ALLOWED (deducted) THROUGH INCENTIVE SCHEMES
C40: STANDARD CONTROL SERVICES | P40: ALTERNATIVE CONTROL SERVICES
C41: REVENUE ($0's) | P41: REVENUE ($0's)
C42: =dms_y1 -> 2006-07 | D42: =dms_y2 -> 2007-08 | E42: =dms_y3 -> 2008-09 | F42: =dms_y4 -> 2009-10 | G42: =dms_y5 -> 2010-11 | H42: =dms_y6 -> 2011-12 | I42: =dms_y7 -> 2012-13 | J42: =dms_y8 -> 2013-14 | K42: =dms_y9 -> 2014-15 | L42: =dms_y10 -> 2015-16 | M42: =dms_y11 -> 2016-17 | N42: =dms_y12 -> 2017-18 | P42: =dms_y1 -> 2006-07 | Q42: =dms_y2 -> 2007-08 | R42: =dms_y3 -> 2008-09 | S42: =dms_y4 -> 2009-10 | T42: =dms_y5 -> 2010-11 | U42: =dms_y6 -> 2011-12 | V42: =dms_y7 -> 2012-13 | W42: =dms_y8 -> 2013-14 | X42: =dms_y9 -> 2014-15 | Y42: =dms_y10 -> 2015-16 | Z42: =dms_y11 -> 2016-17 | AA42: =dms_y12 -> 2017-18
A43: DREV0301 | B43: EBSS | C43: 6281773 | D43: 6273557.5 | E43: 6256595.5 | F43: 6244663 | G43: 1327537 | H43: -3706080 | I43: -3973458 | J43: -4334503.974 | K43: -4797513.461 | L43: 29188.97276 | M43: 5166203.426 | N43: 5308109.456 | P43: 0 | Q43: 0 | R43: 0 | S43: 0 | T43: 0 | U43: 0 | V43: 0 | W43: 0 | X43: 0 | Y43: 0 | Z43: 0 | AA43: 0
A44: DREV0302 | B44: STPIS | C44: 4925002 | D44: 985386.5 | E44: -6937176.5 | F44: 19537432.5 | G44: 23777311.5 | H44: 0 | I44: 7711187 | J44: 26571311.85 | K44: 33406263.29 | L44: 24083752.35 | M44: 29631357.62 | N44: 19835168.24 | P44: 0 | Q44: 0 | R44: 0 | S44: 0 | T44: 0 | U44: 0 | V44: 0 | W44: 0 | X44: 0 | Y44: 0 | Z44: 0 | AA44: 0
A45: DREV0303 | B45: F-Factor | C45: 0 | D45: 0 | E45: 0 | F45: 0 | G45: 0 | H45: 0 | I45: 0 | J45: 1026739.692 | K45: 2007468.975 | L45: 1894568.988 | M45: 2622042.782 | N45: 2082208.793 | P45: 0 | Q45: 0 | R45: 0 | S45: 0 | T45: 0 | U45: 0 | V45: 0 | W45: 0 | X45: 0 | Y45: 0 | Z45: 0 | AA45: 0
A46: DREV0304 | B46: S-Factor True up | C46: 0 | D46: 0 | E46: 0 | F46: 0 | G46: 0 | H46: 0 | I46: 0 | J46: -3879710.863 | K46: -8187785.515 | L46: -5848874.8 | M46: -3117394.314 | N46: -3203023.356 | P46: 0 | Q46: 0 | R46: 0 | S46: 0 | T46: 0 | U46: 0 | V46: 0 | W46: 0 | X46: 0 | Y46: 0 | Z46: 0 | AA46: 0
A47: DREV0305 | B47: Other | C47: 0 | D47: 0 | E47: 0 | F47: 0 | G47: -3061542 | H47: -6325065.5 | I47: -6781392.5 | J47: -3517869 | K47: 0 | L47: 0 | M47: 0 | N47: 0 | P47: 0 | Q47: 0 | R47: 0 | S47: 0 | T47: 0 | U47: 0 | V47: 0 | W47: 0 | X47: 0 | Y47: 0 | Z47: 0 | AA47: 0
A48: DREV03 | B48: Total revenue of incentive schemes | C48: =SUM(C43:C47) -> 11206775 | D48: =SUM(D43:D47) -> 7258944 | E48: -680581 | F48: 25782095.5 | G48: 22043306.5 | H48: -10031145.5 | I48: -3043663.5 | J48: 15865967.7 | K48: =SUM(K43:K47) -> 22428433.29 | L48: 20158635.51 | M48: 34302209.52 | N48: 24022463.13 | P48: =SUM(P43:P47) -> 0 | Q48: =SUM(Q43:Q47) -> 0 | R48: =SUM(R43:R47) -> 0 | S48: =SUM(S43:S47) -> 0 | T48: =SUM(T43:T47) -> 0 | U48: =SUM(U43:U47) -> 0 | V48: =SUM(V43:V47) -> 0 | W48: =SUM(W43:W47) -> 0 | X48: 0 | Y48: 0 | Z48: 0 | AA48: 0

Sheet 3.2 Operating expenditure
B1: =INDEX(dms_Worksheet_List,MATCH(dms_Model,dms_Model_List)) -> REALLOCATED HISTORICAL ECONOMIC BENCHMARKING
B2: =INDEX(dms_TradingNameFull_List,MATCH(dms_TradingName,dms_TradingName_List)) -> AusNet Electricity Services Pty Ltd
B3: =dms_Header_Span -> 2006-07 to 2018-19
B4: 3.2 OPERATING EXPENDITURE
B6: There are THREE tables on this worksheet. Each has been grouped for ease of navigation. see the Instructions sheet on how to group or ungroup tables.
B8: Instructions
B9: Please list current opex categories in tables 3.2.1 and 3.2.2 and provide opex data as required. Where opex categories have changed at any time during the regulatory period, list previous opex categories in the 'Historical' sub-table and provide opex data as required.
B11: 3.2.1 - OPEX CATEGORIES
B12: CURRENT OPEX CATEGORIES AND COST ALLOCATIONS
D13: STANDARD CONTROL SERVICES | Q13: ALTERNATIVE CONTROL SERVICES
D14: EXPENDITURE ($0's) | Q14: EXPENDITURE ($0's)
D15: =dms_y1 -> 2006-07 | E15: =dms_y2 -> 2007-08 | F15: =dms_y3 -> 2008-09 | G15: =dms_y4 -> 2009-10 | H15: =dms_y5 -> 2010-11 | I15: =dms_y6 -> 2011-12 | J15: =dms_y7 -> 2012-13 | K15: =dms_y8 -> 2013-14 | L15: =dms_y9 -> 2014-15 | M15: =dms_y10 -> 2015-16 | N15: =dms_y11 -> 2016-17 | O15: =dms_y12 -> 2017-18 | Q15: =dms_y1 -> 2006-07 | R15: =dms_y2 -> 2007-08 | S15: =dms_y3 -> 2008-09 | T15: =dms_y4 -> 2009-10 | U15: =dms_y5 -> 2010-11 | V15: =dms_y6 -> 2011-12 | W15: =dms_y7 -> 2012-13 | X15: =dms_y8 -> 2013-14 | Y15: =dms_y9 -> 2014-15 | Z15: =dms_y10 -> 2015-16 | AA15: =dms_y11 -> 2016-17 | AB15: =dms_y12 -> 2017-18
A16: DOPEX0101 | B16: Customer service | D16: 2734799.5 | E16: 3629207.5 | F16: 4216773.5 | G16: 4940991 | H16: 4264246.5 | I16: 2793341.5 | J16: 5922767.5 | K16: 9157411.472 | L16: 6908054.833 | M16: 5709521.066 | N16: 5943924.046 | O16: 5320301.34 | Q16: 0 | R16: 0 | S16: 0 | T16: 0 | U16: 0 | V16: 0 | W16: 0 | X16: 0 | Y16: 0 | Z16: 0 | AA16: 0 | AB16: 0
A17: DOPEX0102 | B17: Debt raising costs | D17: 0 | E17: 0 | F17: 0 | G17: 0 | H17: 0 | I17: 0 | J17: 0 | K17: 0 | L17: 0 | M17: 0 | N17: 0 | O17: 0 | Q17: 0 | R17: 0 | S17: 0 | T17: 0 | U17: 0 | V17: 0 | W17: 0 | X17: 0 | Y17: 0 | Z17: 0 | AA17: 0 | AB17: 0
A18: DOPEX0103 | B18: Network operating costs | D18: 36687456.5 | E18: 39790613.5 | F18: 40176991 | G18: 43295277 | H18: 42959414 | I18: 42395988.5 | J18: 46681395 | K18: 50067846.33 | L18: 54425958.38 | M18: 58787810.93 | N18: 58602932.14 | O18: 56082088 | Q18: 2405712.5 | R18: 2787164.5 | S18: 3018671 | T18: 3468495.5 | U18: 7276406 | V18: 7833040.5 | W18: 4782705 | X18: 4484838.472 | Y18: 4476006.879 | Z18: 4658746.913 | AA18: 4198037.416 | AB18: 4917954.145
A19: DOPEX0104 | B19: Advertising and marketing | D19: 1033519 | E19: 1316482 | F19: 1714261 | G19: 1372974 | H19: 829329.5 | I19: 512400 | J19: 308205.5 | K19: 519031.8718 | L19: 800758.9107 | M19: =480628.538899016+353353.870170584 -> 833982.4091 | N19: 695498.7902 | O19: 755059.53 | Q19: 0 | R19: 0 | S19: 0 | T19: 0 | U19: 0 | V19: 0 | W19: 0 | X19: 0 | Y19: 0 | Z19: 0 | AA19: 0 | AB19: 0
A20: DOPEX0105 | B20: Alternative control - other | D20: 0 | E20: 0 | F20: 0 | G20: 0 | H20: 0 | I20: 0 | J20: 0 | K20: 0 | L20: 0 | M20: 0 | N20: 0 | O20: 0 | Q20: 4443.5 | R20: 1348.5 | S20: 13311 | T20: 21749 | U20: 8438 | V20: 0 | W20: 0 | X20: 0 | Y20: 0 | Z20: 0 | AA20: 0 | AB20: 0
A21: DOPEX0106 | B21: Billing and revenue | D21: 455444.5 | E21: 616534.5 | F21: 809189 | G21: 816360.5 | H21: 555532.5 | I21: 333649 | J21: 446099 | K21: 453591.5216 | L21: 310338.7827 | M21: 446873.5861 | N21: 420948.325 | O21: 172686.33 | Q21: 0 | R21: 0 | S21: 0 | T21: 0 | U21: 0 | V21: 0 | W21: 0 | X21: 0 | Y21: 0 | Z21: 0 | AA21: 0 | AB21: 0
A22: DOPEX0107 | B22: GSL payments | D22: 3261038 | E22: 3195127 | F22: 5298417.5 | G22: 6446030 | H22: 3916733 | I22: 5136939 | J22: 5861007.5 | K22: 5714428.111 | L22: 5404557.793 | M22: 11036538.68 | N22: 10572145 | O22: 5031870 | Q22: 0 | R22: 0 | S22: 0 | T22: 0 | U22: 0 | V22: 0 | W22: 0 | X22: 0 | Y22: 0 | Z22: 0 | AA22: 0 | AB22: 0
A23: DOPEX0108 | B23: IT | D23: 6205010.5 | E23: 8316497 | F23: 7061570.5 | G23: 4694926 | H23: 11579458.5 | I23: 20156612 | J23: 22862633 | K23: 26982384.89 | L23: 32164284.72 | M23: 31058723.39 | N23: 25904547.91 | O23: 23654905.95 | Q23: 0 | R23: 0 | S23: 0 | T23: 0 | U23: 0 | V23: 0 | W23: 0 | X23: 0 | Y23: 0 | Z23: 5028346.956 | AA23: 13220304.9 | AB23: 14392213.6
A24: DOPEX0109 | B24: Licence fee | D24: 534595 | E24: 739795.5 | F24: 152213 | G24: 48079.5 | H24: 133646.5 | I24: -27131.5 | J24: 19100 | K24: 0 | L24: 0 | M24: 0 | N24: 0 | O24: 0 | Q24: 0 | R24: 0 | S24: 0 | T24: 0 | U24: 0 | V24: 0 | W24: 0 | X24: 0 | Y24: 0 | Z24: 0 | AA24: 0 | AB24: 0
A25: DOPEX0110 | B25: Non-network alternatives costs | D25: 0 | E25: 0 | F25: 0 | G25: 0 | H25: 18000 | I25: 305563.5 | J25: 403563.5 | K25: 903781.68 | L25: 1755545.37 | M25: 5971102.465 | N25: 9979279.905 | O25: 10349889.18 | Q25: 0 | R25: 0 | S25: 0 | T25: 0 | U25: 0 | V25: 0 | W25: 0 | X25: 0 | Y25: 0 | Z25: 0 | AA25: 0 | AB25: 0
A26: DOPEX0111 | B26: Regulatory | D26: 736015 | E26: 1936339.5 | F26: 1752464.5 | G26: 1935141.5 | H26: 1682450.5 | I26: 839411 | J26: 919945.5 | K26: 1521746 | L26: 1750841.293 | M26: 1449101.474 | N26: 1369352.957 | O26: 2089746.842 | Q26: 0 | R26: 0 | S26: 0 | T26: 0 | U26: 0 | V26: 0 | W26: 0 | X26: 0 | Y26: 0 | Z26: 0 | AA26: 0 | AB26: 0
A27: DOPEX0112 | B27: Regulatory reset | D27: 0 | E27: 0 | F27: 0 | G27: 0 | H27: 0 | I27: 0 | J27: 0 | K27: 0 | L27: 317398.675 | M27: 317398.675 | N27: 0 | O27: 0 | Q27: 0 | R27: 0 | S27: 0 | T27: 0 | U27: 0 | V27: 0 | W27: 0 | X27: 0 | Y27: 0 | Z27: 0 | AA27: 0 | AB27: 0
A28: DOPEX0113 | B28: Ami | D28: 12843803 | E28: 17444591 | F28: 23430611 | G28: 31954400 | H28: 36947436.5 | I28: 35081312 | J28: 34474674.5 | K28: 32516501.07 | L28: 28593973.68 | M28: 16284611.84 | N28: 6263227.757 | O28: 7224651.843 | Q28: 0 | R28: 0 | S28: 1298022.5 | T28: 2714020.5 | U28: 3037304.5 | V28: 3531954 | W28: 3849306 | X28: 3779913.976 | Y28: 4231368.333 | Z28: 11437758.6 | AA28: 11495099.7 | AB28: 4025589.916
A29: DOPEX0114 | D29: 0 | E29: 0 | F29: 0 | G29: 0 | H29: 0 | I29: 0 | J29: 0 | K29: 0 | L29: 0 | M29: 0 | N29: 0 | O29: 0 | Q29: 0 | R29: 0 | S29: 0 | T29: 0 | U29: 0 | V29: 0 | W29: 0 | X29: 0 | Y29: 0 | AA29: 0 | AB29: 0
A30: DOPEX0115 | B30: Bushfire & royal commission costs | D30: 0 | E30: 0 | F30: 3606738.5 | G30: 3856591 | H30: 307041.5 | I30: 90014 | J30: 90440.5 | K30: 57615.5 | L30: 0 | M30: 0 | N30: 0 | O30: 0 | Q30: 0 | R30: 0 | S30: 0 | T30: 0 | U30: 0 | V30: 0 | W30: 0 | X30: 0 | Y30: 0 | Z30: 0 | AA30: 0 | AB30: 0
A31: DOPEX0116 | B31: Maintenance - alternative control -other | D31: 0 | E31: 0 | F31: 0 | G31: 0 | H31: 0 | I31: 0 | J31: 0 | K31: 0 | L31: 0 | M31: 0 | N31: 0 | O31: 0 | Q31: 0 | R31: 0 | S31: 0 | T31: 0 | U31: 8340.5 | V31: 14385.5 | W31: 16085 | X31: 22596.87607 | Y31: 12556.87607 | Z31: 1397266.194 | AA31: 2431395.924 | AB31: 1819289.3
A32: DOPEX0117 | B32: Maintenance - ami | D32: 372808.5 | E32: 546115 | F32: 548022.5 | G32: 698738 | H32: 828449 | I32: 704897 | J32: 788167 | K32: 939278.6221 | L32: 1416651.481 | M32: 969335.8588 | N32: 0 | O32: 0 | Q32: 7608.5 | R32: 11145 | S32: 11184 | T32: 14260 | U32: 8566.5 | V32: 0 | W32: 0 | X32: 0 | Y32: 0 | Z32: 3238569.863 | AA32: 4264112.275 | AB32: 1584993.657
A33: DOPEX0118 | B33: Maintenance - bushfire costs | D33: 0 | E33: 0 | F33: 3232985 | G33: 4081704.5 | H33: 1017939 | I33: 206144 | J33: 36924.5 | K33: 0 | L33: 0 | M33: 0 | N33: 0 | O33: 0 | Q33: 0 | R33: 0 | S33: 0 | T33: 0 | U33: 0 | V33: 0 | W33: 0 | X33: 0 | Y33: 0 | Z33: 0 | AA33: 0 | AB33: 0
A34: DOPEX0119 | B34: Maintenance - condition based | D34: 18712376.5 | E34: 23593249 | F34: 30139519.5 | G34: 35440407.5 | H34: 35724519.5 | I34: 38723107.5 | J34: 48771429 | K34: 52450793.88 | L34: 49084999.07 | M34: 46198343.14 | N34: 46702209.74 | O34: 45196778.37 | Q34: 0 | R34: 0 | S34: 0 | T34: 0 | U34: 0 | V34: 0 | W34: 0 | X34: 0 | Y34: 0 | Z34: 0 | AA34: 0 | AB34: 0
A35: DOPEX0120 | B35: Maintenance - emergency | D35: 12544979.5 | E35: 13854789 | F35: 13117951.5 | G35: 12475467.5 | H35: 13772536 | I35: 15609333 | J35: 15971097.5 | K35: 15864241.48 | L35: 16105167.51 | M35: 17326857.17 | N35: 17947651.77 | O35: 17422067.61 | Q35: 0 | R35: 0 | S35: 0 | T35: 0 | U35: 0 | V35: 0 | W35: 0 | X35: 0 | Y35: 0 | Z35: 0 | AA35: 0 | AB35: 0
A36: DOPEX0121 | B36: Maintenance - public lighting | D36: 0 | E36: 0 | F36: 0 | G36: 0 | H36: 0 | I36: 0 | J36: 0 | K36: 0 | L36: 0 | M36: 0 | N36: 0 | O36: 0 | Q36: 2076037 | R36: 2306533.5 | S36: 1957980.5 | T36: 1600036 | U36: 1783734.5 | V36: 2246493 | W36: 2300760.5 | X36: 1986208.525 | Y36: 1821735.46 | Z36: 2004665.586 | AA36: 2142434.651 | AB36: 2652600.93
A37: DOPEX0122 | B37: Maintenance - routine | D37: 6460954 | E37: 7652376 | F37: 9128800.5 | G37: 10512746.5 | H37: 13701111.5 | I37: 13200977 | J37: 11363062 | K37: 12802606.68 | L37: 13573341.46 | M37: 15394863.95 | N37: 14223486.85 | O37: 10867601.33 | Q37: 0 | R37: 0 | S37: 0 | T37: 0 | U37: 0 | V37: 0 | W37: 0 | X37: 0 | Y37: 0 | Z37: 0 | AA37: 0 | AB37: 0
A38: DOPEX0123 | B38: Maintenance - scada/network control | D38: 97464.5 | E38: 114942 | F38: 75755 | G38: 27085 | H38: 25733 | I38: 11320 | J38: 17839 | K38: 26416.258 | L38: 165851.2491 | M38: 217940.6936 | N38: 140708.0522 | O38: 95896.11467 | Q38: 0 | R38: 0 | S38: 0 | T38: 0 | U38: 0 | V38: 0 | W38: 0 | X38: 0 | Y38: 0 | Z38: 0 | AA38: 0 | AB38: 0
A39: DOPEX0124 | B39: Other - standard control services | D39: 6014341 | E39: 6534527.5 | F39: 6618339 | G39: 9694152.5 | H39: 14537725.5 | I39: 17121896 | J39: 17756547.5 | K39: 22465736.84 | L39: 30945568.06 | M39: 32935271.75 | N39: 29854378.13 | O39: 26890338.29 | Q39: 0 | R39: 0 | S39: 0 | T39: 0 | U39: 0 | V39: 0 | W39: 0 | X39: 0 | Y39: 0 | Z39: 0 | AA39: 0 | AB39: 0
A40: DOPEX0125
A41: DOPEX0126
A42: DOPEX0127
A43: DOPEX0128
A44: DOPEX0129
A45: DOPEX0130
A46: DOPEX0131
A47: DOPEX0132
A48: DOPEX0133
A49: DOPEX0134
A50: DOPEX0135
A51: DOPEX0136
A52: DOPEX0137
A53: DOPEX0138
A54: DOPEX0139
A55: DOPEX0140
A56: DOPEX0141
A57: DOPEX0142
A58: DOPEX01 | B58: Total opex | D58: =SUM(D16:D57) -> 108694605 | E58: 129281186 | F58: 151080602.5 | G58: 172291072 | H58: 182801302.5 | I58: 193195773.5 | J58: 212694898 | K58: 232443412.2 | L58: =SUM(L16:L57) -> 243723291.3 | M58: 244938277.1 | N58: 228620291.4 | O58: 211153880.7 | Q58: =SUM(Q16:Q57) -> 4493801.5 | R58: =SUM(R16:R57) -> 5106191.5 | S58: =SUM(S16:S57) -> 6299169 | T58: =SUM(T16:T57) -> 7818561 | U58: =SUM(U16:U57) -> 12122790 | V58: =SUM(V16:V57) -> 13625873 | W58: =SUM(W16:W57) -> 10948856.5 | X58: =SUM(X16:X57) -> 10273557.85 | Y58: =SUM(Y16:Y57) -> 10541667.55 | Z58: 27765354.11 | AA58: 37751384.87 | AB58: 29392641.55
B60: A: HISTORICAL OPEX CATEGORIES AND COST ALLOCATIONS
D61: STANDARD CONTROL SERVICES | Q61: ALTERNATIVE CONTROL SERVICES
D62: EXPENDITURE ($0's) | Q62: EXPENDITURE ($0's)
D63: =dms_y1 -> 2006-07 | E63: =dms_y2 -> 2007-08 | F63: =dms_y3 -> 2008-09 | G63: =dms_y4 -> 2009-10 | H63: =dms_y5 -> 2010-11 | I63: =dms_y6 -> 2011-12 | J63: =dms_y7 -> 2012-13 | K63: =dms_y8 -> 2013-14 | L63: =dms_y9 -> 2014-15 | M63: =dms_y10 -> 2015-16 | N63: =dms_y11 -> 2016-17 | O63: =dms_y12 -> 2017-18 | Q63: =dms_y1 -> 2006-07 | R63: =dms_y2 -> 2007-08 | S63: =dms_y3 -> 2008-09 | T63: =dms_y4 -> 2009-10 | U63: =dms_y5 -> 2010-11 | V63: =dms_y6 -> 2011-12 | W63: =dms_y7 -> 2012-13 | X63: =dms_y8 -> 2013-14 | Y63: =dms_y9 -> 2014-15 | Z63: =dms_y10 -> 2015-16 | AA63: =dms_y11 -> 2016-17 | AB63: =dms_y12 -> 2017-18
A64: DOPEX0101 | B64: customer service | D64: 2734799.5 | E64: 3629207.5 | F64: 4216773.5 | G64: 4940991 | H64: 2676369.5 | I64: 0 | J64: 0 | K64: 0 | L64: 0 | M64: 0 | N64: 0 | O64: 0 | Q64: 0 | R64: 0 | S64: 0 | T64: 0 | U64: 0 | V64: 0 | W64: 0 | X64: 0 | Y64: 0 | Z64: 0 | AA64: 0 | AB64: 0
A65: DOPEX0102 | B65: network operating costs | D65: 36687456.5 | E65: 39790613.5 | F65: 40176991 | G65: 43295277 | H65: 21911133.5 | I65: 0 | J65: 0 | K65: 0 | L65: 0 | M65: 0 | N65: 0 | O65: 0 | Q65: 2405712.5 | R65: 2787164.5 | S65: 3018671 | T65: 3468495.5 | U65: 1947062 | V65: 0 | W65: 0 | X65: 0 | Y65: 0 | Z65: 0 | AA65: 0 | AB65: 0
A66: DOPEX0103 | B66: other | D66: 16015094 | E66: 18785930.5 | F66: 19130383 | G66: 20883224.5 | H66: 10319929 | I66: 0 | J66: 0 | K66: 0 | L66: 0 | M66: 0 | N66: 0 | O66: 0 | Q66: 4443.5 | R66: 1348.5 | S66: 13311 | T66: 21749 | U66: 8438 | V66: 0 | W66: 0 | X66: 0 | Y66: 0 | Z66: 0 | AA66: 0 | AB66: 0
A67: DOPEX0104 | B67: billing and revenue | D67: 455444.5 | E67: 616534.5 | F67: 809189 | G67: 816360.5 | H67: 368127 | I67: 0 | J67: 0 | K67: 0 | L67: 0 | M67: 0 | N67: 0 | O67: 0 | Q67: 0 | R67: 0 | S67: 0 | T67: 0 | U67: 0 | V67: 0 | W67: 0 | X67: 0 | Y67: 0 | Z67: 0 | AA67: 0 | AB67: 0
A68: DOPEX0105 | B68: meter data services | D68: 12843803 | E68: 17444591 | F68: 23430611 | G68: 31954400 | H68: 18859709 | I68: 0 | J68: 0 | K68: 0 | L68: 0 | M68: 0 | N68: 0 | O68: 0 | Q68: 0 | R68: 0 | S68: 1298022.5 | T68: 2714020.5 | U68: 1415998 | V68: 0 | W68: 0 | X68: 0 | Y68: 0 | Z68: 0 | AA68: 0 | AB68: 0
A69: DOPEX0106 | B69: regulatory | D69: 736015 | E69: 1936339.5 | F69: 1752464.5 | G69: 1935141.5 | H69: 1240956 | I69: 0 | J69: 0 | K69: 0 | L69: 0 | M69: 0 | N69: 0 | O69: 0 | Q69: 0 | R69: 0 | S69: 0 | T69: 0 | U69: 0 | V69: 0 | W69: 0 | X69: 0 | Y69: 0 | Z69: 0 | AA69: 0 | AB69: 0
A70: DOPEX0107 | B70: advertising & marketing | D70: 1033519 | E70: 1316482 | F70: 1714261 | G70: 1372974 | H70: 426233.5 | I70: 0 | J70: 0 | K70: 0 | L70: 0 | M70: 0 | N70: 0 | O70: 0 | Q70: 0 | R70: 0 | S70: 0 | T70: 0 | U70: 0 | V70: 0 | W70: 0 | X70: 0 | Y70: 0 | Z70: 0 | AA70: 0 | AB70: 0
A71: DOPEX0108 | B71: bushfire & royal commission costs | D71: 0 | E71: 0 | F71: 3606738.5 | G71: 3856591 | H71: 249852.5 | I71: 0 | J71: 0 | K71: 0 | L71: 0 | M71: 0 | N71: 0 | O71: 0 | Q71: 0 | R71: 0 | S71: 0 | T71: 0 | U71: 0 | V71: 0 | W71: 0 | X71: 0 | Y71: 0 | Z71: 0 | AA71: 0 | AB71: 0
A72: DOPEX0109 | B72: maintenance - metering - excluded services | D72: 0 | E72: 0 | F72: 0 | G72: 0 | H72: 0 | I72: 0 | J72: 0 | K72: 0 | L72: 0 | M72: 0 | N72: 0 | O72: 0 | Q72: 7608.5 | R72: 11145 | S72: 11184 | T72: 14260 | U72: 8566.5 | V72: 0 | W72: 0 | X72: 0 | Y72: 0 | Z72: 0 | AA72: 0 | AB72: 0
A73: DOPEX0110 | B73: maintenance - metering - rbpc | D73: 372808.5 | E73: 546115 | F73: 548022.5 | G73: 698738 | H73: 419756 | I73: 0 | J73: 0 | K73: 0 | L73: 0 | M73: 0 | N73: 0 | O73: 0 | Q73: 0 | R73: 0 | S73: 0 | T73: 0 | U73: 0 | V73: 0 | W73: 0 | X73: 0 | Y73: 0 | Z73: 0 | AA73: 0 | AB73: 0
A74: DOPEX0111 | B74: maintenance - public lighting | D74: 0 | E74: 0 | F74: 0 | G74: 0 | H74: 0 | I74: 0 | J74: 0 | K74: 0 | L74: 0 | M74: 0 | N74: 0 | O74: 0 | Q74: 2076037 | R74: 2306533.5 | S74: 1957980.5 | T74: 1600036 | U74: 642132.5 | V74: 0 | W74: 0 | X74: 0 | Y74: 0 | Z74: 0 | AA74: 0 | AB74: 0
A75: DOPEX0112 | B75: maintenance - rural – long | D75: 10798149 | E75: 12265355.5 | F75: 13343730 | G75: 13617264 | H75: 7361550.5 | I75: 0 | J75: 0 | K75: 0 | L75: 0 | M75: 0 | N75: 0 | O75: 0 | Q75: 0 | R75: 0 | S75: 0 | T75: 0 | U75: 0 | V75: 0 | W75: 0 | X75: 0 | Y75: 0 | Z75: 0 | AA75: 0 | AB75: 0
A76: DOPEX0113 | B76: maintenance - rural – short | D76: 11489199.5 | E76: 13679251.5 | F76: 19071248.5 | G76: 24386519.5 | H76: 13162672.5 | I76: 0 | J76: 0 | K76: 0 | L76: 0 | M76: 0 | N76: 0 | O76: 0 | Q76: 0 | R76: 0 | S76: 0 | T76: 0 | U76: 0 | V76: 0 | W76: 0 | X76: 0 | Y76: 0 | Z76: 0 | AA76: 0 | AB76: 0
A77: DOPEX0114 | B77: maintenance - scada/network control | D77: 97464.5 | E77: 114942 | F77: 75755 | G77: 27085 | H77: 20934 | I77: 0 | J77: 0 | K77: 0 | L77: 0 | M77: 0 | N77: 0 | O77: 0 | Q77: 0 | R77: 0 | S77: 0 | T77: 0 | U77: 0 | V77: 0 | W77: 0 | X77: 0 | Y77: 0 | Z77: 0 | AA77: 0 | AB77: 0
A78: DOPEX0115 | B78: maintenance - subtransmission | D78: 3849293 | E78: 4118798 | F78: 4377889 | G78: 4998857.5 | H78: 2707643 | I78: 0 | J78: 0 | K78: 0 | L78: 0 | M78: 0 | N78: 0 | O78: 0 | Q78: 0 | R78: 0 | S78: 0 | T78: 0 | U78: 0 | V78: 0 | W78: 0 | X78: 0 | Y78: 0 | Z78: 0 | AA78: 0 | AB78: 0
A79: DOPEX0116 | B79: maintenance - urban | D79: 11581669 | E79: 15037078.5 | F79: 15593473.5 | G79: 15425980.5 | H79: 8324418.5 | I79: 0 | J79: 0 | K79: 0 | L79: 0 | M79: 0 | N79: 0 | O79: 0 | Q79: 0 | R79: 0 | S79: 0 | T79: 0 | U79: 0 | V79: 0 | W79: 0 | X79: 0 | Y79: 0 | Z79: 0 | AA79: 0 | AB79: 0
A80: DOPEX0117 | B80: maintenance- bushfire costs | D80: 0 | E80: 0 | F80: 3232985 | G80: 4081704.5 | H80: 848719.5 | I80: 0 | J80: 0 | K80: 0 | L80: 0 | M80: 0 | N80: 0 | O80: 0 | Q80: 0 | R80: 0 | S80: 0 | T80: 0 | U80: 0 | V80: 0 | W80: 0 | X80: 0 | Y80: 0 | Z80: 0 | AA80: 0 | AB80: 0
A81: DOPEX0118
A82: DOPEX0119
A83: DOPEX0120
A84: DOPEX0121
A85: DOPEX0122
A86: DOPEX0123
A87: DOPEX0124
A88: DOPEX0125
A89: DOPEX0126
A90: DOPEX0127
A91: DOPEX0128
A92: DOPEX0129
A93: DOPEX0130
A94: DOPEX0131
A95: DOPEX0132
A96: DOPEX0133
A97: DOPEX0134
A98: DOPEX0135
A99: DOPEX0136
A100: DOPEX0137
A101: DOPEX0138
A102: DOPEX0139
A103: DOPEX0140
A104: DOPEX0141
A105: DOPEX0142
A106: DOPEX01 | B106: Total opex | D106: =SUM(D64:D105) -> 108694715 | E106: 129281239 | F106: 151080515 | G106: 172291108.5 | H106: 88898004 | I106: 0 | J106: 0 | K106: 0 | L106: =SUM(L64:L105) -> 0 | M106: 0 | N106: 0 | O106: 0 | Q106: =SUM(Q64:Q105) -> 4493801.5 | R106: 5106191.5 | S106: 6299169 | T106: 7818561 | U106: 4022197 | V106: 0 | W106: 0 | X106: 0 | Y106: 0 | Z106: 0 | AA106: 0 | AB106: 0
B108: B: HISTORICAL OPEX CATEGORIES AND COST ALLOCATIONS
D109: STANDARD CONTROL SERVICES | Q109: ALTERNATIVE CONTROL SERVICES
D110: EXPENDITURE ($0's) | Q110: EXPENDITURE ($0's)
D111: =dms_y1 -> 2006-07 | E111: =dms_y2 -> 2007-08 | F111: =dms_y3 -> 2008-09 | G111: =dms_y4 -> 2009-10 | H111: =dms_y5 -> 2010-11 | I111: =dms_y6 -> 2011-12 | J111: =dms_y7 -> 2012-13 | K111: =dms_y8 -> 2013-14 | L111: =dms_y9 -> 2014-15 | M111: =dms_y10 -> 2015-16 | N111: =dms_y11 -> 2016-17 | O111: =dms_y12 -> 2017-18 | Q111: =dms_y1 -> 2006-07 | R111: =dms_y2 -> 2007-08 | S111: =dms_y3 -> 2008-09 | T111: =dms_y4 -> 2009-10 | U111: =dms_y5 -> 2010-11 | V111: =dms_y6 -> 2011-12 | W111: =dms_y7 -> 2012-13 | X111: =dms_y8 -> 2013-14 | Y111: =dms_y9 -> 2014-15 | Z111: =dms_y10 -> 2015-16 | AA111: =dms_y11 -> 2016-17 | AB111: =dms_y12 -> 2017-18
A112: DOPEX0101
A113: DOPEX0102
A114: DOPEX0103
A115: DOPEX0104
A116: DOPEX0105
A117: DOPEX0106
A118: DOPEX0107
A119: DOPEX0108
A120: DOPEX0109
A121: DOPEX0110
A122: DOPEX0111
A123: DOPEX0112
A124: DOPEX0113
A125: DOPEX0114
A126: DOPEX0115
A127: DOPEX0116
A128: DOPEX0117
A129: DOPEX0118
A130: DOPEX0119
A131: DOPEX0120
A132: DOPEX0121
A133: DOPEX0122
A134: DOPEX0123
A135: DOPEX0124
A136: DOPEX0125
A137: DOPEX0126
A138: DOPEX0127
A139: DOPEX0128
A140: DOPEX0129
A141: DOPEX0130
A142: DOPEX0131
A143: DOPEX0132
A144: DOPEX0133
A145: DOPEX0134
A146: DOPEX0135
A147: DOPEX0136
A148: DOPEX0137
A149: DOPEX0138
A150: DOPEX0139
A151: DOPEX0140
A152: DOPEX0141
A153: DOPEX0142
A154: DOPEX01 | B154: Total opex | D154: =SUM(D112:D153) -> 0 | E154: 0 | F154: 0 | G154: 0 | H154: 0 | I154: 0 | J154: 0 | K154: 0 | L154: =SUM(L112:L153) -> 0 | M154: 0 | N154: 0 | O154: 0 | Q154: =SUM(Q112:Q153) -> 0 | R154: 0 | S154: 0 | T154: 0 | U154: 0 | V154: 0 | W154: 0 | X154: 0 | Y154: 0 | Z154: 0 | AA154: 0 | AB154: 0
B158: 3.2.2 - OPEX CONSISTENCY
B159: OPEX CONSISTENCY - CURRENT COST ALLOCATION APPROACH
D160: STANDARD CONTROL SERVICES | Q160: ALTERNATIVE CONTROL SERVICES
D161: EXPENDITURE ($0's) | Q161: EXPENDITURE ($0's)
D162: =dms_y1 -> 2006-07 | E162: =dms_y2 -> 2007-08 | F162: =dms_y3 -> 2008-09 | G162: =dms_y4 -> 2009-10 | H162: =dms_y5 -> 2010-11 | I162: =dms_y6 -> 2011-12 | J162: =dms_y7 -> 2012-13 | K162: =dms_y8 -> 2013-14 | L162: =dms_y9 -> 2014-15 | M162: =dms_y10 -> 2015-16 | N162: =dms_y11 -> 2016-17 | O162: =dms_y12 -> 2017-18 | Q162: =dms_y1 -> 2006-07 | R162: =dms_y2 -> 2007-08 | S162: =dms_y3 -> 2008-09 | T162: =dms_y4 -> 2009-10 | U162: =dms_y5 -> 2010-11 | V162: =dms_y6 -> 2011-12 | W162: =dms_y7 -> 2012-13 | X162: =dms_y8 -> 2013-14 | Y162: =dms_y9 -> 2014-15 | Z162: =dms_y10 -> 2015-16 | AA162: =dms_y11 -> 2016-17 | AB162: =dms_y12 -> 2017-18
A163: DOPEX0201 | B163: Opex for network services | D163: 92230000.24 | E163: 109613455.5 | F163: 126950410.5 | G163: 137871828.6 | H163: 140850089.7 | I163: 150522868.9 | J163: 168390242.9 | K163: 184690620.8 | L163: 197229137.3 | M163: 214313763.1 | N163: 210924747.2 | O163: 192028277.2 | Q163: 0 | R163: 0 | S163: 0 | T163: 0 | U163: 0 | V163: 0 | W163: 0 | X163: 0 | Y163: 0 | Z163: 0 | AA163: 0 | AB163: 0
A164: DOPEX0202 | B164: Opex for metering | D164: 15163262.5 | E164: 18342326 | F164: 22780873 | G164: 33050409 | H164: 40564882 | I164: 41261451.5 | J164: 42010298 | K164: 45440999.35 | L164: 45018532.12 | M164: 24337845.5 | N164: 6263227.757 | O164: 7224651.843 | Q164: 909731.5 | R164: 1421674 | S164: 2095284.5 | T164: 3244912 | U164: 4315939.5 | V164: 4700980.5 | W164: 4432844 | X164: 4136188.807 | Y164: 4379851.657 | Z164: 19786014.91 | AA164: 28979516.88 | AB164: 20002797.17
A165: DOPEX0203 | B165: Opex for connection services | D165: 1263262.761 | E165: 1286007.957 | F165: 1308652.003 | G165: 1327314.383 | H165: 1343816.308 | I165: 1367590.637 | J165: 1395208.136 | K165: 1412285.318 | L165: 1431176.97 | M165: 1613891.919 | N165: 2122409.455 | O165: 2567635.589 | Q165: 1952395 | R165: 1742722 | S165: 2065404.5 | T165: 2470140.5 | U165: 5325745.5 | V165: 5792444.5 | W165: 3412072 | X165: 3549108.897 | Y165: 3768611.841 | Z165: 4025202.997 | AA165: 3741878.161 | AB165: 2400238.029
A166: DOPEX0204 | B166: Opex for public lighting | D166: 0 | E166: 0 | F166: 0 | G166: 0 | H166: 0 | I166: 0 | J166: 0 | K166: 0 | L166: 0 | M166: 0 | N166: 0 | O166: 0 | Q166: 1447876 | R166: 1664162.5 | S166: 1798354.5 | T166: 1600036 | U166: 1783734.5 | V166: 2246493 | W166: 2300760.5 | X166: 1986208.525 | Y166: 1821735.46 | Z166: 2004665.586 | AA166: 2142434.651 | AB166: 2652600.93
A167: DOPEX0205 | B167: Opex for amounts payable for easement levy or similar direct charges on DNSP | D167: 0 | E167: 0 | F167: 0 | G167: 0 | H167: 0 | I167: 0 | J167: 0 | K167: 0 | L167: 0 | M167: 0 | N167: 0 | O167: 0 | Q167: 0 | R167: 0 | S167: 0 | T167: 0 | U167: 0 | V167: 0 | W167: 0 | X167: 0 | Y167: 0 | Z167: 0 | AA167: 0 | AB167: 0
A168: DOPEX0206 | B168: Opex for transmission connection point planning | D168: 38189.5 | E168: 39450 | F168: 40580 | G168: 41558 | H168: 42753.5 | I168: 43862 | J168: 44949 | K168: 45308.21 | L168: 44444.913 | M168: 59628.32 | N168: 65124.20025 | O168: 63082.89325 | Q168: 0 | R168: 0 | S168: 0 | T168: 0 | U168: 0 | V168: 0 | W168: 0 | X168: 0 | Y168: 0 | Z168: 0 | AA168: 0 | AB168: 0
B170: OPEX CONSISTENCY - A: HISTORICAL COST ALLOCATION APPROACH
D171: STANDARD CONTROL SERVICES | Q171: ALTERNATIVE CONTROL SERVICES
D172: EXPENDITURE ($0's) | Q172: EXPENDITURE ($0's)
D173: =dms_y1 -> 2006-07 | E173: =dms_y2 -> 2007-08 | F173: =dms_y3 -> 2008-09 | G173: =dms_y4 -> 2009-10 | H173: =dms_y5 -> 2010-11 | I173: =dms_y6 -> 2011-12 | J173: =dms_y7 -> 2012-13 | K173: =dms_y8 -> 2013-14 | L173: =dms_y9 -> 2014-15 | M173: =dms_y10 -> 2015-16 | N173: =dms_y11 -> 2016-17 | O173: =dms_y12 -> 2017-18 | Q173: =dms_y1 -> 2006-07 | R173: =dms_y2 -> 2007-08 | S173: =dms_y3 -> 2008-09 | T173: =dms_y4 -> 2009-10 | U173: =dms_y5 -> 2010-11 | V173: =dms_y6 -> 2011-12 | W173: =dms_y7 -> 2012-13 | X173: =dms_y8 -> 2013-14 | Y173: =dms_y9 -> 2014-15 | Z173: =dms_y10 -> 2015-16 | AA173: =dms_y11 -> 2016-17 | AB173: =dms_y12 -> 2017-18
A174: DOPEX0201 | B174: Opex for network services | D174: 92230000.24 | E174: 109613455.5 | F174: 126950410.5 | G174: 137871828.6 | H174: 140850089.7 | I174: 150522868.9 | J174: 168390242.9 | L174: 0 | M174: 0 | N174: 0 | O174: 0 | Q174: 0 | R174: 0 | S174: 0 | T174: 0 | U174: 0 | V174: 0 | W174: 0 | X174: 0 | Y174: 0 | Z174: 0 | AA174: 0 | AB174: 0
A175: DOPEX0202 | B175: Opex for metering | D175: 15163262.5 | E175: 18342326 | F175: 22780873 | G175: 33050409 | H175: 40564882 | I175: 41261451.5 | J175: 42010298 | L175: 0 | M175: 0 | N175: 0 | O175: 0 | Q175: 909731.5 | R175: 1421674 | S175: 2095284.5 | T175: 3244912 | U175: 4315939.5 | V175: 4700980.5 | W175: 4432844 | X175: 2227789.5 | Y175: 0 | Z175: 0 | AA175: 0 | AB175: 0
A176: DOPEX0203 | B176: Opex for connection services | D176: 1263262.761 | E176: 1286007.957 | F176: 1308652.003 | G176: 1327314.383 | H176: 1343816.308 | I176: 1367590.637 | J176: 1395208.136 | L176: 0 | M176: 0 | N176: 0 | O176: 0 | Q176: 1952395 | R176: 1742722 | S176: 2065404.5 | T176: 2470140.5 | U176: 5325745.5 | V176: 5792444.5 | W176: 3412072 | X176: 1697414 | Y176: 0 | Z176: 0 | AA176: 0 | AB176: 0
A177: DOPEX0204 | B177: Opex for public lighting | D177: 0 | E177: 0 | F177: 0 | G177: 0 | H177: 0 | I177: 0 | J177: 0 | L177: 0 | M177: 0 | N177: 0 | O177: 0 | Q177: 1447876 | R177: 1664162.5 | S177: 1798354.5 | T177: 1600036 | U177: 1783734.5 | V177: 2246493 | W177: 2300760.5 | X177: 1195869.5 | Y177: 0 | Z177: 0 | AA177: 0 | AB177: 0
A178: DOPEX0205 | B178: Opex for amounts payable for easement levy or similar direct charges on DNSP | D178: 3764670.5 | E178: 4697957 | F178: 5158770.5 | G178: 7775193.5 | H178: 10858836.5 | I178: 12197668 | J178: 12919670.5 | L178: 0 | M178: 0 | N178: 0 | O178: 0 | Q178: 0 | R178: 0 | S178: 0 | T178: 0 | U178: 0 | V178: 0 | W178: 0 | X178: 0 | Y178: 0 | Z178: 0 | AA178: 0 | AB178: 0
A179: DOPEX0206 | B179: Opex for transmission connection point planning | D179: 38189.5 | E179: 39450 | F179: 40580 | G179: 41558 | H179: 42753.5 | I179: 43862 | J179: 44949 | L179: 0 | M179: 0 | N179: 0 | O179: 0 | Q179: 0 | R179: 0 | S179: 0 | T179: 0 | U179: 0 | V179: 0 | W179: 0 | X179: 0 | Y179: 0 | Z179: 0 | AA179: 0 | AB179: 0
B181: OPEX CONSISTENCY - B: HISTORICAL COST ALLOCATION APPROACH
D182: STANDARD CONTROL SERVICES | Q182: ALTERNATIVE CONTROL SERVICES
D183: EXPENDITURE ($0's) | Q183: EXPENDITURE ($0's)
D184: =dms_y1 -> 2006-07 | E184: =dms_y2 -> 2007-08 | F184: =dms_y3 -> 2008-09 | G184: =dms_y4 -> 2009-10 | H184: =dms_y5 -> 2010-11 | I184: =dms_y6 -> 2011-12 | J184: =dms_y7 -> 2012-13 | K184: =dms_y8 -> 2013-14 | L184: =dms_y9 -> 2014-15 | M184: =dms_y10 -> 2015-16 | N184: =dms_y11 -> 2016-17 | O184: =dms_y12 -> 2017-18 | Q184: =dms_y1 -> 2006-07 | R184: =dms_y2 -> 2007-08 | S184: =dms_y3 -> 2008-09 | T184: =dms_y4 -> 2009-10 | U184: =dms_y5 -> 2010-11 | V184: =dms_y6 -> 2011-12 | W184: =dms_y7 -> 2012-13 | X184: =dms_y8 -> 2013-14 | Y184: =dms_y9 -> 2014-15 | Z184: =dms_y10 -> 2015-16 | AA184: =dms_y11 -> 2016-17 | AB184: =dms_y12 -> 2017-18
A185: DOPEX0201 | B185: Opex for network services
A186: DOPEX0202 | B186: Opex for metering
A187: DOPEX0203 | B187: Opex for connection services
A188: DOPEX0204 | B188: Opex for public lighting
A189: DOPEX0205 | B189: Opex for amounts payable for easement levy or similar direct charges on DNSP
A190: DOPEX0206 | B190: Opex for transmission connection point planning
B194: 3.2.4 - OPEX FOR HIGH VOLTAGE CUSTOMERS
D195: End user costs (not standard control services)
A196: DOPEX0401 | B196: Opex for high voltage customers | D196: 192131 | E196: 200299 | F196: 266003 | G196: 283797 | H196: 299896 | I196: 244991 | J196: 188662 | K196: 193760.4067 | L196: 222107.2664 | M196: 246984.2692 | N196: 236865.2639 | O196: 230051.5257

Sheet 3.2.3 Provisions
B1: =INDEX(dms_Worksheet_List,MATCH(dms_Model,dms_Model_List)) -> REALLOCATED HISTORICAL ECONOMIC BENCHMARKING
B2: =INDEX(dms_TradingNameFull_List,MATCH(dms_TradingName,dms_TradingName_List)) -> AusNet Electricity Services Pty Ltd
B3: =dms_Header_Span -> 2006-07 to 2018-19
B4: 3.2 OPERATING EXPENDITURE
B6: There is ONE table on this worksheet. Each Provision has been grouped for ease of navigation. see the Instructions sheet on how to group or ungroup tables.
B8: 3.2.3 - PROVISIONS
B9: For each provision report:
C10: $0's
C11: =dms_y1 -> 2006-07 | D11: =dms_y2 -> 2007-08 | E11: =dms_y3 -> 2008-09 | F11: =dms_y4 -> 2009-10 | G11: =dms_y5 -> 2010-11 | H11: =dms_y6 -> 2011-12 | I11: =dms_y7 -> 2012-13 | J11: =dms_y8 -> 2013-14 | K11: =dms_y9 -> 2014-15 | L11: =dms_y10 -> 2015-16 | M11: =dms_y11 -> 2016-17 | N11: =dms_y12 -> 2017-18
A12: DOPEX03A | B12: Provision - Employee Entitlements
B13: Provisions for employee entitlements are liabilities for wages and salaries, including non-monetary benefits and annual leave recognised in respect of employees’ services up to the reporting date and are measured at the amounts expected to be paid when the liabilities are settled.
A14: DOPEX0301A | B14: Opening balance (the carrying amount at the beginning of the period) | C14: 12887234 | D14: 16023302 | E14: 18750660.5 | F14: 20518773.5 | G14: 22284016 | H14: 25003765 | I14: 27986571 | J14: 30012937 | K14: 31500559.75 | L14: =K31 -> 33634681.88 | M14: =L31 -> 35116801.86 | N14: =M31 -> 36212783.97
B15: Additional provisions made in the period, including increases to existing provisions
A16: DOPEX0302A | B16: Opex component | C16: 4552397 | D16: 4902033 | E16: 5000175 | F16: 5671137 | G16: 6169247.5 | H16: 5757416 | I16: 6510684 | J16: 8104094.365 | K16: 6959225.448 | L16: 18949613.1 | M16: 22634523.88 | N16: 12059124.92
A17: DOPEX0303A | B17: Capex component | C17: 1382724.5 | D17: 1799825 | E17: 1884293.5 | F17: 1948355.5 | G17: 2127226.5 | H17: 2177574 | I17: 2781629.5 | J17: 3158560.165 | K17: 2469051.727 | L17: 7363226.207 | M17: 9552435.11 | N17: 6435193.535
A18: DOPEX0304A | B18: Other component | C18: 0 | D18: 0 | E18: 0 | F18: 0 | G18: 0 | H18: 0 | I18: 0 | J18: 0 | K18: 0 | L18: 0 | M18: 0 | N18: 0
B19: Amounts used (that is, incurred and charged against the provision) during the period
A20: DOPEX0305A | B20: Opex component | C20: -2030802 | D20: -2883625.5 | E20: -3716189.5 | F20: -4355769 | G20: -4157657.5 | H20: -3592551.5 | I20: -5076219.5 | J20: -6341648.884 | K20: -8567978.251 | L20: -20654884.19 | M20: -20135992.33 | N20: -9803748.602
A21: DOPEX0306A | B21: Capex component | C21: -768251.5 | D21: -1090874 | E21: -1400166 | F21: -1498481 | G21: -1419067.5 | H21: -1359632.5 | I21: -2189728 | J21: -2509221.799 | K21: -2726075.48 | L21: -7585772.534 | M21: -8416520.691 | N21: -5242938.623
A22: DOPEX0307A | B22: Other component | C22: 0 | D22: 0 | E22: 0 | F22: 0 | G22: 0 | H22: 0 | I22: 0 | J22: 0 | K22: 0 | L22: 0 | M22: 0 | N22: 0
B23: Unused amounts reversed during the period
A24: DOPEX0308A | B24: Opex component | C24: 0 | D24: 0 | E24: 0 | F24: 0 | G24: 0 | H24: 0 | I24: 0 | J24: -1072994.076 | K24: 2777063.202 | L24: 2758857.544 | M24: -1771480.668 | N24: -1557020.369
A25: DOPEX0309A | B25: Capex component | C25: 0 | D25: 0 | E25: 0 | F25: 0 | G25: 0 | H25: 0 | I25: 0 | J25: -350356.583 | K25: 723644.92 | L25: 651079.845 | M25: -766983.1822 | N25: -841450.8272
A26: DOPEX0310A | B26: Other component | C26: 0 | D26: 0 | E26: 0 | F26: 0 | G26: 0 | H26: 0 | I26: 0 | J26: 0 | K26: 0 | L26: 0 | M26: 0 | N26: 0
B27: The increase during the period in the discounted amount arising from the passage of time and the effect of any change in the discount rate
A28: DOPEX0311A | B28: Opex component | C28: 0 | D28: 0 | E28: 0 | F28: 0 | G28: 0 | H28: 0 | I28: 0 | J28: 0 | K28: 0 | L28: 0 | M28: 0 | N28: 0
A29: DOPEX0312A | B29: Capex component | C29: 0 | D29: 0 | E29: 0 | F29: 0 | G29: 0 | H29: 0 | I29: 0 | J29: 0 | K29: 0 | L29: 0 | M29: 0 | N29: 0
A30: DOPEX0313A | B30: Other component | C30: 0 | D30: 0 | E30: 0 | F30: 0 | G30: 0 | H30: 0 | I30: 0 | J30: 499190.5645 | K30: 499190.5645 | L30: 0 | M30: 0 | N30: 0
A31: DOPEX0314A | B31: Closing balance (carrying amount at the end of the period) | C31: 16023302 | D31: 18750660.5 | E31: 20518773.5 | F31: 22284016 | G31: 25003765 | H31: 27986571 | I31: 30012937 | J31: 31500560.75 | K31: =SUM(K14:K30) -> 33634681.88 | L31: =SUM(L14:L30) -> 35116801.86 | M31: 36212783.97 | N31: 37261944
A32: DOPEX03B | B32: Provision - Uninsured Losses
B33: Provision for uninsured losses is for direct or indirect claims made against AusNet Services for personal, injury, property damage or financial loss, including public liability claims.
A34: DOPEX0301B | B34: Opening balance (the carrying amount at the beginning of the period) | C34: 2406775 | D34: 2546059 | E34: 1403414 | F34: 1367031.5 | G34: 1719470 | H34: 1703086.5 | I34: 1575919.5 | J34: 1584637.5 | K34: 1438127.535 | L34: =K51 -> 1288241.222 | M34: =L51 -> 1357450.374 | N34: =M51 -> 1236450.374
B35: Additional provisions made in the period, including increases to existing provisions
A36: DOPEX0302B | B36: Opex component | C36: 1896570.5 | D36: 243413 | E36: 351546.5 | F36: 768150.5 | G36: 348972 | H36: 256194.5 | I36: 498616 | J36: 613458.005 | K36: 681901.5428 | L36: 609650.0528 | M36: 339293.515 | N36: 576278.795
A37: DOPEX0303B | B37: Capex component | C37: 0 | D37: 0 | E37: 0 | F37: 0 | G37: 0 | H37: 0 | I37: 0 | J37: 0 | K37: 0 | L37: 0 | M37: 0 | N37: 0
A38: DOPEX0304B | B38: Other component | C38: 0 | D38: 0 | E38: 0 | F38: 0 | G38: 0 | H38: 0 | I38: 0 | J38: 0 | K38: 0 | L38: 0 | M38: 0 | N38: 0
B39: Amounts used (that is, incurred and charged against the provision) during the period
A40: DOPEX0305B | B40: Opex component | C40: -1730648 | D40: -1392644.5 | E40: -387929 | F40: -415712 | G40: -365355.5 | H40: -383361.5 | I40: -489898 | J40: -619322.777 | K40: -532196.5625 | L40: -381495.8005 | M40: -318473.235 | N40: -157986.995
A41: DOPEX0306B | B41: Capex component | C41: 0 | D41: 0 | E41: 0 | F41: 0 | G41: 0 | H41: 0 | I41: 0 | J41: 0 | K41: 0 | L41: 0 | M41: 0 | N41: 0
A42: DOPEX0307B | B42: Other component | C42: 0 | D42: 0 | E42: 0 | F42: 0 | G42: 0 | H42: 0 | I42: 0 | J42: 0 | K42: 0 | L42: 0 | M42: 0 | N42: 0
B43: Unused amounts reversed during the period
A44: DOPEX0308B | B44: Opex component | C44: -26638.5 | D44: 6586.5 | E44: 0 | F44: 0 | G44: 0 | H44: 0 | I44: 0 | J44: -140646.1931 | K44: -299591.2934 | L44: -158945.1004 | M44: -141820.28 | N44: -471644.005
A45: DOPEX0309B | B45: Capex component | C45: 0 | D45: 0 | E45: 0 | F45: 0 | G45: 0 | H45: 0 | I45: 0 | J45: 0 | K45: 0 | L45: 0 | M45: 0 | N45: 0
A46: DOPEX0310B | B46: Other component | C46: 0 | D46: 0 | E46: 0 | F46: 0 | G46: 0 | H46: 0 | I46: 0 | J46: 0 | K46: 0 | L46: 0 | M46: 0 | N46: 0
B47: The increase during the period in the discounted amount arising from the passage of time and the effect of any change in the discount rate
A48: DOPEX0311B | B48: Opex component | C48: 0 | D48: 0 | E48: 0 | F48: 0 | G48: 0 | H48: 0 | I48: 0 | J48: 0
A49: DOPEX0312B | B49: Capex component | C49: 0 | D49: 0 | E49: 0 | F49: 0 | G49: 0 | H49: 0 | I49: 0 | J49: 0
A50: DOPEX0313B | B50: Other component | C50: 0 | D50: 0 | E50: 0 | F50: 0 | G50: 0 | H50: 0 | I50: 0 | J50: 0
A51: DOPEX0314B | B51: Closing balance (carrying amount at the end of the period) | C51: 2546059 | D51: 1403414 | E51: 1367031.5 | F51: 1719470 | G51: 1703086.5 | H51: 1575919.5 | I51: 1584637.5 | J51: 1438126.535 | K51: =SUM(K34:K50) -> 1288241.222 | L51: =SUM(L34:L50) -> 1357450.374 | M51: =SUM(M34:M50) -> 1236450.374 | N51: =SUM(N34:N50) -> 1183098.169
A52: DOPEX03C | B52: Provision - Environmental Provisions
B53: This provision is used for environmental matters such as land remediation and asbestos removal and is based on advice from internal and external sources.
A54: DOPEX0301C | B54: Opening balance (the carrying amount at the beginning of the period) | C54: 3456150 | D54: 4996257.5 | E54: 4846365.5 | F54: 2967353 | G54: 3314656 | H54: 3486768 | I54: 3262033 | J54: 1694001 | K54: 355872.325 | L54: =K71 -> 163697.925 | M54: =L71 -> 0.1999999997 | N54: =M71 -> 0.1999999997
B55: Additional provisions made in the period, including increases to existing provisions
A56: DOPEX0302C | B56: Opex component | C56: 1937957.5 | D56: 1937957.5 | E56: 208837 | F56: 347303 | G56: 138466 | H56: 0 | I56: 0 | J56: 0 | K56: 0 | L56: 0 | M56: 0 | N56: 0
A57: DOPEX0303C | B57: Capex component | C57: 0 | D57: 0 | E57: 0 | F57: 0 | G57: 0 | H57: 0 | I57: 0 | J57: 0 | K57: 0 | L57: 0 | M57: 0 | N57: 0
A58: DOPEX0304C | B58: Other component | C58: 0 | D58: 0 | E58: 0 | F58: 0 | G58: 0 | H58: 0 | I58: 0 | J58: 0 | K58: 0 | L58: 0 | M58: 0 | N58: 0
B59: Amounts used (that is, incurred and charged against the provision) during the period
A60: DOPEX0305C | B60: Opex component | C60: 0 | D60: 0 | E60: 0 | F60: 0 | G60: 0 | H60: 0 | I60: 0 | J60: -28476.675 | K60: -28476.675 | L60: 0 | M60: 0 | N60: 0
A61: DOPEX0306C | B61: Capex component | C61: 0 | D61: 0 | E61: 0 | F61: 0 | G61: 0 | H61: 0 | I61: 0 | J61: 0 | K61: 0 | L61: 0 | M61: 0 | N61: 0
A62: DOPEX0307C | B62: Other component | C62: 0 | D62: 0 | E62: 0 | F62: 0 | G62: 0 | H62: 0 | I62: 0 | J62: 0 | K62: 0 | L62: 0 | M62: 0 | N62: 0
B63: Unused amounts reversed during the period
A64: DOPEX0308C | B64: Opex component | C64: -397850 | D64: -2087849.5 | E64: -2087849.5 | F64: 0 | G64: 0 | H64: -346308 | I64: -1671308 | J64: -1325000 | K64: -163697.725 | L64: -163697.725 | M64: 0 | N64: 0
A65: DOPEX0309C | B65: Capex component | C65: 0 | D65: 0 | E65: 0 | F65: 0 | G65: 0 | H65: 0 | I65: 0 | J65: 0 | K65: 0 | L65: 0 | M65: 0 | N65: 0
A66: DOPEX0310C | B66: Other component | C66: 0 | D66: 0 | E66: 0 | F66: 0 | G66: 0 | H66: 0 | I66: 0 | J66: 0 | K66: 0 | L66: 0 | M66: 0 | N66: 0
B67: The increase during the period in the discounted amount arising from the passage of time and the effect of any change in the discount rate
A68: DOPEX0311C | B68: Opex component | C68: 0 | D68: 0 | E68: 0 | F68: 0 | G68: 0 | H68: 0 | I68: 0 | J68: 0 | K68: 0 | L68: 0 | M68: 0 | N68: 0
A69: DOPEX0312C | B69: Capex component | C69: 0 | D69: 0 | E69: 0 | F69: 0 | G69: 0 | H69: 0 | I69: 0 | J69: 0 | K69: 0 | L69: 0 | M69: 0 | N69: 0
A70: DOPEX0313C | B70: Other component | C70: 0 | D70: 0 | E70: 0 | F70: 0 | G70: 33646 | H70: 121573 | I70: 103276 | J70: 15349 | K70: 0 | L70: 0 | M70: 0 | N70: 0
A71: DOPEX0314C | B71: Closing balance (carrying amount at the end of the period) | C71: 4996257.5 | D71: 4846365.5 | E71: 2967353 | F71: 3314656 | G71: 3486768 | H71: 3262033 | I71: 1694001 | J71: 355873.325 | K71: =SUM(K54:K70) -> 163697.925 | L71: =SUM(L54:L70) -> 0.1999999997 | M71: =SUM(M54:M70) -> 0.1999999997 | N71: =SUM(N54:N70) -> 0.1999999997
A72: DOPEX03D | B72: Provision - Miscellaneous
B73: Provision represents sundry matters including the provision of cross-boundary network charges.
A74: DOPEX0301D | B74: Opening balance (the carrying amount at the beginning of the period) | C74: 0 | D74: 46885 | E74: 46885 | F74: 0 | G74: -50000 | H74: 67469.5 | I74: 207022.5 | J74: 353576.5 | K74: 564604.07 | L74: =K91 -> 4415738.965 | M74: =L91 -> 6417881.25 | N74: =M91 -> 2372045.415
B75: Additional provisions made in the period, including increases to existing provisions
A76: DOPEX0302D | B76: Opex component | C76: 46885 | D76: 46885 | E76: 347250 | F76: 454250 | G76: 224469.5 | H76: 89553 | I76: 146554 | J76: 211027.57 | K76: 4329891.355 | L76: 7871711.675 | M76: 5380306.335 | N76: 3157497.735
A77: DOPEX0303D | B77: Capex component | C77: 0 | D77: 0 | E77: 0 | F77: 0 | G77: 0 | H77: 0 | I77: 0 | J77: 0 | K77: 0 | L77: 0 | M77: 0 | N77: 0
A78: DOPEX0304D | B78: Other component | C78: 0 | D78: 0 | E78: 0 | F78: 0 | G78: 0 | H78: 0 | I78: 0 | J78: 0 | K78: 0 | L78: 0 | M78: 0 | N78: 0
B79: Amounts used (that is, incurred and charged against the provision) during the period
A80: DOPEX0305D | B80: Opex component | C80: 0 | D80: -46885 | E80: -394135 | F80: -504250 | G80: -157000 | H80: 0 | I80: 0 | J80: 0 | K80: -478756.46 | L80: -5869569.39 | M80: -9073364.99 | N80: -3773677.06
A81: DOPEX0306D | B81: Capex component | C81: 0 | D81: 0 | E81: 0 | F81: 0 | G81: 0 | H81: 0 | I81: 0 | J81: 0 | K81: 0 | L81: 0 | M81: 0 | N81: 0
A82: DOPEX0307D | B82: Other component | C82: 0 | D82: 0 | E82: 0 | F82: 0 | G82: 0 | H82: 0 | I82: 0 | J82: 0 | K82: 0 | L82: 0 | M82: 0 | N82: 0
B83: Unused amounts reversed during the period
A84: DOPEX0308D | B84: Opex component | C84: 0 | D84: 0 | E84: 0 | F84: 0 | G84: 50000 | H84: 50000 | I84: 0 | J84: 0 | K84: 0 | L84: 0 | M84: -352777.18 | N84: -2355260.225
A85: DOPEX0309D | B85: Capex component | C85: 0 | D85: 0 | E85: 0 | F85: 0 | G85: 0 | H85: 0 | I85: 0 | J85: 0 | K85: 0 | L85: 0 | M85: 0 | N85: 0
A86: DOPEX0310D | B86: Other component | C86: 0 | D86: 0 | E86: 0 | F86: 0 | G86: 0 | H86: 0 | I86: 0 | J86: 0 | K86: 0 | L86: 0 | M86: 0 | N86: 0
B87: The increase during the period in the discounted amount arising from the passage of time and the effect of any change in the discount rate
A88: DOPEX0311D | B88: Opex component | C88: 0 | D88: 0 | E88: 0 | F88: 0 | G88: 0 | H88: 0 | I88: 0 | J88: 0 | K88: 0 | L88: 0 | M88: 0 | N88: 0
A89: DOPEX0312D | B89: Capex component | C89: 0 | D89: 0 | E89: 0 | F89: 0 | G89: 0 | H89: 0 | I89: 0 | J89: 0 | K89: 0 | L89: 0 | M89: 0 | N89: 0
A90: DOPEX0313D | B90: Other component | C90: 0 | D90: 0 | E90: 0 | F90: 0 | G90: 0 | H90: 0 | I90: 0 | J90: 0 | K90: 0 | L90: 0 | M90: 0 | N90: 0
A91: DOPEX0314D | B91: Closing balance (carrying amount at the end of the period) | C91: 46885 | D91: 46885 | E91: 0 | F91: -50000 | G91: 67469.5 | H91: 207022.5 | I91: 353576.5 | J91: 564604.07 | K91: =SUM(K74:K90) -> 4415738.965 | L91: =SUM(L74:L90) -> 6417881.25 | M91: =SUM(M74:M90) -> 2372045.415 | N91: =SUM(N74:N90) -> -599394.135
A92: DOPEX03E | B92: Provision - Customer Rebates
B93: Provision for customer rebates represents an assessment of the rebates payable to the customer for costs incurred by the customer in the construction of low voltage and high voltage infrastructure for turnkey projects in the electricity distribution network.
A94: DOPEX0301E | B94: Opening balance (the carrying amount at the beginning of the period) | C94: 0 | D94: 0 | E94: 1116299 | F94: 4203402.5 | G94: 5860762.5 | H94: 7835674 | I94: 8601271.5 | J94: 6861460 | K94: 7260766.195 | L94: =K111 -> 3938562.695 | M94: =L111 -> -1.862645149e-09 | N94: =M111 -> -1.862645149e-09
B95: Additional provisions made in the period, including increases to existing provisions
A96: DOPEX0302E | B96: Opex component | C96: 0 | D96: 0 | E96: 0 | F96: 0 | G96: 0 | H96: 0 | I96: 0 | J96: 0 | K96: 0 | L96: 0 | M96: 0 | N96: 0
A97: DOPEX0303E | B97: Capex component | C97: 0 | D97: 2077137.5 | E97: 6852246 | F97: 8795210.5 | G97: 12840477 | H97: 15289575.5 | I97: 13113512 | J97: 12580864.3 | K97: 11299281.79 | L97: 5362728.99 | M97: 0 | N97: 0
A98: DOPEX0304E | B98: Other component | C98: 0 | D98: 0 | E98: 0 | F98: 0 | G98: 0 | H98: 0 | I98: 0 | J98: 0 | K98: 0 | L98: 0 | M98: 0 | N98: 0
B99: Amounts used (that is, incurred and charged against the provision) during the period
A100: DOPEX0305E | B100: Opex component | C100: 0 | D100: 0 | E100: 0 | F100: 0 | G100: 0 | H100: 0 | I100: 0 | J100: 0 | K100: 0 | L100: 0 | M100: 0 | N100: 0
A101: DOPEX0306E | B101: Capex component | C101: 0 | D101: -960838.5 | E101: -3765142.5 | F101: -7137850.5 | G101: -10865565.5 | H101: -14523978 | I101: -14853323.5 | J101: -12181558.11 | K101: -14621485.29 | L101: -9301291.685 | M101: 0 | N101: 0
A102: DOPEX0307E | B102: Other component | C102: 0 | D102: 0 | E102: 0 | F102: 0 | G102: 0 | H102: 0 | I102: 0 | J102: 0 | K102: 0 | L102: 0 | M102: 0 | N102: 0
B103: Unused amounts reversed during the period
A104: DOPEX0308E | B104: Opex component | C104: 0 | D104: 0 | E104: 0 | F104: 0 | G104: 0 | H104: 0 | I104: 0 | J104: 0 | K104: 0 | L104: 0 | M104: 0 | N104: 0
A105: DOPEX0309E | B105: Capex component | C105: 0 | D105: 0 | E105: 0 | F105: 0 | G105: 0 | H105: 0 | I105: 0 | J105: 0 | K105: 0 | L105: 0 | M105: 0 | N105: 0
A106: DOPEX0310E | B106: Other component | C106: 0 | D106: 0 | E106: 0 | F106: 0 | G106: 0 | H106: 0 | I106: 0 | J106: 0 | K106: 0 | L106: 0 | M106: 0 | N106: 0
B107: The increase during the period in the discounted amount arising from the passage of time and the effect of any change in the discount rate
A108: DOPEX0311E | B108: Opex component | C108: 0 | D108: 0 | E108: 0 | F108: 0 | G108: 0 | H108: 0 | I108: 0 | J108: 0 | K108: 0 | L108: 0 | M108: 0 | N108: 0
A109: DOPEX0312E | B109: Capex component | C109: 0 | D109: 0 | E109: 0 | F109: 0 | G109: 0 | H109: 0 | I109: 0 | J109: 0 | K109: 0 | L109: 0 | M109: 0 | N109: 0
A110: DOPEX0313E | B110: Other component | C110: 0 | D110: 0 | E110: 0 | F110: 0 | G110: 0 | H110: 0 | I110: 0 | J110: 0 | K110: 0 | L110: 0 | M110: 0 | N110: 0
A111: DOPEX0314E | B111: Closing balance (carrying amount at the end of the period) | C111: 0 | D111: 1116299 | E111: 4203402.5 | F111: 5860762.5 | G111: 7835674 | H111: 8601271.5 | I111: 6861460 | J111: 7260766.195 | K111: =SUM(K94:K110) -> 3938562.695 | L111: =SUM(L94:L110) -> -1.862645149e-09 | M111: =SUM(M94:M110) -> -1.862645149e-09 | N111: =SUM(N94:N110) -> -1.862645149e-09
A112: DOPEX03F | B112: Provision - Superannuation
B113: The provision represents the superannuation liability of the defined benefit superannuation fund.
A114: DOPEX0301F | B114: Opening balance (the carrying amount at the beginning of the period) | C114: -1341367.5 | D114: -890867.5 | E114: 3648557 | F114: 13106787 | G114: 19056958.5 | H114: 22457335 | I114: 26816547.5 | J114: 14172420 | K114: 550734.3843 | L114: =K131 -> -6146750.058 | M114: =L131 -> -8644373.143 | N114: =M131 -> -14039794.45
B115: Additional provisions made in the period, including increases to existing provisions
A116: DOPEX0302F | B116: Opex component | C116: -276588 | D116: -4330585 | E116: -3954850 | F116: 926851 | G116: 929641.5 | H116: 598403.5 | I116: 1753964.5 | J116: 3134059.012 | K116: 5003363.524 | L116: 5187471.785 | M116: 2594373.887 | N116: 1879102.271
A117: DOPEX0303F | B117: Capex component | C117: -104633 | D117: -1638258 | E117: -1497091 | F117: 313140 | G117: 313241 | H117: 225916.5 | I117: 779248.5 | J117: 1217026.838 | K117: 1615485.598 | L117: 1784523.737 | M117: 1101281.965 | N117: 1016170.736
A118: DOPEX0304F | B118: Other component | C118: 0 | D118: 0 | E118: 0 | F118: 0 | G118: 0 | H118: 0 | I118: 0 | J118: 0 | K118: 0 | L118: 0 | M118: 0 | N118: 0
B119: Amounts used (that is, incurred and charged against the provision) during the period
A120: DOPEX0305F | B120: Opex component | C120: -162792.5 | D120: -162792.5 | E120: -1908416 | F120: -3994245.5 | G120: -3486712 | H120: -3101862.5 | I120: -3381559.5 | J120: -2732344.291 | K120: -3123053.552 | L120: -3138216.796 | M120: -1878528.979 | N120: -1669779.982
A121: DOPEX0306F | B121: Capex component | C121: -61584.5 | D121: -61584.5 | E121: -717010 | F121: -1367881.5 | G121: -1173689.5 | H121: -1177660 | I121: -1415770.5 | J121: -1104353.247 | K121: -1001329.125 | L121: -1071418.935 | M121: -823992.9976 | N121: -897338.1136
A122: DOPEX0307F | B122: Other component | C122: 0 | D122: 0 | E122: 0 | F122: 0 | G122: 0 | H122: 0 | I122: 0 | J122: 0 | K122: 0 | L122: 0 | M122: 0 | N122: 0
B123: Unused amounts reversed during the period
A124: DOPEX0308F | B124: Opex component | C124: -59146.5 | D124: 0 | E124: 0 | F124: 0 | G124: 0 | H124: 0 | I124: 0 | J124: 0 | K124: -104456.8546 | L124: -104456.8546 | M124: 0 | N124: 0
A125: DOPEX0309F | B125: Capex component | C125: 0 | D125: 0 | E125: 0 | F125: 0 | G125: 0 | H125: 0 | I125: 0 | J125: 0 | K125: -31284.9006 | L125: -31284.9006 | M125: 0 | N125: 0
A126: DOPEX0310F | B126: Other component | C126: 0 | D126: 0 | E126: 0 | F126: 0 | G126: 0 | H126: 0 | I126: 0 | J126: 0 | K126: 0 | L126: 0 | M126: 0 | N126: 0
B127: The increase during the period in the discounted amount arising from the passage of time and the effect of any change in the discount rate
A128: DOPEX0311F | B128: Opex component | C128: 0 | D128: 0 | E128: 0 | F128: 0 | G128: 0 | H128: 0 | I128: 0 | J128: 0 | K128: 0 | L128: 3515871.098 | M128: -3966769.392 | N128: -12200595.36
A129: DOPEX0312F | B129: Capex component | C129: 0 | D129: 0 | E129: 0 | F129: 0 | G129: 0 | H129: 0 | I129: 0 | J129: 0 | K129: 0 | L129: 1362663.487 | M129: -2421785.793 | N129: -6461025.913
A130: DOPEX0313F | B130: Other component | C130: 1115244.5 | D130: 10732644.5 | E130: 17535597 | F130: 10072307.5 | G130: 6817895.5 | H130: 7814415 | I130: -10380010.5 | J130: -12584073.93 | K130: -9056209.132 | L130: -10002775.7 | M130: 0 | N130: 0
A131: DOPEX0314F | B131: Closing balance (carrying amount at the end of the period) | C131: =SUM(C114:C130) -> -890867.5 | D131: =SUM(D114:D130) -> 3648557 | E131: 13106787 | F131: 19056958.5 | G131: 22457335 | H131: 26816547.5 | I131: 14172420 | J131: 2102734.384 | K131: =SUM(K114:K130) -> -6146750.058 | L131: =SUM(L114:L130) -> -8644373.143 | M131: =SUM(M114:M130) -> -14039794.45 | N131: =SUM(N114:N130) -> -32373260.81
A132: DOPEX03G | B132: Provision - Corporate Restructuring
B133: The provision represents the liabilities for transition of the shared information technology (IT) services into the core AusNet Services IT function.
A134: DOPEX0301G | B134: Opening balance (the carrying amount at the beginning of the period) | K134: -15272.3365 | L134: =K151 -> -15272.3365 | M134: 0 | N134: 0
B135: Additional provisions made in the period, including increases to existing provisions
A136: DOPEX0302G | B136: Opex component | K136: 1318781.266 | L136: 0 | M136: 0 | N136: 0
A137: DOPEX0303G | B137: Capex component | K137: 0 | L137: 0 | M137: 0 | N137: 0
A138: DOPEX0304G | B138: Other component | K138: 0 | L138: 0 | M138: 0 | N138: 0
B139: Amounts used (that is, incurred and charged against the provision) during the period
A140: DOPEX0305G | B140: Opex component | K140: -652898.0466 | L140: 15272.3365 | M140: 0 | N140: 0
A141: DOPEX0306G | B141: Capex component | K141: 0 | L141: 0 | M141: 0 | N141: 0
A142: DOPEX0307G | B142: Other component | K142: 0 | L142: 0 | M142: 0 | N142: 0
B143: Unused amounts reversed during the period
A144: DOPEX0308G | B144: Opex component | K144: -665883.2196 | L144: 0 | M144: 0 | N144: 0
A145: DOPEX0309G | B145: Capex component | K145: 0 | L145: 0 | M145: 0 | N145: 0
A146: DOPEX0310G | B146: Other component | K146: 0 | L146: 0 | M146: 0 | N146: 0
B147: The increase during the period in the discounted amount arising from the passage of time and the effect of any change in the discount rate
A148: DOPEX0311G | B148: Opex component
A149: DOPEX0312G | B149: Capex component
A150: DOPEX0313G | B150: Other component
A151: DOPEX0314G | B151: Closing balance (carrying amount at the end of the period) | K151: =SUM(K134:K150) -> -15272.3365 | L151: =SUM(L134:L150) -> 0 | M151: =SUM(M134:M150) -> 0 | N151: =SUM(N134:N150) -> 0
A152: DOPEX03H | B152: Provision - Doubtful Debts
B153: Provision for doubtful debts is an allowance that has been made for estimated unrecoverable amounts, determined by reference to past default experience of individual debtors.
A154: DOPEX0301H | B154: Opening balance (the carrying amount at the beginning of the period) | C154: 594 | D154: 1237.5 | E154: 1209.5 | F154: 14209.5 | G154: 14118.5 | H154: 1061 | I154: -52.5 | J154: -385.5 | K154: 22.28557767 | L154: =K171 -> 82.28557767 | M154: =L171 -> 626 | N154: =M171 -> 626
B155: Additional provisions made in the period, including increases to existing provisions
A156: DOPEX0302H | B156: Opex component | C156: 189.5 | D156: 135 | E156: 14040.5 | F156: 24604 | G156: 10967 | H156: 318 | I156: 891.5 | J156: 407.7855777 | K156: -483.7144223 | L156: 0 | M156: 0 | N156: 0
A157: DOPEX0303H | B157: Capex component | C157: 0 | D157: 0 | E157: 0 | F157: 0 | G157: 0 | H157: 0 | I157: 0 | J157: 0 | K157: 0 | L157: 0 | M157: 0 | N157: 0
A158: DOPEX0304H | B158: Other component | C158: 0 | D158: 0 | E158: 0 | F158: 0 | G158: 0 | H158: 0 | I158: 0 | J158: 0 | K158: 0 | L158: 0 | M158: 0 | N158: 0
B159: Amounts used (that is, incurred and charged against the provision) during the period
A160: DOPEX0305H | B160: Opex component | C160: 0 | D160: -163 | E160: -1040.5 | F160: -24695 | G160: -24024.5 | H160: -1431.5 | I160: -1224.5 | J160: 0 | K160: 543.7144223 | L160: 543.7144223 | M160: 0 | N160: 0
A161: DOPEX0306H | B161: Capex component | C161: 0 | D161: 0 | E161: 0 | F161: 0 | G161: 0 | H161: 0 | I161: 0 | J161: 0 | K161: 0 | L161: 0 | M161: 0 | N161: 0
A162: DOPEX0307H | B162: Other component | C162: 0 | D162: 0 | E162: 0 | F162: 0 | G162: 0 | H162: 0 | I162: 0 | J162: 0 | K162: 0 | L162: 0 | M162: 0 | N162: 0
B163: Unused amounts reversed during the period
A164: DOPEX0308H | B164: Opex component | C164: 454 | D164: 0 | E164: 0 | F164: 0 | G164: 0 | H164: 0 | I164: 0 | J164: 0 | K164: 0 | L164: 0 | M164: 0 | N164: 0
A165: DOPEX0309H | B165: Capex component | C165: 0 | D165: 0 | E165: 0 | F165: 0 | G165: 0 | H165: 0 | I165: 0 | J165: 0 | K165: 0 | L165: 0 | M165: 0 | N165: 0
A166: DOPEX0310H | B166: Other component | C166: 0 | D166: 0 | E166: 0 | F166: 0 | G166: 0 | H166: 0 | I166: 0 | J166: 0 | K166: 0 | L166: 0 | M166: 0 | N166: 0
B167: The increase during the period in the discounted amount arising from the passage of time and the effect of any change in the discount rate
A168: DOPEX0311H | B168: Opex component | C168: 0 | D168: 0 | E168: 0 | F168: 0 | G168: 0 | H168: 0 | I168: 0 | J168: 0 | K168: 0 | L168: 0 | M168: 0 | N168: 0
A169: DOPEX0312H | B169: Capex component | C169: 0 | D169: 0 | E169: 0 | F169: 0 | G169: 0 | H169: 0 | I169: 0 | J169: 0 | K169: 0 | L169: 0 | M169: 0 | N169: 0
A170: DOPEX0313H | B170: Other component | C170: 0 | D170: 0 | E170: 0 | F170: 0 | G170: 0 | H170: 0 | I170: 0 | J170: 0 | K170: 0 | L170: 0 | M170: 0 | N170: 0
A171: DOPEX0314H | B171: Closing balance (carrying amount at the end of the period) | C171: =SUM(C154:C170) -> 1237.5 | D171: =SUM(D154:D170) -> 1209.5 | E171: 14209.5 | F171: 14118.5 | G171: 1061 | H171: -52.5 | I171: -385.5 | J171: 22.28557767 | K171: =SUM(K154:K170) -> 82.28557767 | L171: =SUM(L154:L170) -> 626 | M171: =SUM(M154:M170) -> 626 | N171: =SUM(N154:N170) -> 626
A172: DOPEX03I | B172: Provision for Make good
B173: The provision represents the make good provisions for leases to restore the sites to their original condition at the end of the lease
A174: DOPEX0301I | B174: Opening balance (the carrying amount at the beginning of the period) | L174: =K191 -> 838615.645 | M174: =L191 -> 2857157.463 | N174: =M191 -> 5644589.636
B175: Additional provisions made in the period, including increases to existing provisions
A176: DOPEX0302I | B176: Opex component | K176: 844068.1 | L176: 2023994.273 | M176: 2899932.173 | N176: 1772965.995
A177: DOPEX0303I | B177: Capex component | K177: 0 | L177: 0 | M177: 0 | N177: 640456.3718
A178: DOPEX0304I | B178: Other component | K178: 0 | L178: 0 | M178: 0 | N178: 0
B179: Amounts used (that is, incurred and charged against the provision) during the period
A180: DOPEX0305I | B180: Opex component | K180: -5452.455 | L180: -5452.455 | M180: -102559.93 | N180: -102559.93
A181: DOPEX0306I | B181: Capex component | K181: 0 | L181: 0 | M181: 0 | N181: 0
A182: DOPEX0307I | B182: Other component | K182: 0 | L182: 0 | M182: 0 | N182: 0
B183: Unused amounts reversed during the period
A184: DOPEX0308I | B184: Opex component | K184: 0 | L184: 0 | M184: -9940.07 | N184: -85843.95
A185: DOPEX0309I | B185: Capex component | K185: 0 | L185: 0 | M185: 0 | N185: 0
A186: DOPEX0310I | B186: Other component | K186: 0 | L186: 0 | M186: 0 | N186: 0
B187: The increase during the period in the discounted amount arising from the passage of time and the effect of any change in the discount rate
A188: DOPEX0311I | B188: Opex component | K188: 0 | L188: 0 | M188: 0 | N188: 1339801
A189: DOPEX0312I | B189: Capex component | K189: 0 | L189: 0 | M189: 0 | N189: 0
A190: DOPEX0313I | B190: Other component | K190: 0 | L190: 0 | M190: 0 | N190: 0
A191: DOPEX0314I | B191: Closing balance (carrying amount at the end of the period) | K191: =SUM(K174:K190) -> 838615.645 | L191: =SUM(L174:L190) -> 2857157.463 | M191: =SUM(M174:M190) -> 5644589.636 | N191: =SUM(N174:N190) -> 9209409.123
A192: DOPEX03J | B192: Provisions - Other
B193: The provision represents cost for redundancy
A194: DOPEX0301J | B194: Opening balance (the carrying amount at the beginning of the period) | K194: 0 | L194: =K211 -> -25170.65 | M194: =L211 -> -87362.42 | N194: =M211 -> -230398.455
B195: Additional provisions made in the period, including increases to existing provisions
A196: DOPEX0302J | B196: Opex component | K196: 245420.17 | L196: 362844.11 | M196: 117423.94 | N196: 0
A197: DOPEX0303J | B197: Capex component | K197: 0 | L197: 0 | M197: 0 | N197: 0
A198: DOPEX0304J | B198: Other component | K198: -42971.62 | L198: -42971.62 | M198: 0 | N198: 0
B199: Amounts used (that is, incurred and charged against the provision) during the period
A200: DOPEX0305J | B200: Opex component | K200: -227619.2 | L200: -382064.26 | M200: -154445.06 | N200: 0
A201: DOPEX0306J | B201: Capex component | K201: 0 | L201: 0 | M201: 0 | N201: 0
A202: DOPEX0307J | B202: Other component | K202: 0 | L202: 0 | M202: 0 | N202: 0
... 169 more rows

Sheet 3.3 Assets (RAB)
B1: =INDEX(dms_Worksheet_List,MATCH(dms_Model,dms_Model_List)) -> REALLOCATED HISTORICAL ECONOMIC BENCHMARKING
B2: =INDEX(dms_TradingNameFull_List,MATCH(dms_TradingName,dms_TradingName_List)) -> AusNet Electricity Services Pty Ltd
B3: =dms_Header_Span -> 2006-07 to 2018-19
B4: 3.3 ASSETS
B6: There are FOUR tables on this worksheet. Both ROWS and COLUMNS in each have been grouped (and sub-grouped) for ease of navigation. see the Instructions sheet on how to group or ungroup tables.
B8: 3.3.1 - REGULATORY ASSET BASE VALUES
C9: Network services | P9: Standard control services | AC9: Alternative control services
C10: $0's, Nominal | P10: $0's, Nominal | AC10: $0's, Nominal
C11: =dms_y1 -> 2006-07 | D11: =dms_y2 -> 2007-08 | E11: =dms_y3 -> 2008-09 | F11: =dms_y4 -> 2009-10 | G11: =dms_y5 -> 2010-11 | H11: =dms_y6 -> 2011-12 | I11: =dms_y7 -> 2012-13 | J11: =dms_y8 -> 2013-14 | K11: =dms_y9 -> 2014-15 | L11: =dms_y10 -> 2015-16 | M11: =dms_y11 -> 2016-17 | N11: =dms_y12 -> 2017-18 | P11: =dms_y1 -> 2006-07 | Q11: =dms_y2 -> 2007-08 | R11: =dms_y3 -> 2008-09 | S11: =dms_y4 -> 2009-10 | T11: =dms_y5 -> 2010-11 | U11: =dms_y6 -> 2011-12 | V11: =dms_y7 -> 2012-13 | W11: =dms_y8 -> 2013-14 | X11: =dms_y9 -> 2014-15 | Y11: =dms_y10 -> 2015-16 | Z11: =dms_y11 -> 2016-17 | AA11: =dms_y12 -> 2017-18 | AC11: =dms_y1 -> 2006-07 | AD11: =dms_y2 -> 2007-08 | AE11: =dms_y3 -> 2008-09 | AF11: =dms_y4 -> 2009-10 | AG11: =dms_y5 -> 2010-11 | AH11: =dms_y6 -> 2011-12 | AI11: =dms_y7 -> 2012-13 | AJ11: =dms_y8 -> 2013-14 | AK11: =dms_y9 -> 2014-15 | AL11: =dms_y10 -> 2015-16 | AM11: =dms_y11 -> 2016-17 | AN11: =dms_y12 -> 2017-18
B12: For total asset base:
A13: DRAB0101 | B13: Opening value | C13: 1315153320 | D13: =C18 -> 1423717506 | E13: =D18 -> 1553298428 | F13: =E18 -> 1741756482 | G13: =F18 -> 1968010429 | H13: =G18 -> 2170660298 | I13: =H18 -> 2398730108 | J13: =I18 -> 2699710524 | K13: =J18 -> 3031996926 | L13: =K18 -> 3331595063 | M13: =L18 -> 3543887639 | N13: =M18 -> 3722118887 | P13: 1396020063 | Q13: =P18 -> 1488977310 | R13: =Q18 -> 1601615797 | S13: 1772018952 | T13: 1986709996 | U13: 2178749976 | V13: 2398730109 | W13: 2699710524 | X13: 3031996926 | Y13: 3331594708 | Z13: 3547886100 | AA13: 3730057019 | AC13: 1035730.5 | AD13: =AC18 -> 1737666 | AE13: =AD18 -> 2516551 | AF13: 3701863 | AG13: 5891437.5 | AH13: 7324586.5 | AI13: 7630500 | AJ13: 8578722 | AK13: 9129472.707 | AL13: 9183728.486 | AM13: 11526571.21 | AN13: =AM18 -> 16281782.07
A14: DRAB0102 | B14: Inflation addition | C14: 46028472.5 | D14: 40692552 | E14: 54265220.5 | F14: 52187038 | G14: 40675414.5 | H14: 68799929.5 | I14: 65231193 | J14: 56266315.96 | K14: 67769216.18 | L14: 62756165.33 | M14: 44277347.12 | N14: 55121492.01 | P14: 48809520.52 | Q14: 42667775.84 | R14: 55778030.05 | S14: 53299767.96 | T14: 41034745.88 | U14: 69025442.6 | V14: 65231193.21 | W14: 56266316.11 | X14: 67787326.36 | Y14: 62786071.2 | Z14: 44342854.34 | AA14: 55289121.46 | AC14: 0 | AD14: 0 | AE14: 0 | AF14: 0 | AG14: 0 | AH14: 0 | AI14: 0 | AJ14: 0 | AK14: 0 | AL14: 0 | AM14: 0 | AN14: 3086033.982
A15: DRAB0103 | B15: Straight line depreciation | C15: -61633071.5 | D15: -70126524 | E15: -77968658 | F15: -85649153 | G15: -109823089.5 | H15: -121507604.5 | I15: -92165779.5 | J15: -101260549.5 | K15: -132527649.4 | L15: -158441223.1 | M15: -176302243.5 | N15: -176416135.6 | P15: -80021059.18 | Q15: -89044182.03 | R15: -97536366.01 | S15: -105818759.6 | T15: -128286282.9 | U15: -129822795.5 | V15: -92165779.78 | W15: -101260549.6 | X15: -132546115.6 | Y15: -158478434.8 | Z15: -176434201.7 | AA15: -176659993.6 | AC15: -51101 | AD15: -79676 | AE15: -118010.5 | AF15: -166100 | AG15: -219288.5 | AH15: -279999 | AI15: -349889 | AJ15: -429130.2926 | AK15: -514633.0362 | AL15: -593949.5088 | AM15: -710458.2017 | AN15: -24234161.78
A16: DRAB0105 | B16: Actual additions (recognised in RAB) | C16: 124450151 | D16: 159316260 | E16: 212350491 | F16: 260286562 | G16: 272272884.5 | H16: 283076095 | I16: 332888492.5 | J16: 380285490.8 | K16: 364679792.7 | L16: 309830467.9 | M16: 312248287.2 | N16: 350421700.1 | P16: 124450284.9 | Q16: 159316393.8 | R16: 212350736.3 | S16: 267780841.2 | T16: 279766918.6 | U16: 283075597.4 | V16: 332887994.2 | W16: 380285490.4 | X16: 364679792.7 | Y16: 313836590.3 | Z16: 316254409.6 | AA16: 350421700.1 | AC16: 753036.5 | AD16: 858561 | AE16: 1303322.5 | AF16: 2355674.5 | AG16: 1652437.5 | AH16: 585912.5 | AI16: 1298111 | AJ16: 1508635 | AK16: 1770337.075 | AL16: 3609486.491 | AM16: 5465669.06 | AN16: 13672448.94
A17: DRAB0106 | B17: Disposals | C17: -281366 | D17: -301366 | E17: -189000 | F17: -570500 | G17: -475341 | H17: -2298609.5 | I17: -4973490.5 | J17: -3004855 | K17: -323221.9801 | L17: -1852834.48 | M17: -1992143.065 | N17: -432687.135 | P17: -281500 | Q17: -301500 | R17: -189245.377 | S17: -570805.842 | T17: -475401.64 | U17: -2298111.555 | V17: -4972992.205 | W17: -3004854.825 | X17: -323221.9801 | Y17: -1852834.48 | Z17: -1992143.065 | AA17: -432687.135 | AC17: 0 | AD17: 0 | AE17: 0 | AF17: 0 | AG17: 0 | AH17: 0 | AI17: 0 | AJ17: -528754 | AK17: -1201448.26 | AL17: -672694.26 | AM17: 0 | AN17: 0
A18: DRAB0107 | B18: Closing value | C18: =SUM(C13:C17) -> 1423717506 | D18: 1553298428 | E18: 1741756482 | F18: 1968010429 | G18: 2170660298 | H18: 2398730108 | I18: 2699710524 | J18: =SUM(J13:J17) -> 3031996926 | K18: 3331595063 | L18: 3543887639 | M18: 3722118887 | N18: =SUM(N13:N17) -> 3950813256 | P18: =SUM(P13:P17) -> 1488977310 | Q18: 1601615797 | R18: 1772018952 | S18: 1986709996 | T18: 2178749976 | U18: 2398730109 | V18: 2699710524 | W18: 3031996926 | X18: 3331594708 | AC18: =SUM(AC13:AC17) -> 1737666 | AD18: 2516551 | AE18: 3701863 | AF18: 5891437.5 | AG18: 7324586.5 | AH18: 7630500 | AI18: 8578722 | AJ18: 9129472.707 | AK18: 9183728.486 | AL18: 11526571.21 | AM18: 16281782.07 | AN18: 8806103.21
B21: 3.3.2 - ASSET VALUE ROLL FORWARD
C22: Network services | P22: Standard control services | AC22: Alternative control services
C23: $0's, Nominal | P23: $0's, Nominal | AC23: $0's, Nominal
C24: =dms_y1 -> 2006-07 | D24: =dms_y2 -> 2007-08 | E24: =dms_y3 -> 2008-09 | F24: =dms_y4 -> 2009-10 | G24: =dms_y5 -> 2010-11 | H24: =dms_y6 -> 2011-12 | I24: =dms_y7 -> 2012-13 | J24: =dms_y8 -> 2013-14 | K24: =dms_y9 -> 2014-15 | L24: =dms_y10 -> 2015-16 | M24: =dms_y11 -> 2016-17 | N24: =dms_y12 -> 2017-18 | P24: =dms_y1 -> 2006-07 | Q24: =dms_y2 -> 2007-08 | R24: =dms_y3 -> 2008-09 | S24: =dms_y4 -> 2009-10 | T24: =dms_y5 -> 2010-11 | U24: =dms_y6 -> 2011-12 | V24: =dms_y7 -> 2012-13 | W24: =dms_y8 -> 2013-14 | X24: =dms_y9 -> 2014-15 | Y24: =dms_y10 -> 2015-16 | Z24: =dms_y11 -> 2016-17 | AA24: =dms_y12 -> 2017-18 | AC24: =dms_y1 -> 2006-07 | AD24: =dms_y2 -> 2007-08 | AE24: =dms_y3 -> 2008-09 | AF24: =dms_y4 -> 2009-10 | AG24: =dms_y5 -> 2010-11 | AH24: =dms_y6 -> 2011-12 | AI24: =dms_y7 -> 2012-13 | AJ24: =dms_y8 -> 2013-14 | AK24: =dms_y9 -> 2014-15 | AL24: =dms_y10 -> 2015-16 | AM24: =dms_y11 -> 2016-17 | AN24: =dms_y12 -> 2017-18
B25: For overhead network assets less than 33kV
A26: DRAB0201 | B26: Opening value | C26: 557647263.5 | D26: 609064337.5 | E26: 667167026 | F26: 748372843.5 | G26: 848501819 | H26: 941529318 | I26: 1037437124 | J26: 1149576128 | K26: 1304447354 | L26: 1457404304 | M26: 1531665595 | N26: 1579180426 | P26: 557647263.5 | Q26: =P31 -> 609064337.5 | R26: =Q31 -> 667167026 | S26: 748372843.5 | T26: 848501819 | U26: 941529318 | V26: 1037437124 | W26: 1149576128 | X26: 1304447354 | Y26: 1457404304 | Z26: 1531665595 | AA26: =Z31 -> 1579180426 | AD26: =AC31 -> 0 | AE26: =AD31 -> 0 | AF26: 0 | AG26: 0 | AH26: 0 | AI26: 0 | AJ26: 0 | AK26: 0 | AL26: 0 | AM26: 0 | AN26: =AM31 -> 0
A27: DRAB0202 | B27: Inflation addition | C27: 19526394.5 | D27: 17376323.5 | E27: 23299579.5 | F27: 22408661 | G27: 17552225.5 | H27: 29854693 | I27: 28259695.5 | J27: 28947108.7 | K27: 39517793.98 | L27: 36766272.09 | M27: 25841506.81 | N27: 31129734.21 | P27: 19526394.5 | Q27: 17376323.5 | R27: 23299579.5 | S27: 22408661 | T27: 17552225.5 | U27: 29854693 | V27: 28259695.5 | W27: 28947108.7 | X27: 39517793.98 | Y27: 36766272.09 | Z27: 25841506.81 | AA27: 31129734.21
A28: DRAB0203 | B28: Straight line depreciation | C28: -18109591.5 | D28: -20015119.5 | E28: -22274511.5 | F28: -24670061 | G28: -28719228 | H28: -33210535.5 | I28: -27729097.5 | J28: -38042414.06 | K28: -57327537.57 | L28: -80448906.48 | M28: -86912347.93 | N28: -74009410.43 | P28: -18109591.5 | Q28: -20015119.5 | R28: -22274511.5 | S28: -24670061 | T28: -28719228 | U28: -33210535.5 | V28: -27729097.5 | W28: -38042414.06 | X28: -57327537.57 | Y28: -80448906.48 | Z28: -86912347.93 | AA28: -74009410.43
A29: DRAB0205 | B29: Actual additions (recognised in RAB) | C29: 50028355.5 | D29: 60769569 | E29: 80180749.5 | F29: 102390375.5 | G29: 104194501.5 | H29: 99648240.5 | I29: 113184441 | J29: 165157974.3 | K29: 170766693.4 | L29: 117943925.6 | M29: 108585671.8 | N29: 115392441.4 | P29: 50028355.5 | Q29: 60769569 | R29: 80180749.5 | S29: 102390375.5 | T29: 104194501.5 | U29: 99648240.5 | V29: 113184441 | W29: 165157974.3 | X29: 170766693.4 | Y29: 117943925.6 | Z29: 108585671.8 | AA29: 115392441.4
A30: DRAB0206 | B30: Disposals | C30: -28084.5 | D30: -28084.5 | E30: 0 | F30: 0 | G30: 0 | H30: -384591.5 | I30: -1576035 | J30: -1191443.5 | K30: 0 | L30: 0 | M30: 0 | N30: 0 | P30: -28084.5 | Q30: -28084.5 | R30: 0 | S30: 0 | T30: 0 | U30: -384591.5 | V30: -1576035 | W30: -1191443.5 | X30: 0 | Y30: 0 | Z30: 0 | AA30: 0
A31: DRAB0207 | B31: Closing value | C31: =SUM(C26:C30) -> 609064337.5 | D31: 667167026 | E31: 748372843.5 | F31: 848501819 | G31: 941529318 | H31: 1037437124 | I31: 1149576128 | J31: =SUM(J26:J30) -> 1304447354 | K31: 1457404304 | L31: 1531665595 | M31: 1579180426 | N31: =SUM(N26:N30) -> 1651693191 | P31: =SUM(P26:P30) -> 609064337.5 | Q31: 667167026 | R31: 748372843.5 | S31: 848501819 | T31: 941529318 | U31: 1037437124 | V31: 1149576128 | W31: 1304447354 | X31: 1457404304 | Y31: 1531665595 | Z31: 1579180426 | AA31: 1651693191 | AC31: =SUM(AC26:AC30) -> 0 | AD31: 0 | AE31: 0 | AF31: 0 | AG31: 0 | AH31: 0 | AI31: 0 | AJ31: 0 | AK31: 0 | AL31: 0 | AM31: 0 | AN31: 0
B32: For underground network assets less than 33kV
A33: DRAB0301 | B33: Opening value | C33: 355714917 | D33: =C38 -> 388513105.5 | E33: =D38 -> 425575948.5 | F33: =E38 -> 477375935 | G33: =F38 -> 541246723 | H33: =G38 -> 600587584 | I33: =H38 -> 661765751.5 | J33: =I38 -> 733297559.5 | K33: =J38 -> 797680555.6 | L33: =K38 -> 883134553.1 | M33: =L38 -> 987999606.3 | N33: =M38 -> 1072514795 | P33: 355714917 | Q33: =P38 -> 388513105.5 | R33: =Q38 -> 425575948.5 | S33: 477375935 | T33: 541246723 | U33: 600587584 | V33: 661765751.5 | W33: 733297559.5 | X33: 797680555.6 | Y33: 883134553.1 | Z33: 987999606.3 | AA33: =Z38 -> 1072514795 | AD33: =AC38 -> 0 | AE33: =AD38 -> 0 | AF33: 0 | AG33: 0 | AH33: 0 | AI33: 0 | AJ33: 0 | AK33: 0 | AL33: 0 | AM33: 0 | AN33: =AM38 -> 0
A34: DRAB0302 | B34: Inflation addition | C34: 12455597.5 | D34: 11084099 | E34: 14862456 | F34: 14294152.5 | G34: 11196304 | H34: 19043865.5 | I34: 18026440.5 | J34: 11913611.71 | K34: 10849751.07 | L34: 10094310.94 | M34: 7514603.583 | N34: 10348704.71 | P34: 12455597.5 | Q34: 11084099 | R34: 14862456 | S34: 14294152.5 | T34: 11196304 | U34: 19043865.5 | V34: 18026440.5 | W34: 11913611.71 | X34: 10849751.07 | Y34: 10094310.94 | Z34: 7514603.583 | AA34: 10348704.71
A35: DRAB0303 | B35: Straight line depreciation | C35: -11551840 | D35: -12767348 | E35: -14208580.5 | F35: -15736666 | G35: -18319569.5 | H35: -21184507.5 | I35: -17687979.5 | J35: -14216801.21 | K35: -15739479.6 | L35: -22087533.77 | M35: -25297925.98 | N35: -24300896.35 | P35: -11551840 | Q35: -12767348 | R35: -14208580.5 | S35: -15736666 | T35: -18319569.5 | U35: -21184507.5 | V35: -17687979.5 | W35: -14216801.21 | X35: -15739479.6 | Y35: -22087533.77 | Z35: -25297925.98 | AA35: -24300896.35
A36: DRAB0305 | B36: Actual additions (recognised in RAB) | C36: 31912345.5 | D36: 38764006.5 | E36: 51146111 | F36: 65313301.5 | G36: 66464126.5 | H36: 63564134.5 | I36: 72198676 | J36: 67446189.65 | K36: 90343725.94 | L36: 116858276.1 | M36: 102298511.2 | N36: 97234135.89 | P36: 31912345.5 | Q36: 38764006.5 | R36: 51146111 | S36: 65313301.5 | T36: 66464126.5 | U36: 63564134.5 | V36: 72198676 | W36: 67446189.65 | X36: 90343725.94 | Y36: 116858276.1 | Z36: 102298511.2 | AA36: 97234135.89
A37: DRAB0306 | B37: Disposals | C37: -17914.5 | D37: -17914.5 | E37: 0 | F37: 0 | G37: 0 | H37: -245325 | I37: -1005329 | J37: -760004 | K37: 0 | L37: 0 | M37: 0 | N37: 0 | P37: -17914.5 | Q37: -17914.5 | R37: 0 | S37: 0 | T37: 0 | U37: -245325 | V37: -1005329 | W37: -760004 | X37: 0 | Y37: 0 | Z37: 0 | AA37: 0
A38: DRAB0307 | B38: Closing value | C38: =SUM(C33:C37) -> 388513105.5 | D38: 425575948.5 | E38: 477375935 | F38: 541246723 | G38: 600587584 | H38: 661765751.5 | I38: 733297559.5 | J38: =SUM(J33:J37) -> 797680555.6 | K38: 883134553.1 | L38: 987999606.3 | M38: 1072514795 | N38: =SUM(N33:N37) -> 1155796739 | P38: =SUM(P33:P37) -> 388513105.5 | Q38: 425575948.5 | R38: 477375935 | S38: 541246723 | T38: 600587584 | U38: 661765751.5 | V38: 733297559.5 | W38: 797680555.6 | X38: 883134553.1 | Y38: 987999606.3 | Z38: 1072514795 | AA38: 1155796739 | AC38: =SUM(AC33:AC37) -> 0 | AD38: 0 | AE38: 0 | AF38: 0 | AG38: 0 | AH38: 0 | AI38: 0 | AJ38: 0 | AK38: 0 | AL38: 0 | AM38: 0 | AN38: 0
B39: For distribution substations and transformers
A40: DRAB0401 | B40: Opening value | C40: 174985034 | D40: 191119281.5 | E40: 209351418 | F40: 234833122 | G40: 266252754 | H40: 295444002 | I40: 325539066.5 | J40: 360727345 | K40: 393041677.7 | L40: 413182003.6 | M40: 423803848 | N40: 436746797.1 | P40: 174985034 | Q40: =P45 -> 191119281.5 | R40: =Q45 -> 209351418 | S40: 234833122 | T40: 266252754 | U40: 295444002 | V40: 325539066.5 | W40: 360727345 | X40: 393041677.7 | Y40: 413182003.6 | Z40: 423803848 | AA40: =Z45 -> 436746797.1 | AD40: =AC45 -> 0 | AE40: =AD45 -> 0 | AF40: 0 | AG40: 0 | AH40: 0 | AI40: 0 | AJ40: 0 | AK40: 0 | AL40: 0 | AM40: 0 | AN40: =AM45 -> 0
A41: DRAB0402 | B41: Inflation addition | C41: 6127219 | D41: 5452544.5 | E41: 7311212.5 | F41: 7031650 | G41: 5507741 | H41: 9368152 | I41: 8867655.5 | J41: 5982982.885 | K41: 5605475.167 | L41: 5215180.414 | M41: 3682362.195 | N41: 4552513.532 | P41: 6127219 | Q41: 5452544.5 | R41: 7311212.5 | S41: 7031650 | T41: 5507741 | U41: 9368152 | V41: 8867655.5 | W41: 5982982.885 | X41: 5605475.167 | Y41: 5215180.414 | Z41: 3682362.195 | AA41: 4552513.532
A42: DRAB0403 | B42: Straight line depreciation | C42: -5682637.5 | D42: -6280576.5 | E42: -6989555 | F42: -7741258.5 | G42: -9011853 | H42: -10421187.5 | I42: -8701158.5 | J42: -7181333.611 | K42: -8131731.451 | L42: -11411425.13 | M42: -12385801.97 | N42: -10776618.41 | P42: -5682637.5 | Q42: -6280576.5 | R42: -6989555 | S42: -7741258.5 | T42: -9011853 | U42: -10421187.5 | V42: -8701158.5 | W42: -7181333.611 | X42: -8131731.451 | Y42: -11411425.13 | Z42: -12385801.97 | AA42: -10776618.41
A43: DRAB0405 | B43: Actual additions (recognised in RAB) | C43: 15698478.5 | D43: 19068981 | E43: 25160046.5 | F43: 32129240.5 | G43: 32695360 | H43: 31268781.5 | I43: 35516328 | J43: 33886548.43 | K43: 22666582.19 | L43: 16818089.07 | M43: 21646388.92 | N43: 26797658.83 | P43: 15698478.5 | Q43: 19068981 | R43: 25160046.5 | S43: 32129240.5 | T43: 32695360 | U43: 31268781.5 | V43: 35516328 | W43: 33886548.43 | X43: 22666582.19 | Y43: 16818089.07 | Z43: 21646388.92 | AA43: 26797658.83
A44: DRAB0406 | B44: Disposals | C44: -8812.5 | D44: -8812.5 | E44: 0 | F44: 0 | G44: 0 | H44: -120681.5 | I44: -494546.5 | J44: -373865 | K44: 0 | L44: 0 | M44: 0 | N44: 0 | P44: -8812.5 | Q44: -8812.5 | R44: 0 | S44: 0 | T44: 0 | U44: -120681.5 | V44: -494546.5 | W44: -373865 | X44: 0 | Y44: 0 | Z44: 0 | AA44: 0
A45: DRAB0407 | B45: Closing value | C45: =SUM(C40:C44) -> 191119281.5 | D45: 209351418 | E45: 234833122 | F45: 266252754 | G45: 295444002 | H45: 325539066.5 | I45: 360727345 | J45: =SUM(J40:J44) -> 393041677.7 | K45: 413182003.6 | L45: 423803848 | M45: 436746797.1 | N45: =SUM(N40:N44) -> 457320351.1 | P45: =SUM(P40:P44) -> 191119281.5 | Q45: 209351418 | R45: 234833122 | S45: 266252754 | T45: 295444002 | U45: 325539066.5 | V45: 360727345 | W45: 393041677.7 | X45: 413182003.6 | Y45: 423803848 | Z45: 436746797.1 | AA45: 457320351.1 | AC45: =SUM(AC40:AC44) -> 0 | AD45: 0 | AE45: 0 | AF45: 0 | AG45: 0 | AH45: 0 | AI45: 0 | AJ45: 0 | AK45: 0 | AL45: 0 | AM45: 0 | AN45: 0
B46: For overhead network assets 33kV and above
A47: DRAB0501 | B47: Opening value | C47: 52298160 | D47: =C52 -> 56171249.5 | E47: =D52 -> 61721473 | F47: =E52 -> 70494696 | G47: =F52 -> 72337186 | H47: =G52 -> 72609111 | I47: =H52 -> 83472557.5 | J47: =I52 -> 101500945.5 | K47: =J52 -> 128328568.5 | L47: =K52 -> 144565581.5 | M47: =L52 -> 145026159.3 | N47: =M52 -> 144568582.3 | P47: 52298160 | Q47: =P52 -> 56171249.5 | R47: =Q52 -> 61721473 | S47: 70494696 | T47: 72337186 | U47: 72609111 | V47: 83472557.5 | W47: 101500945.5 | X47: 128328568.5 | Y47: 144565581.5 | Z47: 145026159.3 | AA47: =Z52 -> 144568582.3 | AD47: =AC52 -> 0 | AE47: =AD52 -> 0 | AF47: 0 | AG47: 0 | AH47: 0 | AI47: 0 | AJ47: 0 | AK47: 0 | AL47: 0 | AM47: 0 | AN47: =AM52 -> 0
A48: DRAB0502 | B48: Inflation addition | C48: 1830181.5 | D48: 1609495.5 | E48: 2168811.5 | F48: 2104855 | G48: 1439351.5 | H48: 2302966 | I48: 2250113 | J48: 2871013.981 | K48: 4434650.694 | L48: 4362481.829 | M48: 3178267.068 | N48: 3709670.248 | P48: 1830181.5 | Q48: 1609495.5 | R48: 2168811.5 | S48: 2104855 | T48: 1439351.5 | U48: 2302966 | V48: 2250113 | W48: 2871013.981 | X48: 4434650.694 | Y48: 4362481.829 | Z48: 3178267.068 | AA48: 3709670.248
A49: DRAB0503 | B49: Straight line depreciation | C49: -1851478 | D49: -2201021.5 | E49: -2607614 | F49: -3040573.5 | G49: -2825290 | H49: -2777213 | I49: -2641610.5 | J49: -4852795.077 | K49: -8249759.728 | L49: -8545489.346 | M49: -8147204.693 | N49: -8403333.162 | P49: -1851478 | Q49: -2201021.5 | R49: -2607614 | S49: -3040573.5 | T49: -2825290 | U49: -2777213 | V49: -2641610.5 | W49: -4852795.077 | X49: -8249759.728 | Y49: -8545489.346 | Z49: -8147204.693 | AA49: -8403333.162
A50: DRAB0505 | B50: Actual additions (recognised in RAB) | C50: 3901930 | D50: 6149293.5 | E50: 9212025.5 | F50: 2778208.5 | G50: 1657863.5 | H50: 11337693.5 | I50: 18419885.5 | J50: 28809404.11 | K50: 20052122.02 | L50: 4643585.332 | M50: 4511360.595 | N50: 2110054.623 | P50: 3901930 | Q50: 6149293.5 | R50: 9212025.5 | S50: 2778208.5 | T50: 1657863.5 | U50: 11337693.5 | V50: 18419885.5 | W50: 28809404.11 | X50: 20052122.02 | Y50: 4643585.332 | Z50: 4511360.595 | AA50: 2110054.623
A51: DRAB0506 | B51: Disposals | C51: -7544 | D51: -7544 | E51: 0 | F51: 0 | G51: 0 | H51: 0 | I51: 0 | J51: 0 | K51: 0 | L51: 0 | M51: 0 | N51: 0 | P51: -7544 | Q51: -7544 | R51: 0 | S51: 0 | T51: 0 | U51: 0 | V51: 0 | W51: 0 | X51: 0 | Y51: 0 | Z51: 0 | AA51: 0
A52: DRAB0507 | B52: Closing value | C52: =SUM(C47:C51) -> 56171249.5 | D52: 61721473 | E52: 70494696 | F52: 72337186 | G52: 72609111 | H52: 83472557.5 | I52: 101500945.5 | J52: =SUM(J47:J51) -> 128328568.5 | K52: 144565581.5 | L52: 145026159.3 | M52: 144568582.3 | N52: =SUM(N47:N51) -> 141984974 | P52: =SUM(P47:P51) -> 56171249.5 | Q52: 61721473 | R52: 70494696 | S52: 72337186 | T52: 72609111 | U52: 83472557.5 | V52: 101500945.5 | W52: 128328568.5 | X52: 144565581.5 | Y52: 145026159.3 | Z52: 144568582.3 | AA52: 141984974 | AC52: =SUM(AC47:AC51) -> 0 | AD52: 0 | AE52: 0 | AF52: 0 | AG52: 0 | AH52: 0 | AI52: 0 | AJ52: 0 | AK52: 0 | AL52: 0 | AM52: 0 | AN52: 0
B53: For underground network assets 33kV and above
A54: DRAB0601 | B54: Opening value | C54: 0 | D54: 0 | E54: 0 | F54: 0 | G54: 0 | H54: 0 | I54: 0 | J54: 0 | K54: 0 | L54: 6016.121319 | M54: 16223.33984 | N54: 32012.41854 | Q54: =P59 -> 0 | R54: =Q59 -> 0 | S54: 0 | T54: 0 | U54: 0 | V54: 0 | W54: 0 | X54: 0 | Y54: 6016.121319 | Z54: 16223.33984 | AA54: =Z59 -> 32012.41854 | AD54: =AC59 -> 0 | AE54: =AD59 -> 0 | AF54: 0 | AG54: 0 | AH54: 0 | AI54: 0 | AJ54: 0 | AK54: 0 | AL54: 0 | AM54: 0 | AN54: =AM59 -> 0
A55: DRAB0602 | B55: Inflation addition | C55: 0 | D55: 0 | E55: 0 | F55: 0 | G55: 0 | H55: 0 | I55: 0 | J55: 0 | K55: 0 | L55: 0 | M55: 42.88714561 | N55: 348.2036565 | P55: 0 | Q55: 0 | R55: 0 | S55: 0 | T55: 0 | U55: 0 | V55: 0 | W55: 0 | X55: 0 | Y55: 0 | Z55: 42.88714561 | AA55: 348.2036565
A56: DRAB0603 | B56: Straight line depreciation | C56: 0 | D56: 0 | E56: 0 | F56: 0 | G56: 0 | H56: 0 | I56: 0 | J56: 0 | K56: 0 | L56: 0 | M56: -135.3162149 | N56: -682.2497067 | P56: 0 | Q56: 0 | R56: 0 | S56: 0 | T56: 0 | U56: 0 | V56: 0 | W56: 0 | X56: 0 | Y56: 0 | Z56: -135.3162149 | AA56: -682.2497067
A57: DRAB0605 | B57: Actual additions (recognised in RAB) | C57: 0 | D57: 0 | E57: 0 | F57: 0 | G57: 0 | H57: 0 | I57: 0 | J57: 0 | K57: 6016.121319 | L57: 10207.21852 | M57: 15881.50777 | N57: 129232.3815 | P57: 0 | Q57: 0 | R57: 0 | S57: 0 | T57: 0 | U57: 0 | V57: 0 | W57: 0 | X57: 6016.121319 | Y57: 10207.21852 | Z57: 15881.50777 | AA57: 129232.3815
A58: DRAB0606 | B58: Disposals | C58: 0 | D58: 0 | E58: 0 | F58: 0 | G58: 0 | H58: 0 | I58: 0 | J58: 0 | K58: 0 | L58: 0 | M58: 0 | N58: 0 | P58: 0 | Q58: 0 | R58: 0 | S58: 0 | T58: 0 | U58: 0 | V58: 0 | W58: 0 | X58: 0 | Y58: 0 | Z58: 0 | AA58: 0
A59: DRAB0607 | B59: Closing value | C59: =SUM(C54:C58) -> 0 | D59: 0 | E59: 0 | F59: 0 | G59: 0 | H59: 0 | I59: 0 | J59: =SUM(J54:J58) -> 0 | K59: 6016.121319 | L59: 16223.33984 | M59: 32012.41854 | N59: =SUM(N54:N58) -> 160910.754 | P59: =SUM(P54:P58) -> 0 | Q59: 0 | R59: 0 | S59: 0 | T59: 0 | U59: 0 | V59: 0 | W59: 0 | X59: 6016.121319 | Y59: 16223.33984 | Z59: 32012.41854 | AA59: 160910.754 | AC59: =SUM(AC54:AC58) -> 0 | AD59: 0 | AE59: 0 | AF59: 0 | AG59: 0 | AH59: 0 | AI59: 0 | AJ59: 0 | AK59: 0 | AL59: 0 | AM59: 0 | AN59: 0
B60: Zone substations and transformers
A61: DRAB0701 | B61: Opening value | C61: 100591343.5 | D61: =C66 -> 108040923 | E61: =D66 -> 118716336 | F61: =E66 -> 135590931.5 | G61: =F66 -> 139134815 | H61: =G66 -> 139657841.5 | I61: =H66 -> 160552815.5 | J61: =I66 -> 195228983 | K61: =J66 -> 228977340.4 | L61: =K66 -> 246403490.3 | M61: =L66 -> 262010560.4 | N61: =M66 -> 284730391.4 | P61: 100591343.5 | Q61: =P66 -> 108040923 | R61: =Q66 -> 118716336 | S61: 135590931.5 | T61: 139134815 | U61: 139657841.5 | V61: 160552815.5 | W61: 195228983 | X61: 228977340.4 | Y61: 246403490.3 | Z61: =SUM(Y61:Y65) -> 262010560.4 | AA61: =SUM(Z61:Z65) -> 284730391.4 | AD61: =AC66 -> 0 | AE61: =AD66 -> 0 | AF61: 0 | AG61: 0 | AH61: 0 | AI61: 0 | AJ61: 0 | AK61: 0 | AL61: 0 | AM61: 0 | AN61: =AM66 -> 0
A62: DRAB0702 | B62: Inflation addition | C62: 3520208.5 | D62: 3095736.5 | E62: 4171535.5 | F62: 4048520.5 | G62: 2768478 | H62: 4429572 | I62: 4327914 | J62: 3347735.678 | K62: 3613454.44 | L62: 3554649.605 | M62: 2702654.066 | N62: 3582267.707 | P62: 3520208.5 | Q62: 3095736.5 | R62: 4171535.5 | S62: 4048520.5 | T62: 2768478 | U62: 4429572 | V62: 4327914 | W62: 3347735.678 | X62: 3613454.44 | Y62: 3554649.605 | Z62: 2702654.066 | AA62: 3582267.707
A63: DRAB0703 | B63: Straight line depreciation | C63: -3561170.5 | D63: -4233489.5 | E63: -5015537.5 | F63: -5848300.5 | G63: -5434220 | H63: -5341747.5 | I63: -5080928 | J63: -5138557.143 | K63: -6722092.219 | L63: -6963059.451 | M63: -6994840.179 | N63: -8003588.839 | P63: -3561170.5 | Q63: -4233489.5 | R63: -5015537.5 | S63: -5848300.5 | T63: -5434220 | U63: -5341747.5 | V63: -5080928 | W63: -5138557.143 | X63: -6722092.219 | Y63: -6963059.451 | Z63: -6994840.179 | AA63: -8003588.839
A64: DRAB0705 | B64: Actual additions (recognised in RAB) | C64: 7505052 | D64: 11827676.5 | E64: 17718597.5 | F64: 5343663.5 | G64: 3188768.5 | H64: 21807149.5 | I64: 35429181.5 | J64: 35539178.87 | K64: 20534787.64 | L64: 19015480 | M64: 27012017.13 | N64: 39106822.6 | P64: 7505052 | Q64: 11827676.5 | R64: 17718597.5 | S64: 5343663.5 | T64: 3188768.5 | U64: 21807149.5 | V64: 35429181.5 | W64: 35539178.87 | X64: 20534787.64 | Y64: 19015480 | Z64: 27012017.13 | AA64: 39106822.6
A65: DRAB0706 | B65: Disposals | C65: -14510.5 | D65: -14510.5 | E65: 0 | F65: 0 | G65: 0 | H65: 0 | I65: 0 | J65: 0 | K65: 0 | L65: 0 | M65: 0 | N65: 0 | P65: -14510.5 | Q65: -14510.5 | R65: 0 | S65: 0 | T65: 0 | U65: 0 | V65: 0 | W65: 0 | X65: 0 | Y65: 0 | Z65: 0 | AA65: 0
A66: DRAB0707 | B66: Closing value | C66: =SUM(C61:C65) -> 108040923 | D66: 118716336 | E66: 135590931.5 | F66: 139134815 | G66: 139657841.5 | H66: 160552815.5 | I66: 195228983 | J66: =SUM(J61:J65) -> 228977340.4 | K66: 246403490.3 | L66: 262010560.4 | M66: 284730391.4 | N66: =SUM(N61:N65) -> 319415892.9 | P66: =SUM(P61:P65) -> 108040923 | Q66: 118716336 | R66: 135590931.5 | S66: 139134815 | T66: 139657841.5 | U66: 160552815.5 | V66: 195228983 | W66: 228977340.4 | X66: 246403490.3 | AC66: =SUM(AC61:AC65) -> 0 | AD66: 0 | AE66: 0 | AF66: 0 | AG66: 0 | AH66: 0 | AI66: 0 | AJ66: 0 | AK66: 0 | AL66: 0 | AM66: 0 | AN66: 0
B67: For easements
A68: DRAB0801 | B68: Opening value | D68: =C72 -> 0 | E68: =D72 -> 0 | F68: 0 | G68: 0 | H68: 0 | I68: 0 | J68: 0 | K68: 0 | L68: 0 | M68: 0 | N68: 0 | Q68: =P72 -> 0 | R68: 0 | S68: 0 | T68: 0 | U68: 0 | V68: 0 | W68: 0 | X68: 0 | Y68: 0 | Z68: 0 | AA68: 0 | AD68: =AC72 -> 0 | AE68: 0 | AF68: 0 | AG68: 0 | AH68: 0 | AI68: 0 | AJ68: 0 | AK68: 0 | AL68: 0 | AM68: 0 | AN68: 0
A69: DRAB0802 | B69: Inflation addition
A70: DRAB0805 | B70: Actual additions (recognised in RAB)
A71: DRAB0806 | B71: Disposals
A72: DRAB0807 | B72: Closing value | C72: =SUM(C68:C71) -> 0 | D72: 0 | E72: 0 | F72: 0 | G72: 0 | H72: 0 | I72: 0 | J72: =SUM(J68:J71) -> 0 | K72: 0 | L72: 0 | M72: 0 | N72: =SUM(N68:N71) -> 0 | P72: =SUM(P68:P71) -> 0 | Q72: 0 | R72: 0 | S72: 0 | T72: 0 | U72: 0 | V72: 0 | W72: 0 | X72: 0 | Y72: 0 | Z72: 0 | AA72: 0 | AC72: =SUM(AC68:AC71) -> 0 | AD72: 0 | AE72: 0 | AF72: 0 | AG72: 0 | AH72: 0 | AI72: 0 | AJ72: 0 | AK72: 0 | AL72: 0 | AM72: 0 | AN72: 0
B73: For meters
A74: DRAB0901 | B74: Opening value | D74: =C79 -> 0 | E74: =D79 -> 0 | F74: 0 | G74: 0 | H74: 0 | I74: 0 | J74: 0 | K74: 0 | L74: 0 | M74: 0 | N74: 0 | P74: 54465122.53 | Q74: =P79 -> 43953583.81 | R74: =Q79 -> 32542566.75 | S74: 20382286.29 | T74: 15041130.27 | U74: 7895190.385 | V74: 8.381903172e-09 | W74: 8.381903172e-09 | X74: 8.381903172e-09 | Y74: 8.381903172e-09 | Z74: 8.381903172e-09 | AA74: =Z79 -> 8.381903172e-09 | AD74: =AC79 -> 0 | AE74: =AD79 -> 0 | AF74: 0 | AG74: 0 | AH74: 0 | AI74: 0 | AJ74: 0 | AK74: 0 | AL74: 0 | AM74: 0 | AN74: 319184086.2
A75: DRAB0902 | B75: Inflation addition | P75: 1873082.89 | Q75: 1330346.51 | R75: 1018902.801 | S75: 749442.5695 | T75: 310220.2812 | U75: 220091.3097 | V75: 0 | W75: 0 | X75: 0 | Y75: 0 | Z75: 0 | AA75: 0 | AN75: 3086033.982
A76: DRAB0903 | B76: Straight line depreciation | P76: -12384621.61 | Q76: -12741363.57 | R76: -13179183.26 | S76: -13584571.85 | T76: -14950133.42 | U76: -8115281.695 | V76: 0 | W76: 0 | X76: 0 | Y76: 0 | Z76: 0 | AA76: 0 | AN76: -23328451.55
A77: DRAB0905 | B77: Actual additions (recognised in RAB) | P77: 0 | Q77: 0 | R77: 0 | S77: 7493973.26 | T77: 7493973.26 | U77: 0 | V77: 0 | W77: 0 | X77: 0 | Y77: 0 | Z77: 0 | AA77: 0 | AN77: 7519705.995
A78: DRAB0906 | B78: Disposals | P78: 0 | Q78: 0 | R78: 0 | S78: 0 | T78: 0 | U78: 0 | V78: 0 | W78: 0 | X78: 0 | Y78: 0 | Z78: 0 | AA78: 0 | AN78: 0
A79: DRAB0907 | B79: Closing value | C79: =SUM(C74:C78) -> 0 | D79: 0 | E79: 0 | F79: 0 | G79: 0 | H79: 0 | I79: 0 | J79: =SUM(J74:J78) -> 0 | K79: 0 | L79: 0 | M79: 0 | N79: =SUM(N74:N78) -> 0 | P79: =SUM(P74:P78) -> 43953583.81 | Q79: 32542566.75 | R79: 20382286.29 | S79: 15041130.27 | T79: 7895190.385 | U79: 8.381903172e-09 | V79: 8.381903172e-09 | W79: 8.381903172e-09 | X79: 8.381903172e-09 | Y79: 8.381903172e-09 | Z79: 8.381903172e-09 | AA79: 8.381903172e-09 | AC79: =SUM(AC74:AC78) -> 0 | AD79: 0 | AE79: 0 | AF79: 0 | AG79: 0 | AH79: 0 | AI79: 0 | AJ79: 0 | AK79: 0 | AL79: 0 | AM79: 0 | AN79: 306461374.6
B80: For “other” asset items with long lives
A81: DRAB1001 | B81: Opening value | C81: 0 | D81: =C86 -> 0 | E81: =D86 -> 0 | F81: =E86 -> 0 | G81: =F86 -> 0 | H81: =G86 -> 0 | I81: =H86 -> 0 | J81: =I86 -> 0 | K81: =J86 -> 0 | L81: =K86 -> 0 | M81: =L86 -> 1682636.97 | N81: =M86 -> 11791811.45 | P81: 26401619.58 | Q81: =P86 -> 21306218.45 | R81: =Q86 -> 15774800.96 | S81: 9880182.836 | T81: 3658436.059 | U81: 194487.4336 | V81: 2.648448572e-09 | W81: 2.696320133e-09 | X81: 2.696351168e-09 | Y81: -356.0381837 | Z81: 5681097.501 | AA81: =Z86 -> 19729943.4 | AC81: 1035730.5 | AD81: =AC86 -> 1737666 | AE81: =AD86 -> 2516551 | AF81: 3701863 | AG81: 5891437.5 | AH81: 7324586.5 | AI81: 7630500 | AJ81: 8578722 | AK81: 9129472.707 | AL81: 9183728.486 | AM81: 11526571.21 | AN81: =AM86 -> 16281782.07
A82: DRAB1002 | B82: Inflation addition | C82: 0 | D82: 0 | E82: 0 | F82: 0 | G82: 0 | H82: 0 | I82: 0 | J82: 0 | K82: 0 | L82: 72886.0683 | M82: 139703.435 | N82: 355995.7955 | P82: 907964.9434 | Q82: 644876.9566 | R82: 493906.6121 | S82: 363287.4892 | T82: 49111.09655 | U82: 5421.654436 | V82: 4.787156117e-11 | W82: 3.103575637e-14 | X82: 18110.18038 | Y82: 102791.9435 | Z82: 205210.6589 | AA82: 523625.2481 | AC82: 0 | AD82: 0 | AE82: 0 | AF82: 0 | AG82: 0 | AH82: 0 | AI82: 0 | AJ82: 0 | AK82: 0 | AL82: 0 | AM82: 0 | AN82: 0
A83: DRAB1003 | B83: Straight line depreciation | C83: 0 | D83: 0 | E83: 0 | F83: 0 | G83: 0 | H83: 0 | I83: 0 | J83: 0 | K83: 0 | L83: -2342286.512 | M83: -4122338.898 | N83: -3910079.636 | P83: -6003366.065 | Q83: -6176294.449 | R83: -6388524.739 | S83: -6585034.266 | T83: -3513059.721 | U83: -199909.088 | V83: 0 | W83: 0 | X83: -18466.21856 | Y83: -2379498.241 | Z83: -4254297.124 | AA83: -4153937.626 | AC83: -51101 | AD83: -79676 | AE83: -118010.5 | AF83: -166100 | AG83: -219288.5 | AH83: -279999 | AI83: -349889 | AJ83: -429130.2926 | AK83: -514633.0362 | AL83: -593949.5088 | AM83: -710458.2017 | AN83: -905710.2359
A84: DRAB1005 | B84: Actual additions (recognised in RAB) | C84: 0 | D84: 0 | E84: 0 | F84: 0 | G84: 0 | H84: 0 | I84: 0 | J84: 0 | K84: 0 | L84: 3952037.414 | M84: 14091809.94 | N84: 22025864.94 | P84: 0 | Q84: 0 | R84: 0 | S84: 0 | T84: 0 | U84: 0 | V84: 0 | W84: 0 | X84: 0 | Y84: 7958159.836 | Z84: 18097932.37 | AA84: 22025864.94 | AC84: 753036.5 | AD84: 858561 | AE84: 1303322.5 | AF84: 2355674.5 | AG84: 1652437.5 | AH84: 585912.5 | AI84: 1298111 | AJ84: 1508635 | AK84: 1770337.075 | AL84: 3609486.491 | AM84: 5465669.06 | AN84: 6152742.949
A85: DRAB1006 | B85: Disposals | C85: 0 | D85: 0 | E85: 0 | F85: 0 | G85: 0 | H85: 0 | I85: 0 | J85: 0 | K85: 0 | L85: 0 | M85: 0 | N85: 0 | P85: 0 | Q85: 0 | R85: 0 | S85: 0 | T85: 0 | U85: 0 | V85: 0 | W85: 0 | X85: 0 | Y85: 0 | Z85: 0 | AA85: 0 | AC85: 0 | AD85: 0 | AE85: 0 | AF85: 0 | AG85: 0 | AH85: 0 | AI85: 0 | AJ85: -528754 | AK85: -1201448.26 | AL85: -672694.26 | AM85: 0 | AN85: 0
A86: DRAB1007 | B86: Closing value | C86: =SUM(C81:C85) -> 0 | D86: 0 | E86: 0 | F86: 0 | G86: 0 | H86: 0 | I86: 0 | J86: =SUM(J81:J85) -> 0 | K86: 0 | L86: 1682636.97 | M86: 11791811.45 | N86: =SUM(N81:N85) -> 30263592.55 | P86: =SUM(P81:P85) -> 21306218.45 | Q86: 15774800.96 | R86: 9880182.836 | S86: 3658436.059 | T86: 194487.4336 | U86: 2.648448572e-09 | V86: 2.696320133e-09 | W86: 2.696351168e-09 | X86: -356.0381837 | Y86: 5681097.501 | Z86: 19729943.4 | AA86: 38125495.97 | AC86: =SUM(AC81:AC85) -> 1737666 | AD86: 2516551 | AE86: 3701863 | AF86: 5891437.5 | AG86: 7324586.5 | AH86: 7630500 | AI86: 8578722 | AJ86: 9129472.707 | AK86: 9183728.486 | AL86: 11526571.21 | AM86: 16281782.07 | AN86: 21528814.78
B87: For “other” asset items with short lives
A88: DRAB1101 | B88: Opening value | C88: 73916603.3 | D88: =C93 -> 70808610.96 | E88: =D93 -> 70766228.44 | F88: 75088955.92 | G88: 100537133.8 | H88: 120832442.6 | I88: 129962794 | J88: 159379562.7 | K88: 179521429.9 | L88: 186899115.4 | M88: 191683010.1 | N88: 192554071.7 | P88: 73916603.3 | Q88: =P93 -> 70808610.96 | R88: =Q93 -> 70766228.44 | S88: 75088955.92 | T88: 100537133.8 | U88: 120832442.6 | V88: 129962794 | W88: 159379562.7 | X88: 179521429.9 | Y88: 186899115.4 | Z88: 191683010.1 | AA88: =Z93 -> 192554071.7 | AD88: =AC93 -> 0 | AE88: =AD93 -> 0 | AF88: 0 | AG88: 0 | AH88: 0 | AI88: 0 | AJ88: 0 | AK88: 0 | AL88: 0 | AM88: 0 | AN88: =AM93 -> 0
A89: DRAB1102 | B89: Inflation addition | C89: 2568872.442 | D89: 2074353.008 | E89: 2451625.639 | F89: 2299199.599 | G89: 2211314.577 | H89: 3800681.356 | I89: 3499374.831 | J89: 3203862.947 | K89: 3748090.829 | L89: 2690384.387 | M89: 1218207.073 | N89: 1442257.604 | P89: 2568872.442 | Q89: 2074353.008 | R89: 2451625.639 | S89: 2299199.599 | T89: 2211314.577 | U89: 3800681.356 | V89: 3499374.831 | W89: 3203862.947 | X89: 3748090.829 | Y89: 2690384.387 | Z89: 1218207.073 | AA89: 1442257.604
A90: DRAB1103 | B90: Straight line depreciation | C90: -20876353.48 | D90: -24628968.47 | E90: -26872859.05 | F90: -28612293.95 | G90: -45512929.11 | H90: -48572414.17 | I90: -30325006.53 | J90: -31828648.57 | K90: -36357048.79 | L90: -26642522.4 | M90: -32441648.51 | N90: -47011526.53 | P90: -20876353.48 | Q90: -24628968.47 | R90: -26872859.05 | S90: -28612293.95 | T90: -45512929.11 | U90: -48572414.17 | V90: -30325006.53 | W90: -31828648.57 | X90: -36357048.79 | Y90: -26642522.4 | Z90: -32441648.51 | AA90: -47011526.53
A91: DRAB1105 | B91: Actual additions (recognised in RAB) | C91: 15403988.7 | D91: 22736732.94 | E91: 28932960.89 | F91: 52331772.19 | G91: 64072264.52 | H91: 55450095.41 | I91: 58139979.93 | J91: 49446195.31 | K91: 40309865.43 | L91: 30588867.2 | M91: 34086646.14 | N91: 47625489.46 | P91: 15403988.7 | Q91: 22736732.94 | R91: 28932960.89 | S91: 52331772.19 | T91: 64072264.35 | U91: 55450095.23 | V91: 58139979.93 | W91: 49446195.31 | X91: 40309865.43 | Y91: 30588867.2 | Z91: 34086646.14 | AA91: 47625489.46
A92: DRAB1106 | B92: Disposals | C92: -204500 | D92: -224500 | E92: -189000 | F92: -570500 | G92: -475341.175 | H92: -1548011.175 | I92: -1897579.5 | J92: -679542.5 | K92: -323221.9801 | L92: -1852834.48 | M92: -1992143.065 | N92: -432687.135 | P92: -204500 | Q92: -224500 | R92: -189000 | S92: -570500 | T92: -475341 | U92: -1548011 | V92: -1897579.5 | W92: -679542.5 | X92: -323221.9801 | Y92: -1852834.48 | Z92: -1992143.065 | AA92: -432687.135
A93: DRAB1107 | B93: Closing value | C93: =SUM(C88:C92) -> 70808610.96 | D93: 70766228.44 | E93: 75088955.92 | F93: 100537133.8 | G93: 120832442.6 | H93: 129962794 | I93: 159379562.7 | J93: =SUM(J88:J92) -> 179521429.9 | K93: 186899115.4 | L93: 191683010.1 | M93: 192554071.7 | N93: =SUM(N88:N92) -> 194177605.1 | P93: =SUM(P88:P92) -> 70808610.96 | Q93: 70766228.44 | R93: 75088955.92 | S93: 100537133.8 | T93: 120832442.6 | U93: 129962794 | V93: 159379562.7 | W93: 179521429.9 | X93: 186899115.4 | Y93: 191683010.1 | Z93: 192554071.7 | AA93: 194177605.1 | AC93: =SUM(AC88:AC92) -> 0 | AD93: 0 | AE93: 0 | AF93: 0 | AG93: 0 | AH93: 0 | AI93: 0 | AJ93: 0 | AK93: 0 | AL93: 0 | AM93: 0 | AN93: 0
B98: 3.3.3 - TOTAL DISAGGREGATED RAB ASSET VALUES
C99: Network services | P99: Standard control services | AC99: Alternative control services
C100: $0's, Nominal | P100: $0's, Nominal | AC100: $0's, Nominal
C101: =dms_y1 -> 2006-07 | D101: =dms_y2 -> 2007-08 | E101: =dms_y3 -> 2008-09 | F101: =dms_y4 -> 2009-10 | G101: =dms_y5 -> 2010-11 | H101: =dms_y6 -> 2011-12 | I101: =dms_y7 -> 2012-13 | J101: =dms_y8 -> 2013-14 | K101: =dms_y9 -> 2014-15 | L101: =dms_y10 -> 2015-16 | M101: =dms_y11 -> 2016-17 | N101: =dms_y12 -> 2017-18 | P101: =dms_y1 -> 2006-07 | Q101: =dms_y2 -> 2007-08 | R101: =dms_y3 -> 2008-09 | S101: =dms_y4 -> 2009-10 | T101: =dms_y5 -> 2010-11 | U101: =dms_y6 -> 2011-12 | V101: =dms_y7 -> 2012-13 | W101: =dms_y8 -> 2013-14 | X101: =dms_y9 -> 2014-15 | Y101: =dms_y10 -> 2015-16 | Z101: =dms_y11 -> 2016-17 | AA101: =dms_y12 -> 2017-18 | AC101: =dms_y1 -> 2006-07 | AD101: =dms_y2 -> 2007-08 | AE101: =dms_y3 -> 2008-09 | AF101: =dms_y4 -> 2009-10 | AG101: =dms_y5 -> 2010-11 | AH101: =dms_y6 -> 2011-12 | AI101: =dms_y7 -> 2012-13 | AJ101: =dms_y8 -> 2013-14 | AK101: =dms_y9 -> 2014-15 | AL101: =dms_y10 -> 2015-16 | AM101: =dms_y11 -> 2016-17 | AN101: =dms_y12 -> 2017-18
A102: DRAB1201 | B102: Overhead network assets less than 33kV (wires and poles) | C102: 583355800.7 | D102: 638115681.9 | E102: 707769934.9 | F102: 798437331.1 | G102: 895015568 | H102: 989483220.5 | I102: 1093506626 | J102: 1227657956 | K102: 1613082971 | L102: 1984315910 | M102: 2072033468 | N102: 2132087789 | P102: 583355800.7 | Q102: 638115681.9 | R102: 707769934.9 | S102: 798437331.1 | T102: 895015568 | U102: 989483220.5 | V102: 1093506626 | W102: 1227657956 | X102: 1613082971 | Y102: 1984315910 | Z102: 2072033468 | AA102: 2132087789 | AC102: 0 | AD102: 0 | AE102: 0 | AF102: 0 | AG102: 0 | AH102: 0 | AI102: 0 | AJ102: 0 | AK102: 0 | AL102: 0 | AM102: 0 | AN102: 0
A103: DRAB1202 | B103: Underground network assets less than 33kV (cables) | C103: 372114011.5 | D103: 407044527.4 | E103: 451475942.1 | F103: 509311329.2 | G103: 570917153.8 | H103: 631176668 | I103: 697531655.3 | J103: 765901267.7 | K103: 684611969.7 | L103: 587039175.4 | M103: 645637742.8 | N103: 729557070 | P103: 372114011.5 | Q103: 407044527.4 | R103: 451475942.1 | S103: 509311329.2 | T103: 570917153.8 | U103: 631176668 | V103: 697531655.3 | W103: 765901267.7 | X103: 684611969.7 | Y103: 587039175.4 | Z103: 645637742.8 | AA103: 729557070 | AC103: 0 | AD103: 0 | AE103: 0 | AF103: 0 | AG103: 0 | AH103: 0 | AI103: 0 | AJ103: 0 | AK103: 0 | AL103: 0 | AM103: 0 | AN103: 0
A104: DRAB1203 | B104: Distribution substations including transformers | C104: 183052156.8 | D104: 200235348.2 | E104: 222092268.5 | F104: 250542936.9 | G104: 280848377.5 | H104: 310491534.4 | I104: 343133206.5 | J104: 377087289.1 | K104: 332148761.7 | L104: 281513046.5 | M104: 298657318.6 | N104: 315425612.5 | P104: 183052156.8 | Q104: 200235348.2 | R104: 222092268.5 | S104: 250542936.9 | T104: 280848377.5 | U104: 310491534.4 | V104: 343133206.5 | W104: 377087289.1 | X104: 332148761.7 | Y104: 281513046.5 | Z104: 298657318.6 | AA104: 315425612.5 | AC104: 0 | AD104: 0 | AE104: 0 | AF104: 0 | AG104: 0 | AH104: 0 | AI104: 0 | AJ104: 0 | AK104: 0 | AL104: 0 | AM104: 0 | AN104: 0
A105: DRAB1204 | B105: Overhead network assets 33kV and above (wires and towers / poles etc) | C105: 54234704.95 | D105: 58946361.69 | E105: 66108085.01 | F105: 71415941.56 | G105: 72473149.15 | H105: 78040834.98 | I105: 92486752.23 | J105: 115145272.7 | K105: 171634586.9 | L105: 233038946.4 | M105: 251378252.4 | N105: 249862364.1 | P105: 54234704.95 | Q105: 58946361.69 | R105: 66108085.01 | S105: 71415941.56 | T105: 72473149.15 | U105: 78040834.98 | V105: 92486752.23 | W105: 115145272.7 | X105: 171634586.9 | Y105: 233038946.4 | Z105: 251378252.4 | AA105: 249862364.1 | AC105: 0 | AD105: 0 | AE105: 0 | AF105: 0 | AG105: 0 | AH105: 0 | AI105: 0 | AJ105: 0 | AK105: 0 | AL105: 0 | AM105: 0 | AN105: 0
A106: DRAB1205 | B106: Underground network assets 33kV and above(cables, ducts etc) | C106: 0 | D106: 0 | E106: 0 | F106: 0 | G106: 0 | H106: 0 | I106: 0 | J106: 0 | K106: 3008.06066 | L106: 5103.60926 | M106: 12085.78313 | N106: 84429.63679 | P106: 0 | Q106: 0 | R106: 0 | S106: 0 | T106: 0 | U106: 0 | V106: 0 | W106: 0 | X106: 3008.06066 | Y106: 5103.60926 | Z106: 12085.78313 | AA106: 84429.63679 | AC106: 0 | AD106: 0 | AE106: 0 | AF106: 0 | AG106: 0 | AH106: 0 | AI106: 0 | AJ106: 0 | AK106: 0 | AL106: 0 | AM106: 0 | AN106: 0
A107: DRAB1206 | B107: Zone substations and transformers | C107: 104316133.2 | D107: 113378629.5 | E107: 127153633.6 | F107: 137362872.7 | G107: 139396327.3 | H107: 150105327.3 | I107: 177890898 | J107: 212546537.9 | K107: 204411400.3 | L107: 197501334.4 | M107: 227411371.2 | N107: 256121530.8 | P107: 104316133.2 | Q107: 113378629.5 | R107: 127153633.6 | S107: 137362872.7 | T107: 139396327.3 | U107: 150105327.3 | V107: 177890898 | W107: 212546537.9 | X107: 204411400.3 | Y107: 197501334.4 | Z107: 227411371.2 | AA107: 256121530.8 | AC107: 0 | AD107: 0 | AE107: 0 | AF107: 0 | AG107: 0 | AH107: 0 | AI107: 0 | AJ107: 0 | AK107: 0 | AL107: 0 | AM107: 0 | AN107: 0
A108: DRAB1207 | B108: Easements | C108: 0 | D108: 0 | E108: 0 | F108: 0 | G108: 0 | H108: 0 | I108: 0 | J108: 0 | K108: 0 | L108: 0 | M108: 0 | N108: 0 | P108: 0 | Q108: 0 | R108: 0 | S108: 0 | T108: 0 | U108: 0 | V108: 0 | W108: 0 | X108: 0 | Y108: 0 | Z108: 0 | AA108: 0 | AC108: 0 | AD108: 0 | AE108: 0 | AF108: 0 | AG108: 0 | AH108: 0 | AI108: 0 | AJ108: 0 | AK108: 0 | AL108: 0 | AM108: 0 | AN108: 0
A109: DRAB1208 | B109: Meters | C109: 9.094947018e-09 | D109: 9.094947018e-09 | E109: 9.094947018e-09 | F109: 9.094947018e-09 | G109: 9.094947018e-09 | H109: 9.094947018e-09 | I109: 9.094947018e-09 | J109: 4.547473509e-09 | K109: 0 | L109: 0 | M109: 0 | N109: 0 | P109: 49209353.17 | Q109: 38248075.28 | R109: 26462426.52 | S109: 17711708.28 | T109: 11468160.33 | U109: 3947595.193 | V109: 9.094947018e-09 | W109: 9.094947018e-09 | X109: 9.094947018e-09 | Y109: 4.547473509e-09 | Z109: 0 | AA109: 0 | AC109: 0 | AD109: 0 | AE109: 0 | AF109: 0 | AG109: 0 | AH109: 0 | AI109: 0 | AJ109: 0 | AK109: 0 | AL109: 0 | AM109: 0 | AN109: 153230687.3
A110: DRAB1209 | B110: “Other” assets with long lives | C110: 1.346298337e-09 | D110: 1.346298337e-09 | E110: 1.346298337e-09 | F110: 1.346298337e-09 | G110: 1.346298337e-09 | H110: 1.346298337e-09 | I110: 1.346298337e-09 | J110: 6.731491686e-10 | K110: 0 | L110: 5688242.027 | M110: 16431389.8 | N110: 30720425.46 | P110: 23853919.02 | Q110: 18540509.71 | R110: 12827491.9 | S110: 6769309.447 | T110: 1926461.746 | U110: 97243.7168 | V110: 1.322362557e-09 | W110: 1.390030539e-09 | X110: 784596.4641 | Y110: 9256838.498 | Z110: 24434720.47 | AA110: 41822576.49 | AC110: 1386538.75 | AD110: 2126896.25 | AE110: 3108994.75 | AF110: 4796446 | AG110: 6607847.25 | AH110: 7477453.5 | AI110: 8104586 | AJ110: 8846537.652 | AK110: 9141485.193 | AL110: 10527089.64 | AM110: 13816110.16 | AN110: 18370170.49
A111: DRAB1210 | B111: “Other” assets with short lives | C111: 72362607.13 | D111: 70787419.7 | E111: 72927592.18 | F111: 87813044.83 | G111: 110684788.2 | H111: 125397618.3 | I111: 144671178.4 | J111: 163478217.1 | K111: 171345471.5 | L111: 135765452.7 | M111: 96855430.74 | N111: 98102243.86 | P111: 72362607.13 | Q111: 70787419.7 | R111: 72927592.18 | S111: 87813044.83 | T111: 110684788.2 | U111: 125397618.3 | V111: 144671178.4 | W111: 163478217.1 | X111: 171345471.5 | Y111: 135765452.7 | Z111: 96855430.74 | AA111: 98102243.86 | AC111: 0 | AD111: 0 | AE111: 0 | AF111: 0 | AG111: 0 | AH111: 0 | AI111: 0 | AJ111: 0 | AK111: 0 | AL111: 0 | AM111: 0 | AN111: 0
A112: DRAB13 | B112: Value of Capital Contributions or Contributed Assets (included in the above) | C112: 22658388.82 | D112: 20268234.13 | E112: 22862651.56 | F112: 29271601.86 | G112: 31163883.23 | H112: 27156314.32 | I112: 23747187.96 | J112: 33692124.08 | K112: 45427658.13 | L112: 33494419 | M112: 27103092.72 | N112: 44132182.39 | P112: 22658388.82 | Q112: 20268234.13 | R112: 22862651.56 | S112: 29271601.86 | T112: 31163883.23 | U112: 27156314.32 | V112: 23747187.96 | W112: 33692124.08 | X112: 45427658.13 | Y112: 33494419 | Z112: 27103092.72 | AA112: 44132182.39 | AC112: 1033686 | AD112: 1076381 | AE112: 1644752.5 | AF112: 1682267 | AG112: 2565148 | AH112: 2691044 | AI112: 925013 | AJ112: 1589492 | AK112: 4710545.09 | AL112: 3832410.065 | AM112: 1117041.635 | AN112: 4673590.71
B115: 3.3.4 - ASSET LIVES
C116: Network services | P116: Standard control services | AC116: Alternative control services
C117: Service Life (Years) | P117: Service Life (Years) | AC117: Service Life (Years)
C118: =dms_y1 -> 2006-07 | D118: =dms_y2 -> 2007-08 | E118: =dms_y3 -> 2008-09 | F118: =dms_y4 -> 2009-10 | G118: =dms_y5 -> 2010-11 | H118: =dms_y6 -> 2011-12 | I118: =dms_y7 -> 2012-13 | J118: =dms_y8 -> 2013-14 | K118: =dms_y9 -> 2014-15 | L118: =dms_y10 -> 2015-16 | M118: =dms_y11 -> 2016-17 | N118: =dms_y12 -> 2017-18 | P118: =dms_y1 -> 2006-07 | Q118: =dms_y2 -> 2007-08 | R118: =dms_y3 -> 2008-09 | S118: =dms_y4 -> 2009-10 | T118: =dms_y5 -> 2010-11 | U118: =dms_y6 -> 2011-12 | V118: =dms_y7 -> 2012-13 | W118: =dms_y8 -> 2013-14 | X118: =dms_y9 -> 2014-15 | Y118: =dms_y10 -> 2015-16 | Z118: =dms_y11 -> 2016-17 | AA118: =dms_y12 -> 2017-18 | AC118: =dms_y1 -> 2006-07 | AD118: =dms_y2 -> 2007-08 | AE118: =dms_y3 -> 2008-09 | AF118: =dms_y4 -> 2009-10 | AG118: =dms_y5 -> 2010-11 | AH118: =dms_y6 -> 2011-12 | AI118: =dms_y7 -> 2012-13 | AJ118: =dms_y8 -> 2013-14 | AK118: =dms_y9 -> 2014-15 | AL118: =dms_y10 -> 2015-16 | AM118: =dms_y11 -> 2016-17 | AN118: =dms_y12 -> 2017-18
B119: ESTIMATED SERVICE LIFE OF NEW ASSETS
A120: DRAB1401 | B120: Overhead network assets less than 33kV (wires and poles) | C120: 47 | D120: 47 | E120: 47 | F120: 47 | G120: 47 | H120: 47 | I120: 47 | J120: 55.4 | K120: 63.8 | L120: 63.8 | M120: 63.8 | N120: 63.8 | P120: 47 | Q120: 47 | R120: 47 | S120: 47 | T120: 47 | U120: 47 | V120: 47 | W120: 55.4 | X120: 63.8 | Y120: 63.8 | Z120: 63.8 | AA120: 63.8 | AC120: 0 | AD120: 0 | AE120: 0 | AF120: 0 | AG120: 0 | AH120: 0 | AI120: 0 | AJ120: 0 | AK120: 0 | AL120: 0 | AM120: 0 | AN120: 0
A121: DRAB1402 | B121: Underground network assets less than 33kV (cables) | C121: 55 | D121: 55 | E121: 55 | F121: 55 | G121: 55 | H121: 55 | I121: 55 | J121: 52.5 | K121: 50 | L121: 50 | M121: 50 | N121: 50 | P121: 55 | Q121: 55 | R121: 55 | S121: 55 | T121: 55 | U121: 55 | V121: 55 | W121: 52.5 | X121: 50 | Y121: 50 | Z121: 50 | AA121: 50 | AC121: 0 | AD121: 0 | AE121: 0 | AF121: 0 | AG121: 0 | AH121: 0 | AI121: 0 | AJ121: 0 | AK121: 0 | AL121: 0 | AM121: 0 | AN121: 0
A122: DRAB1403 | B122: Distribution substations including transformers | C122: 62 | D122: 62 | E122: 62 | F122: 62 | G122: 62 | H122: 62 | I122: 62 | J122: 57.1 | K122: 52.2 | L122: 52.2 | M122: 52.2 | N122: 52.2 | P122: 62 | Q122: 62 | R122: 62 | S122: 62 | T122: 62 | U122: 62 | V122: 62 | W122: 57.1 | X122: 52.2 | Y122: 52.2 | Z122: 52.2 | AA122: 52.2 | AC122: 0 | AD122: 0 | AE122: 0 | AF122: 0 | AG122: 0 | AH122: 0 | AI122: 0 | AJ122: 0 | AK122: 0 | AL122: 0 | AM122: 0 | AN122: 0
A123: DRAB1404 | B123: Overhead network assets 33kV and above (wires and towers / poles etc) | C123: 59 | D123: 59 | E123: 59 | F123: 59 | G123: 59 | H123: 59 | I123: 59 | J123: 65.35 | K123: 71.7 | L123: 71.7 | M123: 71.7 | N123: 71.7 | P123: 59 | Q123: 59 | R123: 59 | S123: 59 | T123: 59 | U123: 59 | V123: 59 | W123: 65.35 | X123: 71.7 | Y123: 71.7 | Z123: 71.7 | AA123: 71.7 | AC123: 0 | AD123: 0 | AE123: 0 | AF123: 0 | AG123: 0 | AH123: 0 | AI123: 0 | AJ123: 0 | AK123: 0 | AL123: 0 | AM123: 0 | AN123: 0
A124: DRAB1405 | B124: Underground network assets 33kV and above(cables, ducts etc) | C124: 55 | D124: 55 | E124: 55 | F124: 55 | G124: 55 | H124: 55 | I124: 55 | J124: 52.5 | K124: 50 | L124: 50 | M124: 50 | N124: 50 | P124: 55 | Q124: 55 | R124: 55 | S124: 55 | T124: 55 | U124: 55 | V124: 55 | W124: 52.5 | X124: 50 | Y124: 50 | Z124: 50 | AA124: 50 | AC124: 0 | AD124: 0 | AE124: 0 | AF124: 0 | AG124: 0 | AH124: 0 | AI124: 0 | AJ124: 0 | AK124: 0 | AL124: 0 | AM124: 0 | AN124: 0
A125: DRAB1406 | B125: Zone substations and transformers | C125: 57 | D125: 57 | E125: 57 | F125: 57 | G125: 57 | H125: 57 | I125: 57 | J125: 51.45 | K125: 45.9 | L125: 45.9 | M125: 45.9 | N125: 45.9 | P125: 57 | Q125: 57 | R125: 57 | S125: 57 | T125: 57 | U125: 57 | V125: 57 | W125: 51.45 | X125: 45.9 | Y125: 45.9 | Z125: 45.9 | AA125: 45.9 | AC125: 0 | AD125: 0 | AE125: 0 | AF125: 0 | AG125: 0 | AH125: 0 | AI125: 0 | AJ125: 0 | AK125: 0 | AL125: 0 | AM125: 0 | AN125: 0
A126: DRAB1407 | B126: Meters | C126: 0 | D126: 0 | E126: 0 | F126: 0 | G126: 0 | H126: 0 | I126: 0 | J126: 0 | K126: 0 | L126: 0 | M126: 0 | N126: 0 | P126: 5 | Q126: 5 | R126: 5 | S126: 5 | T126: 5 | U126: 2.5 | V126: 0 | W126: 0 | X126: 0 | Y126: 0 | Z126: 0 | AA126: 0 | AC126: 0 | AD126: 0 | AE126: 0 | AF126: 0 | AG126: 0 | AH126: 0 | AI126: 0 | AJ126: 0 | AK126: 0 | AL126: 0 | AM126: 0 | AN126: 7.045026876
A127: DRAB1408 | B127: “Other” assets with long lives | C127: 0 | D127: 0 | E127: 0 | F127: 0 | G127: 0 | H127: 0 | I127: 0 | J127: 0 | K127: 0 | L127: 5 | M127: 10 | N127: 10 | P127: 5 | Q127: 5 | R127: 5 | S127: 5 | T127: 5 | U127: 2.5 | V127: 0 | W127: 0 | X127: 23.23733607 | Y127: 33.51994832 | Z127: 19.23029451 | AA127: 16.95529775 | AC127: 30.17540739 | AD127: 30.17473816 | AE127: 30.17505727 | AF127: 30.14725511 | AG127: 29.12276497 | AH127: 28.0301635 | AI127: 27.59079551 | AJ127: 31.12383005 | AK127: 32.04273724 | AL127: 29.99175201 | AM127: 30.06525019 | AN127: 29.02628028
A128: DRAB1409 | B128: “Other” assets with short lives | C128: 5 | D128: 5 | E128: 5 | F128: 5 | G128: 5 | H128: 5 | I128: 5 | J128: 12.5 | K128: 12.5 | L128: 5 | M128: 5 | N128: 5 | P128: 5 | Q128: 5 | R128: 5 | S128: 5 | T128: 5 | U128: 5 | V128: 5 | W128: 12.5 | X128: 12.5 | Y128: 5 | Z128: 5 | AA128: 5 | AC128: 0 | AD128: 0 | AE128: 0 | AF128: 0 | AG128: 0 | AH128: 0 | AI128: 0 | AJ128: 0 | AK128: 0 | AL128: 0 | AM128: 0 | AN128: 0
B130: ESTIMATED RESIDUAL SERVICE LIFE
A131: DRAB1501 | B131: Overhead network assets less than 33kV (wires and poles) | C131: 23 | D131: 23 | E131: 23 | F131: 23 | G131: 23 | H131: 23 | I131: 23 | J131: 28.2 | K131: 33.8935 | L131: 33.70289754 | M131: 31.37078778 | N131: 29.64948071 | P131: 23 | Q131: 23 | R131: 23 | S131: 23 | T131: 23 | U131: 23 | V131: 23 | W131: 28.2 | X131: 33.8935 | Y131: 33.70289754 | Z131: 31.37078778 | AA131: 29.64948071 | AC131: 0 | AD131: 0 | AE131: 0 | AF131: 0 | AG131: 0 | AH131: 0 | AI131: 0 | AJ131: 0 | AK131: 0 | AL131: 0 | AM131: 0 | AN131: 0
A132: DRAB1502 | B132: Underground network assets less than 33kV (cables) | C132: 43 | D132: 43 | E132: 43 | F132: 43 | G132: 43 | H132: 43 | I132: 43 | J132: 35.4 | K132: 25.867 | L132: 23.75382977 | M132: 27.50729512 | N132: 31.42644702 | P132: 43 | Q132: 43 | R132: 43 | S132: 43 | T132: 43 | U132: 43 | V132: 43 | W132: 35.4 | X132: 25.867 | Y132: 23.75382977 | Z132: 27.50729512 | AA132: 31.42644702 | AC132: 0 | AD132: 0 | AE132: 0 | AF132: 0 | AG132: 0 | AH132: 0 | AI132: 0 | AJ132: 0 | AK132: 0 | AL132: 0 | AM132: 0 | AN132: 0
A133: DRAB1503 | B133: Distribution substations including transformers | C133: 39 | D133: 39 | E133: 39 | F133: 39 | G133: 39 | H133: 39 | I133: 39 | J133: 32.55 | K133: 25.7995 | L133: 26.45839751 | M133: 27.10586228 | N133: 26.65897578 | P133: 39 | Q133: 39 | R133: 39 | S133: 39 | T133: 39 | U133: 39 | V133: 39 | W133: 32.55 | X133: 25.7995 | Y133: 26.45839751 | Z133: 27.10586228 | AA133: 26.65897578 | AC133: 0 | AD133: 0 | AE133: 0 | AF133: 0 | AG133: 0 | AH133: 0 | AI133: 0 | AJ133: 0 | AK133: 0 | AL133: 0 | AM133: 0 | AN133: 0
A134: DRAB1504 | B134: Overhead network assets 33kV and above (wires and towers / poles etc) | C134: 30 | D134: 30 | E134: 30 | F134: 30 | G134: 30 | H134: 30 | I134: 30 | J134: 35.65 | K134: 41.9355 | L134: 41.78783227 | M134: 40.71699028 | N134: 40.76677785 | P134: 30 | Q134: 30 | R134: 30 | S134: 30 | T134: 30 | U134: 30 | V134: 30 | W134: 35.65 | X134: 41.9355 | Y134: 41.78783227 | Z134: 40.71699028 | AA134: 40.76677785 | AC134: 0 | AD134: 0 | AE134: 0 | AF134: 0 | AG134: 0 | AH134: 0 | AI134: 0 | AJ134: 0 | AK134: 0 | AL134: 0 | AM134: 0 | AN134: 0
A135: DRAB1505 | B135: Underground network assets 33kV and above (cables, ducts etc) | C135: 43 | D135: 43 | E135: 43 | F135: 43 | G135: 43 | H135: 43 | I135: 43 | J135: 29.85 | K135: 24.598 | L135: 31.99539311 | M135: 26.45708558 | N135: 21.24406129 | P135: 43 | Q135: 43 | R135: 43 | S135: 43 | T135: 43 | U135: 43 | V135: 43 | W135: 29.85 | X135: 24.598 | Y135: 31.99539311 | Z135: 26.45708558 | AA135: 21.24406129 | AC135: 0 | AD135: 0 | AE135: 0 | AF135: 0 | AG135: 0 | AH135: 0 | AI135: 0 | AJ135: 0 | AK135: 0 | AL135: 0 | AM135: 0 | AN135: 0
A136: DRAB1506 | B136: Zone substations and transformers | C136: 29 | D136: 29 | E136: 29 | F136: 29 | G136: 29 | H136: 29 | I136: 29 | J136: 24.25 | K136: 15.0595 | L136: 9.979358156 | M136: 8.839716312 | N136: 8.339716312 | P136: 29 | Q136: 29 | R136: 29 | S136: 29 | T136: 29 | U136: 29 | V136: 29 | W136: 24.25 | X136: 15.0595 | Y136: 9.979358156 | Z136: 8.839716312 | AA136: 7.91663235 | AC136: 0 | AD136: 0 | AE136: 0 | AF136: 0 | AG136: 0 | AH136: 0 | AI136: 0 | AJ136: 0 | AK136: 0 | AL136: 0 | AM136: 0 | AN136: 0
A137: DRAB1507 | B137: Meters | C137: 0 | D137: 0 | E137: 0 | F137: 0 | G137: 0 | H137: 0 | I137: 0 | J137: 0 | K137: 0 | L137: 0 | M137: 0 | N137: 0 | P137: 4.5 | Q137: 3.5 | R137: 2.5 | S137: 1.5 | T137: 0.5 | U137: 0 | V137: 0 | W137: 0 | X137: 0 | Y137: 0 | Z137: 0 | AA137: 0 | AC137: 0 | AD137: 0 | AE137: 0 | AF137: 0 | AG137: 0 | AH137: 0 | AI137: 0 | AJ137: 0 | AK137: 0 | AL137: 0 | AM137: 0 | AN137: 4.637053202
A138: DRAB1508 | B138: “Other” assets with long lives | C138: 0 | D138: 0 | E138: 0 | F138: 0 | G138: 0 | H138: 0 | I138: 0 | J138: 0 | K138: 0 | L138: 3.585654076 | M138: 8.140762621 | N138: 9.124885474 | P138: 4.5 | Q138: 3.5 | R138: 2.5 | S138: 1.5 | T138: 0.5 | U138: 0 | V138: 0 | W138: 0 | X138: 21.23733607 | Y138: 33.18754712 | Z138: 21.25223028 | AA138: 17.29109776 | AC138: 29.48143568 | AD138: 29.02162094 | AE138: 28.73587247 | AF138: 28.37186007 | AG138: 27.76886893 | AH138: 27.01415515 | AI138: 26.30157979 | AJ138: 28.3222741 | AK138: 29.12409378 | AL138: 27.54731556 | AM138: 27.40239271 | AN138: 26.89036175
A139: DRAB1509 | B139: “Other” assets with short lives | C139: 2.764235517 | D139: 2.764235517 | E139: 2.764235517 | F139: 2.764235517 | G139: 2.764235517 | H139: 2.764235517 | I139: 2.764235517 | J139: 7.432117758 | K139: 7.766166209 | L139: 3.254001303 | M139: 3.35482677 | N139: 3.792575159 | P139: 2.764235517 | Q139: 2.764235517 | R139: 2.764235517 | S139: 2.764235517 | T139: 2.764235517 | U139: 2.764235517 | V139: 2.764235517 | W139: 7.432117758 | X139: 7.766166209 | Y139: 3.254001303 | Z139: 3.35482677 | AA139: 3.792575159 | AC139: 0 | AD139: 0 | AE139: 0 | AF139: 0 | AG139: 0 | AH139: 0 | AI139: 0 | AJ139: 0 | AK139: 0 | AL139: 0 | AM139: 0 | AN139: 0

Sheet 3.4 Operational data
B1: =INDEX(dms_Worksheet_List,MATCH(dms_Model,dms_Model_List)) -> REALLOCATED HISTORICAL ECONOMIC BENCHMARKING
B2: =INDEX(dms_TradingNameFull_List,MATCH(dms_TradingName,dms_TradingName_List)) -> AusNet Electricity Services Pty Ltd
B3: =dms_Header_Span -> 2006-07 to 2018-19
B4: 3.4 OPERATIONAL DATA
B6: There are THREE tables on this worksheet. Each table has been grouped for ease of navigation. See the Instructions sheet on how to group or ungroup tables.
B8: 3.4.1 - ENERGY DELIVERY
D9: Standard control services
D10: VOLUMES (0's) (GWh)
C11: Units | D11: =dms_y1 -> 2006-07 | E11: =dms_y2 -> 2007-08 | F11: =dms_y3 -> 2008-09 | G11: =dms_y4 -> 2009-10 | H11: =dms_y5 -> 2010-11 | I11: =dms_y6 -> 2011-12 | J11: =dms_y7 -> 2012-13 | K11: =dms_y8 -> 2013-14 | L11: =dms_y9 -> 2014-15 | M11: =dms_y10 -> 2015-16 | N11: =dms_y11 -> 2016-17 | O11: =dms_y12 -> 2017-18
A12: DOPED01 | B12: Total energy delivered | C12: GWh | D12: 7448.9275 | E12: 7692.883 | F12: 7817.921 | G12: 7829.562 | H12: 7769.3135 | I12: 7612.137 | J12: 7547.8715 | K12: 7474.324479 | L12: 7566.964955 | M12: 7623.067642 | N12: 7616.376847 | O12: 7621.588134
B14: 3.4.1.1 - Energy grouping - delivery by chargeable quantity
A15: DOPED0201 | B15: Energy Delivery where time of use is not a determinant | C15: GWh | D15: 2585.241 | E15: 2675.711 | F15: 2752.049 | G15: 2773.4475 | H15: 2701.0995 | I15: 2589.099 | J15: 2480.7695 | K15: 2379.083558 | L15: 2370.615738 | M15: 2327.13506 | N15: 2292.017309 | O15: 2292.404975
A16: DOPED0202 | B16: Energy Delivery at On-peak times | C16: GWh | D16: 2217.8015 | E16: 2274.1525 | F16: 2280.8285 | G16: 2265.1965 | H16: 2275.3775 | I16: 2200.2465 | J16: 2175.2765 | K16: 2198.482568 | L16: 2239.072069 | M16: 2293.817544 | N16: 2318.457452 | O16: 2258.62274
A17: DOPED0203 | B17: Energy Delivery at Shoulder times | C17: GWh | D17: 164.0965 | E17: 212.962 | F17: 244.0535 | G17: 265.1725 | H17: 334.4965 | I17: 397.879 | J17: 408.5265 | K17: 413.8297032 | L17: 424.7313823 | M17: 441.0518759 | N17: 446.8510039 | O17: 445.0847992
A18: DOPED0204 | B18: Energy Delivery at Off-peak times | C18: GWh | D18: 2405.2385 | E18: 2450.988 | F18: 2459.156 | G18: 2441.5925 | H18: 2381.42 | I18: 2355.6765 | J18: 2412.694 | K18: 2412.322611 | L18: 2462.244074 | M18: 2496.886741 | N18: 2501.927118 | O18: 2450.685647
A19: DOPED0205 | B19: Controlled load energy deliveries | C19: GWh | D19: 0 | E19: 0 | F19: 0 | G19: 0 | H19: 0 | I19: 0 | J19: 0 | K19: 0 | L19: 0 | M19: 0 | N19: 0 | O19: 0
A20: DOPED0206 | B20: Energy Delivery to unmetered supplies | C20: GWh | D20: 76.604 | E20: 79.181 | F20: 81.91 | G20: 84.153 | H20: 76.92 | I20: 69.2365 | J20: 70.6055 | K20: 70.60603964 | L20: 70.21207929 | M20: 64.08674214 | N20: 57.30479664 | O20: 174.9708715
B22: 3.4.1.2 - Energy - received from TNSP and other DNSPs by time of receipt
A23: DOPED0301 | B23: Energy into DNSP network at On-peak times | C23: GWh | D23: 0 | E23: 0 | F23: 0 | G23: 0 | H23: 0 | I23: 0 | J23: 0 | K23: 0 | L23: 0 | M23: 0 | N23: 0 | O23: 0
A24: DOPED0302 | B24: Energy into DNSP network at Shoulder times | C24: GWh | D24: 0 | E24: 0 | F24: 0 | G24: 0 | H24: 0 | I24: 0 | J24: 0 | K24: 0 | L24: 0 | M24: 0 | N24: 0 | O24: 0
A25: DOPED0303 | B25: Energy into DNSP network at Off-peak times | C25: GWh | D25: 0 | E25: 0 | F25: 0 | G25: 0 | H25: 0 | I25: 0 | J25: 0 | K25: 0 | L25: 0 | M25: 0 | N25: 0 | O25: 0
A26: DOPED0304 | B26: Energy received from TNSP and other DNSPs not included in the above categories | C26: GWh | D26: 7677.1195 | E26: 7719.782 | F26: 7813.3815 | G26: 7908.6385 | H26: 7809.7915 | I26: 7589.757 | J26: 7472.2635 | K26: 7229.600497 | L26: 7112.924593 | M26: 7042.675827 | N26: 6852.888991 | O26: 6765.967175
B28: 3.4.1.3 - Energy - received into DNSP system from embedded generation by time of receipt
A29: DOPED0401 | B29: Energy into DNSP network at On-peak times from non-residential embedded generation | C29: GWh | D29: 0 | E29: 0 | F29: 0 | G29: 0 | H29: 0 | I29: 0 | J29: 0 | K29: 0 | L29: 0 | M29: 0 | N29: 0 | O29: 0
A30: DOPED0402 | B30: Energy into DNSP network at Shoulder times from non-residential embedded generation | C30: GWh | D30: 0 | E30: 0 | F30: 0 | G30: 0 | H30: 0 | I30: 0 | J30: 0 | K30: 0 | L30: 0 | M30: 0 | N30: 0 | O30: 0
A31: DOPED0403 | B31: Energy into DNSP network at Off-peak times from non-residential embedded generation | C31: GWh | D31: 0 | E31: 0 | F31: 0 | G31: 0 | H31: 0 | I31: 0 | J31: 0 | K31: 0 | L31: 0 | M31: 0 | N31: 0 | O31: 0
A32: DOPED0404 | B32: Energy received from embedded generation not included in above categories from non-residential embedded generation | C32: GWh | D32: 566.198 | E32: 645.884 | F32: 574.82 | G32: 535.6 | H32: 545.6765 | I32: 573.0645 | J32: 568.0755 | K32: 604.0333497 | L32: 655.4825737 | M32: 814.0603778 | N32: 1020.334488 | O32: 1057.651065
A33: DOPED0405 | B33: Energy into DNSP network at On-peak times from residential embedded generation | C33: GWh | D33: 0 | E33: 0 | F33: 0 | G33: 0 | H33: 0 | I33: 0 | J33: 0 | K33: 0 | L33: 0 | M33: 0 | N33: 0 | O33: 0
A34: DOPED0406 | B34: Energy into DNSP network at Shoulder times from residential embedded generation | C34: GWh | D34: 0 | E34: 0 | F34: 0 | G34: 0 | H34: 0 | I34: 0 | J34: 0 | K34: 0 | L34: 0 | M34: 0 | N34: 0 | O34: 0
A35: DOPED0407 | B35: Energy into DNSP network at Off-peak times from residential embedded generation | C35: GWh | D35: 0 | E35: 0 | F35: 0 | G35: 0 | H35: 0 | I35: 0 | J35: 0 | K35: 0 | L35: 0 | M35: 0 | N35: 0 | O35: 0
A36: DOPED0408 | B36: Energy received from embedded generation not included in above categories from residential embedded generation | C36: GWh | D36: 0.0535 | E36: 0.1105 | F36: 0.652 | G36: 2.651 | H36: 10.648 | I36: 33.475 | J36: 68.987 | K36: 112.7804212 | L36: 142.9389878 | M36: 166.107745 | N36: 205.4445959 | O36: 240.2234918
B38: 3.4.1.4 - Energy grouping - customer type or class
A39: DOPED0501 | B39: Residential customers energy deliveries | C39: GWh | D39: 3229.776 | E39: 3292.6995 | F39: 3366.285 | G39: 3388.048 | H39: 3328.88 | I39: 3253.4405 | J39: 3188.24 | K39: 3127.030819 | L39: 3177.605297 | M39: 3184.892201 | N39: 3193.944962 | O39: 3103.535844
A40: DOPED0502 | B40: Non residential customers not on demand tariffs energy deliveries | C40: GWh | D40: 1866.3025 | E40: 1907.99 | F40: 1913.3625 | G40: 1883.872 | H40: 1830.6205 | I40: 1776.645 | J40: 1758.1805 | K40: 1737.236701 | L40: 1716.391889 | M40: 1662.07575 | N40: 1624.682429 | O40: 1304.233613
A41: DOPED0503 | B41: Non-residential low voltage demand tariff customers energy deliveries | C41: GWh | D41: 1286.9135 | E41: 1388.549 | F41: 1444.917 | G41: 1474.893 | H41: 1519.842 | I41: 1528.7665 | J41: 1557.3985 | K41: 1605.31448 | L41: 1648.064911 | M41: 1701.884518 | N41: 1730.175898 | O41: 2039.947719
A42: DOPED0504 | B42: Non-residential high voltage demand tariff customers energy deliveries | C42: GWh | D42: 989.3855 | E42: 1024.5745 | F42: 1011.522 | G42: 998.6325 | H42: 1013.0875 | I42: 984.0485 | J42: 973.447 | K42: 934.1364397 | L42: 954.6011663 | M42: 1010.038727 | N42: 1010.242444 | O42: 998.8738613
A43: DOPED0505 | B43: Other Customer Class Energy Deliveries | C43: GWh | D43: 76.5505 | E43: 79.07 | F43: 81.2575 | G43: 83.5755 | H43: 76.9195 | I43: 69.2365 | J43: 70.6055 | K43: 70.60603964 | L43: 70.21207929 | M43: 64.08674214 | N43: 57.30479664 | O43: 174.9708715
B46: 3.4.2 - CUSTOMER NUMBERS
D47: Standard control services
D48: VOLUMES (0's)
D49: =dms_y1 -> 2006-07 | E49: =dms_y2 -> 2007-08 | F49: =dms_y3 -> 2008-09 | G49: =dms_y4 -> 2009-10 | H49: =dms_y5 -> 2010-11 | I49: =dms_y6 -> 2011-12 | J49: =dms_y7 -> 2012-13 | K49: =dms_y8 -> 2013-14 | L49: =dms_y9 -> 2014-15 | M49: =dms_y10 -> 2015-16 | N49: =dms_y11 -> 2016-17 | O49: =dms_y12 -> 2017-18
B50: 3.4.2.1 - Distribution customer numbers by customer type or class
A51: DOPCN0101 | B51: Residential customer numbers | D51: 535478.5781 | E51: 546383.3121 | F51: 556735.5121 | G51: 565611.3875 | H51: 574322.5073 | I51: 586055.2969 | J51: 599230.4348 | K51: 608542.7952 | L51: 618556.2742 | M51: 628740.5 | N51: 639535.25 | O51: 651879
A52: DOPCN0102 | B52: Non residential customers not on demand tariff customer numbers | D52: 72089.81217 | E52: 72004.72067 | F52: 72400.21414 | G52: 72359.80263 | H52: 71487.83364 | I52: 71103.03441 | J52: 71133.55486 | K52: 69987.58036 | L52: 68945.00515 | M52: 68774 | N52: 67220.5 | O52: 65339
A53: DOPCN0103 | B53: Low voltage demand tariff customer numbers | D53: 1173.599598 | E53: 1316.684381 | F53: 1481.9001 | G53: 1641.515312 | H53: 1757.396905 | I53: 1868.536755 | J53: 1970.024945 | K53: 2032.059398 | L53: 2164.259023 | M53: 2304 | N53: 6563.25 | O53: 11101.25
A54: DOPCN0104 | B54: High voltage demand tariff customer numbers | D54: 98.76014615 | E54: 98.28279926 | F54: 98.87368735 | G54: 98.29458494 | H54: 96.51215978 | I54: 95.63191606 | J54: 98.98537829 | K54: 101.0650363 | L54: 102.9616493 | M54: 105.5 | N54: 110.5 | O54: 116.75
A55: DOPCN0105 | B55: Unmetered Customer Numbers | D55: 2156 | E55: 2266 | F55: 2366.5 | G55: 2443 | H55: 2503.5 | I55: 2549.5 | J55: 2568 | K55: 2583 | L55: 6040.5 | M55: 9671.5 | N55: 10276 | O55: 9804
A56: DOPCN0106 | B56: Other Customer Numbers | D56: 0 | E56: 0 | F56: 0 | G56: 0 | H56: 0 | I56: 0 | J56: 0 | K56: 0 | L56: 0 | M56: 0 | N56: 0 | O56: 0
A57: DOPCN01 | C57: Total customer numbers | D57: =SUM(D51:D56) -> 610996.75 | E57: 622069 | F57: 633083 | G57: 642154 | H57: 650167.75 | I57: 661672 | J57: 675001 | K57: 683246.5 | L57: 695809
B59: 3.4.2.2 - Distribution customer numbers by location on the network
A60: DOPCN0201 | B60: Customers on CBD network | D60: 0 | E60: 0 | F60: 0 | G60: 0 | H60: 0 | I60: 0 | J60: 0 | K60: 0 | L60: 0 | M60: 0 | N60: 0 | O60: 0
A61: DOPCN0202 | B61: Customers on Urban network | D61: 255550.1377 | E61: 241695.1993 | F61: 235489.6362 | G61: 262911.2924 | H61: 294646.3541 | I61: 269963.8915 | J61: 269742.2498 | K61: 300983.6222 | L61: 290667.9816 | M61: 287380.5 | N61: 301944.527 | O61: 315270.5287
A62: DOPCN0203 | B62: Customers on Short rural network | D62: 233160.9577 | E62: 258000.39 | F62: 273108.1342 | G62: 256241.8672 | H62: 233566.3737 | I62: 267709.4536 | J62: 283365.2156 | K62: 263032.6389 | L62: 283426.2045 | M62: 298524 | N62: 297547.5123 | O62: 297117.8634
A63: DOPCN0204 | B63: Customers on Long rural network | D63: 122285.6546 | E63: 122373.4112 | F63: 124485.2306 | G63: 123000.841 | H63: 121955.0222 | I63: 123998.6549 | J63: 121893.5346 | K63: 119230.2389 | L63: 121714.8139 | M63: 123691 | N63: 124213.4607 | O63: 125851.6078
A64: DOPCN02 | C64: Total customer numbers | D64: =SUM(D60:D63) -> 610996.75 | E64: 622069.0005 | F64: 633083.001 | G64: 642154.0005 | H64: 650167.75 | I64: 661672 | J64: 675001 | K64: 683246.5 | L64: 695809
B68: 3.4.3 - SYSTEM DEMAND
D69: Standard control services
D70: VOLUMES (0's)
C71: Units | D71: =dms_y1 -> 2006-07 | E71: =dms_y2 -> 2007-08 | F71: =dms_y3 -> 2008-09 | G71: =dms_y4 -> 2009-10 | H71: =dms_y5 -> 2010-11 | I71: =dms_y6 -> 2011-12 | J71: =dms_y7 -> 2012-13 | K71: =dms_y8 -> 2013-14 | L71: =dms_y9 -> 2014-15 | M71: =dms_y10 -> 2015-16 | N71: =dms_y11 -> 2016-17 | O71: =dms_y12 -> 2017-18
B72: 3.4.3.1 - Annual system maximum demand characteristics at the zone substation level – MW measure
A73: DOPSD0101 | B73: Non-coincident Summated Raw System Annual Maximum Demand | C73: MW | D73: 1634.4525 | E73: 1725.7305 | F73: 1827.965567 | G73: 1833.334127 | H73: 1764.836143 | I73: 1783.728747 | J73: 1802.62135 | K73: 1879.851789 | L73: 1870.723394 | M73: 1861.595 | N73: 1714.723999 | O73: 1899.531014
A74: DOPSD0102 | B74: Non–coincident Summated Weather Adjusted System Annual Maximum Demand 10% POE | C74: MW | K74: 0 | M74: 1976.327282 | N74: 1993.670596 | O74: 2127.483546
A75: DOPSD0103 | B75: Non–coincident Summated Weather Adjusted System Annual Maximum Demand 50% POE | C75: MW | K75: 0 | M75: 1792.531577 | N75: 1814.205367 | O75: 1930.201415
A76: DOPSD0104 | B76: Coincident Raw System Annual Maximum Demand | C76: MW | D76: 1411.533 | E76: 1490.362 | F76: 1604.943312 | G76: 1627.16421 | H76: 1587.388243 | I76: 1562.774815 | J76: 1538.161388 | K76: 1680.510885 | L76: 1685.297118 | M76: 1690.08335 | N76: 1444.309612 | O76: 1583.884403
A77: DOPSD0105 | B77: Coincident Weather Adjusted System Annual Maximum Demand 10% POE | C77: MW | K77: 0 | M77: 1837.106768 | N77: 1699.713149 | O77: 1646.063253
A78: DOPSD0106 | B78: Coincident Weather Adjusted System Annual Maximum Demand 50% POE | C78: MW | K78: 0 | M78: 1644.640145 | N78: 1521.640728 | O78: 1473.611526
B80: 3.4.3.2 - Annual system maximum demand characteristics at the transmission connection point – MW measure
A81: DOPSD0107 | B81: Non-coincident Summated Raw System Annual Maximum Demand | C81: MW | D81: 1652.9825 | E81: 1745.2955 | F81: 1866.193164 | G81: 1937.704264 | H81: 1838.472352 | I81: 1859.94361 | J81: 1881.414868 | K81: 1942.955156 | L81: 1947.375305 | M81: 1951.795454 | N81: 1942.071721 | O81: 1942.103588
A82: DOPSD0108 | B82: Non–coincident Summated Weather Adjusted System Annual Maximum Demand 10% POE | C82: MW | K82: 0 | M82: 1979.888736 | N82: 2221.029656 | O82: 2085.832898
A83: DOPSD0109 | B83: Non–coincident Summated Weather Adjusted System Annual Maximum Demand 50% POE | C83: MW | K83: 0 | M83: 1797.338007 | N83: 2035.165309 | O83: 1919.917435
A84: DOPSD0110 | B84: Coincident Raw System Annual Maximum Demand | C84: MW | D84: 1487.5545 | E84: 1570.629 | F84: 1744.022824 | G84: 1845.744944 | H84: 1741.144796 | I84: 1755.977996 | J84: 1770.811196 | K84: 1875.120232 | L84: 1873.243646 | M84: 1871.36706 | N84: 1669.974104 | O84: 1732.0895
A85: DOPSD0111 | B85: Coincident Weather Adjusted System Annual Maximum Demand 10% POE | C85: MW | K85: 0 | M85: 1892.415693 | N85: 1993.348494 | O85: 1800.086466
A86: DOPSD0112 | B86: Coincident Weather Adjusted System Annual Maximum Demand 50% POE | C86: MW | K86: 0 | M86: 1694.154566 | N86: 1784.513026 | O86: 1611.498318
B88: 3.4.3.3 - Annual system maximum demand characteristics at the zone substation level – MVA measure
A89: DOPSD0201 | B89: Non–coincident Summated Raw System Annual Maximum Demand | C89: MVA | D89: 1759.501 | E89: 1835.842 | F89: 1928.605985 | G89: 1955.754031 | H89: 1840.968465 | I89: 1871.003804 | J89: 1901.039143 | K89: 1986.450204 | L89: 1938.81787 | M89: 1891.185536 | N89: 1738.776479 | O89: 1920.631809
A90: DOPSD0202 | B90: Non–coincident Summated Weather Adjusted System Annual Maximum Demand 10% POE | C90: MVA | K90: 0 | L90: 1004.067082 | M90: 2008.134165 | N90: 2020.945054 | O90: 2153.659343
A91: DOPSD0203 | B91: Non–coincident Summated Weather Adjusted System Annual Maximum Demand 50% POE | C91: MVA | K91: 0 | M91: 1821.271817 | N91: 1839.291875 | O91: 1953.74609
A92: DOPSD0204 | B92: Coincident Raw System Annual Maximum Demand | C92: MVA | D92: 1474.365 | E92: 1538.3345 | F92: 1653.187803 | G92: 1663.791703 | H92: 1637.304257 | I92: 1599.228242 | J92: 1561.152227 | K92: 1711.064181 | L92: 1712.558964 | M92: 1714.053748 | N92: 1464.580519 | O92: 1599.67786
A93: DOPSD0205 | B93: Coincident Weather Adjusted System Annual Maximum Demand 10% POE | C93: MVA | K93: 0 | M93: 1862.921847 | N93: 1723.527114 | O93: 1662.476717
A94: DOPSD0206 | B94: Coincident Weather Adjusted System Annual Maximum Demand 50% POE | C94: MVA | K94: 0 | M94: 1656.474657 | N94: 1542.959796 | O94: 1488.305414
B96: 3.4.3.4 - Annual system maximum demand characteristics at the transmission connection point – MVA measure
A97: DOPSD0207 | B97: Non–coincident Summated Raw System Annual Maximum Demand | C97: MVA | D97: 1711.1625 | E97: 1806.7245 | F97: 1947.681449 | G97: 2003.588753 | H97: 1919.511828 | I97: 1936.182237 | J97: 1952.852647 | K97: 2021.771508 | L97: 2008.266185 | M97: 1994.760861 | N97: 1946.468117 | O97: 1987.826511
A98: DOPSD0208 | B98: Non–coincident Summated Weather Adjusted System Annual Maximum Demand 10% POE | C98: MVA | K98: 0 | M98: 2023.472568 | N98: 2226.057547 | O98: 2134.939639
A99: DOPSD0209 | B99: Non–coincident Summated Weather Adjusted System Annual Maximum Demand 50% POE | C99: MVA | K99: 0 | M99: 1836.9033 | N99: 2039.772447 | O99: 1965.11803
A100: DOPSD0210 | B100: Coincident Raw System Annual Maximum Demand | C100: MVA | D100: 1539.9115 | E100: 1625.91 | F100: 1823.236556 | G100: 1931.160546 | H100: 1826.209101 | I100: 1820.695721 | J100: 1815.182341 | K100: 1941.703775 | L100: 1927.311266 | M100: 1912.918757 | N100: 1712.553574 | O100: 1781.76749
A101: DOPSD0211 | B101: Coincident Weather Adjusted System Annual Maximum Demand 10% POE | C101: MVA | K101: 0 | M101: 1934.073957 | N101: 2044.173069 | O101: 1851.714674
A102: DOPSD0212 | B102: Coincident Weather Adjusted System Annual Maximum Demand 50% POE | C102: MVA | K102: 0 | M102: 1731.448454 | N102: 1830.012904 | O102: 1657.717637
B104: 3.4.3.5 - Power factor conversion between MVA and MW
A105: DOPSD0301 | B105: Average overall network power factor conversion between MVA and MW | C105: Factor | D105: 0.966 | E105: 0.966 | F105: 0.966 | G105: 0.966 | H105: 0.968 | I105: 0.967 | J105: 0.966 | K105: 0.965708702 | L105: 0.9719935404 | M105: 0.9782783789 | N105: 0.9799493061 | O105: 0.9721187022
A106: DOPSD0302 | B106: Average power factor conversion for low voltage distribution lines | C106: Factor | D106: 0 | E106: 0 | F106: 0 | G106: 0 | H106: 0 | I106: 0 | J106: 0 | K106: 0 | L106: 0.45 | M106: 0.9 | N106: 0.9 | O106: 0.9
A107: DOPSD0303 | B107: Average power factor conversion for 3.3 kV lines | C107: Factor | D107: 0 | E107: 0 | F107: 0 | K107: 0 | M107: 0 | N107: 0 | O107: 0
A108: DOPSD0304 | B108: Average power factor conversion for 6.6 kV lines | C108: Factor | D108: 0 | E108: 0 | F108: 0 | K108: 0 | M108: 0.9844270034 | N108: 0.9891399947 | O108: 0.993878
A109: DOPSD0305 | B109: Average power factor conversion for 7.6 kV lines | C109: Factor | D109: 0 | E109: 0 | F109: 0 | K109: 0 | M109: 0 | N109: 0 | O109: 0
A110: DOPSD0306 | B110: Average power factor conversion for 11 kV lines | C110: Factor | D110: 0 | E110: 0 | F110: 0 | G110: 0 | H110: 0 | I110: 0 | J110: 0 | K110: 0 | L110: 0.425 | M110: 0.85 | N110: 0.8999999917 | O110: 0.9
A111: DOPSD0307 | B111: Average power factor conversion for SWER lines | C111: Factor | D111: 0.988 | E111: 0.988 | F111: 0.988 | G111: 0.988 | H111: 0.988 | I111: 0.988 | J111: 0.988 | K111: 0.9828290043 | L111: 0.9881302743 | M111: 0.9934315444 | N111: 0.992992626 | O111: 0.99
A112: DOPSD0308 | B112: Average power factor conversion for 22 kV lines | C112: Factor | D112: 0.9155 | E112: 0.9265 | F112: 0.93 | G112: 0.931 | H112: 0.966 | I112: 0.958 | J112: 0.95 | K112: 0.949151161 | L112: 0.9572841995 | M112: 0.9654172379 | N112: 0.9672016786 | O112: 0.970691341
A113: DOPSD0309 | B113: Average power factor conversion for 33 kV lines | C113: Factor | D113: 0 | E113: 0 | F113: 0 | G113: 0 | H113: 0 | I113: 0 | J113: 0 | K113: 0 | L113: 0 | M113: 0 | N113: 0 | O113: 0
A114: DOPSD0310 | B114: Average power factor conversion for 44 kV lines | C114: Factor | D114: 0 | E114: 0 | F114: 0 | K114: 0 | M114: 0 | N114: 0 | O114: 0
A115: DOPSD0311 | B115: Average power factor conversion for 66 kV lines | C115: Factor | D115: 0.929 | E115: 0.94 | F115: 0.944 | G115: 0.944 | H115: 0.98 | I115: 0.972 | J115: 0.964 | K115: 0.9463372325 | L115: 0.9653453394 | M115: 0.9843534464 | N115: 0.9857889685 | O115: 0.951828497
A116: DOPSD0312 | B116: Average power factor conversion for 110 kV lines | C116: Factor | D116: 0 | E116: 0 | F116: 0 | K116: 0 | M116: 0 | N116: 0 | O116: 0
A117: DOPSD0313 | B117: Average power factor conversion for 132 kV lines | C117: Factor | D117: 0 | E117: 0 | F117: 0 | G117: 0 | H117: 0 | I117: 0 | J117: 0 | K117: 0 | L117: 0 | M117: 0 | N117: 0 | O117: 0
A118: DOPSD0314 | B118: Average power factor conversion for 220 kV lines | C118: Factor | D118: 0 | E118: 0 | F118: 0 | K118: 0 | M118: 0 | N118: 0 | O118: 0
B120: 3.4.3.6 - Demand supplied (for customers charged on this basis) – MW measure
A121: DOPSD0401 | B121: Summated Chargeable Contracted Maximum Demand | C121: MW | D121: 0 | E121: 0 | F121: 0 | G121: 0 | H121: 0 | I121: 0 | J121: 0 | K121: 0 | L121: 0 | M121: 0 | N121: 0 | O121: 0
A122: DOPSD0402 | B122: Summated Chargeable Measured Maximum Demand | C122: MW | D122: 0 | E122: 0 | F122: 0 | G122: 0 | H122: 0 | I122: 0 | J122: 0 | K122: 0 | L122: 0 | M122: 0 | N122: 0 | O122: 2647.06485
B124: 3.4.3.7 - Demand supplied (for customers charged on this basis) – MVA measure
A125: DOPSD0403 | B125: Summated Chargeable Contracted Maximum Demand | C125: MVA | D125: 731.9235 | E125: 777.6215 | F125: 838.1725 | G125: 874.967 | H125: 887.55 | I125: 931.6755 | J125: 975.801 | K125: 1007.17691 | L125: 1063.086447 | M125: 1118.995983 | N125: 1131.442818 | O125: 1159.22721
A126: DOPSD0404 | B126: Summated Chargeable Measured Maximum Demand | C126: MVA | D126: 411.3745 | E126: 437.059 | F126: 471.0915 | G126: 491.772 | H126: 498.844 | I126: 525.675 | J126: 552.506 | K126: 498.95269 | L126: 524.4361738 | M126: 549.9196575 | N126: 544.3726367 | O126: 543.10583

Sheet 3.5 Physical assets
B1: =INDEX(dms_Worksheet_List,MATCH(dms_Model,dms_Model_List)) -> REALLOCATED HISTORICAL ECONOMIC BENCHMARKING
B2: =INDEX(dms_TradingNameFull_List,MATCH(dms_TradingName,dms_TradingName_List)) -> AusNet Electricity Services Pty Ltd
B3: =dms_Header_Span -> 2006-07 to 2018-19
B4: 3.5 PHYSICAL ASSETS
B6: There are THREE tables on this worksheet. Each table has been grouped (and sub-grouped) for ease of navigation. See the Instructions sheet on how to group or ungroup tables.
B8: 3.5.1 - NETWORK CAPACITIES
D9: VOLUMES (0's)
D10: =dms_y1 -> 2006-07 | E10: =dms_y2 -> 2007-08 | F10: =dms_y3 -> 2008-09 | G10: =dms_y4 -> 2009-10 | H10: =dms_y5 -> 2010-11 | I10: =dms_y6 -> 2011-12 | J10: =dms_y7 -> 2012-13 | K10: =dms_y8 -> 2013-14 | L10: =dms_y9 -> 2014-15 | M10: =dms_y10 -> 2015-16 | N10: =dms_y11 -> 2016-17 | O10: =dms_y12 -> 2017-18
B11: Circuit length
B12: 3.5.1.1 - Overhead network length of circuit at each voltage
A13: DPA0101 | B13: Overhead low voltage distribution | C13: km | D13: 6692.8845 | E13: 6680.167 | F13: 6747.128 | G13: 6803.7885 | H13: 6780.0985 | I13: 6752.0155 | J13: 6727.676 | K13: 6702.844635 | L13: 6681.207506 | M13: 6666.494871 | N13: 6652.138889 | O13: 6634.158889
A14: DPA0102 | B14: Overhead 2.2 kV | C14: km | D14: 0 | E14: 0 | F14: 0 | G14: 0 | H14: 0 | I14: 0 | J14: 0 | K14: 0 | L14: 0 | M14: 0 | N14: 0 | O14: 0
A15: DPA0103 | B15: Overhead 6.6kv | C15: km | D15: 68.517 | E15: 68.7095 | F15: 68.394 | G15: 67.96 | H15: 67.4545 | I15: 66.9605 | J15: 66.9475 | K15: 66.8464205 | L15: 66.486254 | M15: 60.1638335 | N15: 53.3511155 | O15: 51.8061155
A16: DPA0104 | B16: Overhead 7.6 kV | C16: km | D16: 0 | E16: 0 | F16: 0 | G16: 0 | H16: 0 | I16: 0 | J16: 0 | K16: 0 | L16: 0 | M16: 0 | N16: 0 | O16: 0
A17: DPA0105 | B17: Overhead 11 kV | C17: km | D17: 9.5515 | E17: 9.5515 | F17: 8.2885 | G17: 7.016 | H17: 6.385 | I17: 5.66 | J17: 4.1195 | K17: 5.506271597 | L17: 8.339968597 | M17: 7.065197 | N17: 4.5108685 | O17: 4.6158685
A18: DPA0106 | B18: Overhead SWER | C18: km | D18: 6398.711 | E18: 6415.0785 | F18: 6419.9525 | G18: 6425.428 | H18: 6422.443 | I18: 6424.3825 | J18: 6432.578 | K18: 6449.850452 | L18: 6462.087247 | M18: 6461.457795 | N18: 6463.629862 | O18: 6464.224863
A19: DPA0107 | B19: Overhead 22 kV | C19: km | D19: 22207.815 | E19: 22279.2855 | F19: 22361.579 | G19: 22424.8545 | H19: 22447.909 | I19: 22558.391 | J19: 22666.5855 | K19: 22686.26858 | L19: 22682.11881 | M19: 22643.91872 | N19: 22613.04631 | O19: 22576.93631
A20: DPA0108 | B20: Overhead 33 kV | C20: km | D20: 0 | E20: 0 | F20: 0 | G20: 0 | H20: 0 | I20: 0 | J20: 0 | K20: 0 | L20: 0 | M20: 0.035 | N20: 0.20596 | O20: 0.17096
A21: DPA0109 | B21: Overhead 44 kV | C21: km | D21: 0 | E21: 0 | F21: 0 | G21: 0 | H21: 0 | I21: 0 | J21: 0 | K21: 0 | L21: 0 | M21: 0 | N21: 0 | O21: 0
A22: DPA0110 | B22: Overhead 66 kV | C22: km | D22: 2305.9225 | E22: 2319.5145 | F22: 2354.226 | G22: 2408.361 | H22: 2436.038 | I22: 2454.886 | J22: 2451.789 | K22: 2511.958636 | L22: 2554.842293 | M22: 2570.626516 | N22: 2597.522048 | O22: 2537.364688
A23: DPA0111 | B23: Overhead 110kV | C23: km | D23: 0 | E23: 0 | F23: 0 | G23: 0 | H23: 0 | I23: 0 | J23: 0 | K23: 0 | L23: 0 | M23: 0 | N23: 0 | O23: 0
A24: DPA0112 | B24: Overhead 132 kV | C24: km | D24: 0 | E24: 0 | F24: 0 | G24: 0 | H24: 0 | I24: 0 | J24: 0 | K24: 0 | L24: 0 | M24: 0 | N24: 0 | O24: 0
A25: DPA0113 | B25: Overhead 220kV | C25: km | D25: 0 | E25: 0 | F25: 0 | G25: 0 | H25: 0 | I25: 0 | J25: 0 | K25: 0 | L25: 0 | M25: 0 | N25: 0 | O25: 0
A26: DPA0114 | B26: Other | C26: km | D26: 0 | E26: 0 | F26: 0 | G26: 0 | H26: 0 | I26: 0 | J26: 0 | K26: 0 | L26: 0 | M26: 0 | N26: 0 | O26: 0
A27: DPA01 | B27: Total overhead circuit km | C27: km | D27: =SUM(D13:D26) -> 37683.4015 | E27: =SUM(E13:E26) -> 37772.3065 | F27: 37959.568 | G27: 38137.408 | H27: 38160.328 | I27: 38262.2955 | J27: 38349.6955 | K27: 38423.275 | L27: 38455.08208 | M27: 38409.76194 | N27: 38384.40505 | O27: 38269.27769
B28: 3.5.1.2 - Underground network circuit length at each voltage
A29: DPA0201 | B29: Underground low voltage distribution | C29: km | D29: 2707.5215 | E29: 2853.0815 | F29: 3035.3305 | G29: 3207.124 | H29: 3371.569 | I29: 3555.883 | J29: 3692.739 | K29: 3815.448 | L29: 3953.980021 | M29: 4122.22697 | N29: 4311.604255 | O29: 4494.330806
A30: DPA0202 | B30: Underground 5 kV | C30: km | D30: 0 | E30: 0 | F30: 0 | G30: 0 | H30: 0 | I30: 0 | J30: 0 | K30: 0 | L30: 0 | M30: 0 | N30: 0 | O30: 0
A31: DPA0203 | B31: Underground 6.6 Kv | C31: km | D31: 1.9475 | E31: 1.9475 | F31: 1.8635 | G31: 1.841 | H31: 1.8755 | I31: 1.91 | J31: 1.914 | K31: 2.355 | L31: 2.780813 | M31: 7.3516425 | N31: 12.677823 | O31: 14.1909935
A32: DPA0204 | B32: Underground 7.6 kV | C32: km | D32: 0 | E32: 0 | F32: 0 | G32: 0 | H32: 0 | I32: 0 | J32: 0 | K32: 0 | L32: 0 | M32: 0 | N32: 0 | O32: 0
A33: DPA0205 | B33: Underground 11 kV | C33: km | D33: 1.7085 | E33: 1.7085 | F33: 1.12 | G33: 0.585 | H33: 0.8535 | I33: 1.122 | J33: 1.1005 | K33: 1.30939711 | L33: 1.638707611 | M33: 1.846486 | N33: 1.6844125 | O33: 1.206737
A34: DPA0206 | B34: Underground SWER | C34: km | D34: 19.891 | E34: 20.5845 | F34: 21.175 | G34: 21.792 | H34: 22.176 | I34: 22.7005 | J34: 23.159 | K34: 23.926 | L34: 24.679939 | M34: 24.988412 | N34: 25.53458 | O34: 28.372107
A35: DPA0207 | B35: Underground 22 kV | C35: km | D35: 1253.19 | E35: 1319.918 | F35: 1388.3465 | G35: 1467.583 | H35: 1530.4805 | I35: 1609.814 | J35: 1686.13 | K35: 1761.1555 | L35: 1852.634229 | M35: 1949.153872 | N35: 2058.403409 | O35: 2192.334266
A36: DPA0208 | B36: Underground 33 kV | C36: km | D36: 0 | E36: 0 | F36: 0 | G36: 0 | H36: 0 | I36: 0 | J36: 0 | K36: 0 | L36: 0 | M36: 0.0265 | N36: 0.174066 | O36: 0.147566
A37: DPA0209 | B37: Underground 66 kV | C37: km | D37: 3.8215 | E37: 3.8215 | F37: 3.7835 | G37: 3.79 | H37: 4.0405 | I37: 4.306 | J37: 7.291 | K37: 11.0175 | L37: 11.3290995 | M37: 10.899199 | N37: 10.891578 | O37: 11.1569785
A38: DPA0210 | B38: Underground 110 kV | C38: km | D38: 0 | E38: 0 | F38: 0 | G38: 0 | H38: 0 | I38: 0 | J38: 0 | K38: 0 | L38: 0 | M38: 0 | N38: 0 | O38: 0
A39: DPA0211 | B39: Underground 132 kV | C39: km | D39: 0 | E39: 0 | F39: 0 | G39: 0 | H39: 0 | I39: 0 | J39: 0 | K39: 0 | L39: 0 | M39: 0 | N39: 0 | O39: 0
A40: DPA0212 | B40: Other | C40: km | D40: 0 | E40: 0 | F40: 0 | G40: 0 | H40: 0 | I40: 0 | J40: 0 | K40: 0 | L40: 0 | M40: 0 | N40: 0 | O40: 0
A41: DPA02 | B41: Total underground circuit km | C41: km | D41: =SUM(D29:D40) -> 3988.08 | E41: =SUM(E29:E40) -> 4201.0615 | F41: 4451.619 | G41: 4702.715 | H41: 4930.995 | I41: 5195.7355 | J41: 5412.3335 | K41: 5615.211397 | L41: 5847.04281 | M41: 6116.493082 | N41: 6420.970124 | O41: 6741.739455
B43: Circuit Capacity MVA
B44: 3.5.1.3 - Estimated overhead network weighted average MVA capacity by voltage class
A45: DPA0301 | B45: Overhead low voltage distribution | C45: MVA | D45: 0.056 | E45: 0.056 | F45: 0.056 | G45: 0.056 | H45: 0.056 | I45: 0.056 | J45: 0.056 | K45: 0.05476079667 | L45: 0.08947706428 | M45: 0.1257106458 | N45: 0.1241404107 | O45: 0.1311460325
A46: DPA0302 | B46: Overhead 6.6 kV | C46: MVA | D46: 2.205 | E46: 2.205 | F46: 2.205 | G46: 2.205 | H46: 2.205 | I46: 2.205 | J46: 2.205 | K46: 2.098578921 | L46: 2.325099854 | M46: 2.564599727 | N46: 2.492108414 | O46: 2.54152962
A47: DPA0303 | B47: Overhead 7.6 kV | C47: MVA | D47: 0 | E47: 0 | F47: 0 | G47: 0 | H47: 0 | I47: 0 | J47: 0 | K47: 0 | L47: 0 | M47: 0 | N47: 0 | O47: 0
A48: DPA0304 | B48: Overhead 11 kV | C48: MVA | D48: 1.6 | E48: 1.6 | F48: 1.6 | G48: 1.6 | H48: 1.6 | I48: 1.6 | J48: 1.6 | K48: 1.600207473 | L48: 2.514937617 | M48: 4.715508168 | N48: 6.001556048 | O48: 6.000778024
A49: DPA0305 | B49: Overhead SWER | C49: MVA | D49: 0.353 | E49: 0.353 | F49: 0.353 | G49: 0.353 | H49: 0.353 | I49: 0.353 | J49: 0.353 | K49: 0.345040978 | L49: 0.3656933931 | M49: 0.3964750561 | N49: 0.3989331421 | O49: 0.3746105012
A50: DPA0306 | B50: Overhead 22 kV | C50: MVA | D50: 3.306 | E50: 3.306 | F50: 3.306 | G50: 3.306 | H50: 3.306 | I50: 3.306 | J50: 3.306 | K50: 3.316032547 | L50: 3.370503149 | M50: 3.441108671 | N50: 3.4607304 | O50: 3.987092332
A51: DPA0307 | B51: Overhead 33 kV | C51: MVA | D51: 0 | E51: 0 | F51: 0 | G51: 0 | H51: 0 | I51: 0 | J51: 0 | K51: 0 | L51: 0 | M51: 0.02857883832 | N51: 0.02857883832 | O51: 0.715
A52: DPA0308 | B52: Overhead 44 kV | C52: MVA | D52: 0 | E52: 0 | F52: 0 | G52: 0 | H52: 0 | I52: 0 | J52: 0 | K52: 0 | L52: 0 | M52: 0 | N52: 0 | O52: 0
A53: DPA0309 | B53: Overhead 66 kV | C53: MVA | D53: 33.325 | E53: 33.325 | F53: 33.325 | G53: 33.325 | H53: 33.325 | I53: 33.325 | J53: 33.325 | K53: 34.79234244 | L53: 37.87607179 | M53: 39.64935977 | N53: 40.1243757 | O53: 40.09124528
A54: DPA0310 | B54: Overhead 110 kV | C54: MVA | D54: 0 | E54: 0 | F54: 0 | G54: 0 | H54: 0 | I54: 0 | J54: 0 | K54: 0 | L54: 0 | M54: 0 | N54: 0 | O54: 0
A55: DPA0311 | B55: Overhead 132 kV | C55: MVA | D55: 0 | E55: 0 | F55: 0 | G55: 0 | H55: 0 | I55: 0 | J55: 0 | K55: 0 | L55: 0 | M55: 0 | N55: 0 | O55: 0
A56: DPA0312 | B56: Overhead 220 kV | C56: MVA | D56: 0 | E56: 0 | F56: 0 | G56: 0 | H56: 0 | I56: 0 | J56: 0 | K56: 0 | L56: 0 | M56: 0 | N56: 0 | O56: 0
A57: DPA0313 | B57: Other | C57: MVA | D57: 0 | E57: 0 | F57: 0 | G57: 0 | H57: 0 | I57: 0 | J57: 0 | K57: 0 | L57: 0 | M57: 0 | N57: 0 | O57: 0
B58: 3.5.1.4 - Estimated underground network weighted average MVA capacity by voltage class
A59: DPA0401 | B59: Underground low voltage distribution | C59: MVA | D59: 0.287 | E59: 0.287 | F59: 0.287 | G59: 0.287 | H59: 0.287 | I59: 0.287 | J59: 0.287 | K59: 0.287 | L59: 0.2461411805 | M59: 0.2006254087 | N59: 0.1927011232 | O59: 0.1847168951
A60: DPA0402 | B60: Underground 5 kV | C60: MVA | D60: 0 | E60: 0 | F60: 0 | G60: 0 | H60: 0 | I60: 0 | J60: 0 | K60: 0 | L60: 0 | M60: 0 | N60: 0 | O60: 0
A61: DPA0403 | B61: Underground 6.6 kV | C61: MVA | D61: 4.683 | E61: 4.683 | F61: 4.683 | G61: 4.683 | H61: 4.683 | I61: 4.683 | J61: 4.683 | K61: 4.478 | L61: 3.100624047 | M61: 2.653857322 | N61: 3.392820178 | O61: 3.448086903
A62: DPA0404 | B62: Underground 7.6 kV | C62: MVA | D62: 0 | E62: 0 | F62: 0 | G62: 0 | H62: 0 | I62: 0 | J62: 0 | K62: 0 | L62: 0 | M62: 0 | N62: 0 | O62: 0
A63: DPA0405 | B63: Underground 11 kV | C63: MVA | D63: 8.322 | E63: 8.322 | F63: 8.322 | G63: 8.322 | H63: 8.322 | I63: 8.322 | J63: 8.322 | K63: 8.3195 | L63: 5.250423498 | M63: 4.373878552 | N63: 6.282733078 | O63: 6.000778024
A64: DPA0406 | B64: Underground SWER | C64: MVA | D64: 0 | E64: 0 | F64: 0 | G64: 0 | H64: 0 | I64: 0 | J64: 0 | K64: 0.517 | L64: 1.333533575 | M64: 1.632461625 | N64: 1.631481289 | O64: 1.53055324
A65: DPA0407 | B65: Underground 12.7 kV | C65: MVA | D65: 5.293 | E65: 5.293 | F65: 5.293 | G65: 5.293 | H65: 5.293 | I65: 5.293 | J65: 5.293 | K65: 2.6465 | L65: 0 | M65: 0 | N65: 0 | O65: 0
A66: DPA0408 | B66: Underground 22 kV | C66: MVA | D66: 11.839 | E66: 11.839 | F66: 11.839 | G66: 11.839 | H66: 11.839 | I66: 11.839 | J66: 11.839 | K66: 11.852 | L66: 11.43452813 | M66: 10.99659529 | N66: 10.99699304 | O66: 11.03742587
A67: DPA0409 | B67: Underground 33 kV | C67: MVA | D67: 0 | E67: 0 | F67: 0 | G67: 0 | H67: 0 | I67: 0 | J67: 0 | K67: 0 | L67: 0 | M67: 0.02857883832 | N67: 0.05715767665 | O67: 0.7435788383
A68: DPA0410 | B68: Underground 66 kV | C68: MVA | D68: 53.544 | E68: 53.544 | F68: 53.544 | G68: 53.544 | H68: 53.544 | I68: 53.544 | J68: 53.544 | K68: 53.544 | L68: 54.41736255 | M68: 55.29086255 | N68: 55.27472542 | O68: 55.22922542
A69: DPA0411 | B69: Underground 110 kV | C69: MVA | D69: 0 | E69: 0 | F69: 0 | G69: 0 | H69: 0 | I69: 0 | J69: 0 | K69: 0 | L69: 0 | M69: 0 | N69: 0 | O69: 0
A70: DPA0412 | B70: Underground 132 kV | C70: MVA | D70: 0 | E70: 0 | F70: 0 | G70: 0 | H70: 0 | I70: 0 | J70: 0 | K70: 0 | L70: 0 | M70: 0 | N70: 0 | O70: 0
A71: DPA0413 | B71: Other | C71: MVA | D71: 0 | E71: 0 | F71: 0 | G71: 0 | H71: 0 | I71: 0 | J71: 0 | K71: 0 | L71: 0 | M71: 0 | N71: 0 | O71: 0
B75: 3.5.2 - TRANSFORMER CAPACITIES
D76: VOLUMES (0's)
D77: =dms_y1 -> 2006-07 | E77: =dms_y2 -> 2007-08 | F77: =dms_y3 -> 2008-09 | G77: =dms_y4 -> 2009-10 | H77: =dms_y5 -> 2010-11 | I77: =dms_y6 -> 2011-12 | J77: =dms_y7 -> 2012-13 | K77: =dms_y8 -> 2013-14 | L77: =dms_y9 -> 2014-15 | M77: =dms_y10 -> 2015-16 | N77: =dms_y11 -> 2016-17 | O77: =dms_y12 -> 2017-18
B78: Distribution transformer total installed capacity
A79: DPA0501 | B79: Distribution transformer capacity owned by utility | C79: MVA | D79: 4115.9055 | E79: 4322.019 | F79: 4655.1135 | G79: 4844.4815 | H79: 4881.6205 | I79: 5039.801 | J79: 5085.895 | K79: 5198.109 | L79: 5254.8585 | M79: 5363.337 | N79: 5507.9565 | O79: 5684.0265
A80: DPA0502 | B80: Distribution transformer capacity owned by High Voltage Customers | C80: MVA | D80: 289.397 | E80: 293.539 | F80: 296.847 | G80: 308.9675 | H80: 324.2795 | I80: 325.7985 | J80: 327.807 | K80: 333.6045 | L80: 356.7195 | M80: 371.0246667 | N80: 364.9158333 | O80: 362.2041067
A81: DPA0503 | B81: Cold spare capacity included in DPA0501 | C81: MVA | D81: 59.307 | E81: 59.307 | F81: 54.941 | G81: 58.5875 | H81: 60.03 | I81: 53.672 | J81: 62.949 | K81: 71.419 | L81: 72.8905 | M81: 74.724 | N81: 70.9515 | O81: 65.157
B82: Zone substation transformer capacity
A83: DPA0601 | B83: Total installed capacity for first step transformation where there are two steps to reach distribution voltage | C83: MVA | D83: 0 | E83: 0 | F83: 0 | G83: 0 | H83: 0 | I83: 0 | J83: 0 | K83: 0 | L83: 0 | M83: 0 | N83: 0 | O83: 0
A84: DPA0602 | B84: Total installed capacity for second step transformation where there are two steps to reach distribution voltage | C84: MVA | D84: 0 | E84: 0 | F84: 0 | G84: 0 | H84: 0 | I84: 0 | J84: 0 | K84: 0 | L84: 0 | M84: 0 | N84: 0 | O84: 0
A85: DPA0603 | B85: Total zone substation transformer capacity where there is only a single step transformation to reach distribution voltage | C85: MVA | D85: 2707.25 | E85: 2765.25 | F85: 2878.5 | G85: 3035.25 | H85: 3117.75 | I85: 3160.75 | J85: 3246.5 | K85: 3245.375 | L85: 3294.75 | M85: 3393 | N85: 3411.25 | O85: 3424.5
A86: DPA0604 | B86: Total zone substation transformer capacity | C86: MVA | D86: 2719.75 | E86: 2777.75 | F86: 2891 | G86: 3047.75 | H86: 3146.75 | I86: 3206.25 | J86: 3292 | K86: 3274.375 | L86: 3329.75 | M86: 3467 | N86: 3501.75 | O86: 3515
A87: DPA0605 | B87: Cold spare capacity of zone substation transformers included in DPA0604 | C87: MVA | D87: 12.5 | E87: 12.5 | F87: 12.5 | G87: 12.5 | H87: 29 | I87: 45.5 | J87: 45.5 | K87: 29 | L87: 35 | M87: 74 | N87: 90.5 | O87: 90.5
B88: Distribution - other transformer capacity
B89: Distribution other - transformer capacity owned by utility | C89: MVA | L89: 8 | M89: 8 | N89: 8 | O89: 8
B93: 3.5.3 - PUBLIC LIGHTING
D94: VOLUMES (0's)
D95: =dms_y1 -> 2006-07 | E95: =dms_y2 -> 2007-08 | F95: =dms_y3 -> 2008-09 | G95: =dms_y4 -> 2009-10 | H95: =dms_y5 -> 2010-11 | I95: =dms_y6 -> 2011-12 | J95: =dms_y7 -> 2012-13 | K95: =dms_y8 -> 2013-14 | L95: =dms_y9 -> 2014-15 | M95: =dms_y10 -> 2015-16 | N95: =dms_y11 -> 2016-17 | O95: =dms_y12 -> 2017-18
A96: DPA0701 | B96: Public lighting luminaires | C96: Number | D96: 108536 | E96: 113621 | F96: 119635 | G96: 124323 | H96: 128825 | I96: 132689 | J96: 135241.5 | K96: 137710 | L96: 140686 | M96: 144571 | N96: 149083.5 | O96: 153800.5
A97: DPA0702 | B97: Public lighting poles | C97: Number | D97: 54442 | E97: 58898.5 | F97: 64519.75 | G97: 68600.25 | H97: 72107.75 | I97: 75480.75 | J97: 77736.25 | K97: 78223 | L97: 78938 | M97: 82233 | N97: 85408.5 | O97: 88515
A98: DPA0703 | B98: Public lighting columns | C98: Number | D98: 0 | E98: 0 | F98: 0 | G98: 0 | H98: 0 | I98: 0 | J98: 0 | K98: 0 | L98: 0 | M98: 0 | N98: 0 | O98: 0

Sheet 3.6 Quality of service
B1: =INDEX(dms_Worksheet_List,MATCH(dms_Model,dms_Model_List)) -> REALLOCATED HISTORICAL ECONOMIC BENCHMARKING
B2: =INDEX(dms_TradingNameFull_List,MATCH(dms_TradingName,dms_TradingName_List)) -> AusNet Electricity Services Pty Ltd
B3: =dms_Header_Span -> 2006-07 to 2018-19
B4: 3.6 QUALITY OF SERVICE DATA
B6: There are THREE tables on this worksheet. Each table has been grouped (and sub-grouped) for ease of navigation. See the Instructions sheet on how to group or ungroup tables.
B8: 3.6.1 - RELIABILITY
D9: (0's)
C10: Units | D10: =dms_y1 -> 2006-07 | E10: =dms_y2 -> 2007-08 | F10: =dms_y3 -> 2008-09 | G10: =dms_y4 -> 2009-10 | H10: =dms_y5 -> 2010-11 | I10: =dms_y6 -> 2011-12 | J10: =dms_y7 -> 2012-13 | K10: =dms_y8 -> 2013-14 | L10: =dms_y9 -> 2014-15 | M10: =dms_y10 -> 2015-16 | N10: =dms_y11 -> 2016-17 | O10: =dms_y12 -> 2017-18
B11: INCLUSIVE OF MEDs
A12: DQS0101 | B12: Whole of network unplanned SAIDI | C12: minutes/customer | D12: 232.955 | E12: 273.1175 | F12: 333.348 | G12: 272.3375 | H12: 175.3745 | I12: 206.374 | J12: 218.8861601 | K12: 230.1185492 | L12: 228.6605861 | M12: 290.1800586 | N12: 267.5115833 | O12: 164.3734491
A13: DQS0102 | B13: Whole of network unplanned SAIDI excluding excluded outages | C13: minutes/customer | D13: 228.364 | E13: 269.364 | F13: 329.0095 | G13: 268.361 | H13: 175.1105 | I13: 205.5425 | J13: 217.6766246 | K13: 223.8464166 | L13: 221.3030791 | M13: 287.1778208 | N13: 266.0662955 | O13: 162.9080416
A14: DQS0103 | B14: Whole of network unplanned SAIFI | C14: interruptions/customer | D14: 2.7935 | E14: 2.589 | F14: 2.7315 | G14: 2.601 | H14: 2.0715 | I14: 2.0715 | J14: 2.251248245 | K14: 2.388639693 | L14: 2.218678446 | M14: 2.167405803 | N14: 1.940414704 | O14: 1.789644595
A15: DQS0104 | B15: Whole of network unplanned SAIFI excluding excluded outages | C15: interruptions/customer | D15: 2.6955 | E15: 2.495 | F15: 2.55 | G15: 2.446 | H15: 2.0525 | I15: 2.002 | J15: 2.133852516 | K15: 2.236952454 | L15: 2.109181779 | M15: 2.10561188 | N15: 1.900231184 | O15: 1.770133514
B16: EXCLUSIVE OF MEDs
A17: DQS0105 | B17: Whole of network unplanned SAIDI | C17: minutes/customer | D17: 184.7625 | E17: 155.211 | F17: 158.573 | G17: 157.0855 | H17: 137.931 | I17: 136.367 | J17: 130.5721324 | K17: 151.4800574 | L17: 154.38535 | M17: 157.6723978 | N17: 148.3742094 | O17: 145.8547509
A18: DQS0106 | B18: Whole of network unplanned SAIDI excluding excluded outages | C18: minutes/customer | D18: 183.373 | E18: 154.6555 | F18: 155.119 | G18: 153.9965 | H18: 137.667 | I18: 135.5355 | J18: 129.3625968 | K18: 145.2079248 | L18: 147.0278431 | M18: 154.0681823 | N18: 146.3269441 | O18: 144.3893434
A19: DQS0107 | B19: Whole of network unplanned SAIFI | C19: interruptions/customer | D19: 2.45 | E19: 2.1775 | F19: 2.2245 | G19: 2.1755 | H19: 1.9445 | I19: 1.865 | J19: 1.892051833 | K19: 2.003158636 | L19: 1.874401252 | M19: 1.787699372 | N19: 1.652986447 | O19: 1.704611078
A20: DQS0108 | B20: Whole of network unplanned SAIFI excluding excluded outages | C20: interruptions/customer | D20: 2.409 | E20: 2.1415 | F20: 2.07 | G20: 2.047 | H20: 1.9255 | I20: 1.798 | J20: 1.777156104 | K20: 1.851471398 | L20: 1.764904585 | M20: 1.707566036 | N20: 1.594463514 | O20: 1.685099997
B23: 3.6.2 - ENERGY NOT SUPPLIED
D24: (0's)
C25: Unit | D25: =dms_y1 -> 2006-07 | E25: =dms_y2 -> 2007-08 | F25: =dms_y3 -> 2008-09 | G25: =dms_y4 -> 2009-10 | H25: =dms_y5 -> 2010-11 | I25: =dms_y6 -> 2011-12 | J25: =dms_y7 -> 2012-13 | K25: =dms_y8 -> 2013-14 | L25: =dms_y9 -> 2014-15 | M25: =dms_y10 -> 2015-16 | N25: =dms_y11 -> 2016-17 | O25: =dms_y12 -> 2017-18
A26: DQS0201 | B26: Energy Not Supplied (planned) | C26: GWh | D26: 1.164 | E26: 1.112 | F26: 0.7895 | G26: 0.7895 | H26: 1.3375 | I26: 2.2905 | J26: 3.332102149 | K26: 3.397367309 | L26: 2.875372392 | M26: 2.753543154 | N26: 2.870312853 | O26: 3.314814607
A27: DQS0202 | B27: Energy Not Supplied (unplanned) | C27: GWh | D27: 2.788 | E27: 3.3585 | F27: 4.0955 | G27: 3.394 | H27: 2.3655 | I27: 2.7995 | J27: 2.947551617 | K27: 2.962688295 | L27: 2.471731404 | M27: 3.318184616 | N27: 3.461696898 | O27: 2.134528819
A28: DQS02 | B28: Total | D28: =SUM(D26:D27) -> 3.952 | E28: =SUM(E26:E27) -> 4.4705 | F28: 4.885 | G28: 4.1835 | H28: 3.703 | I28: 5.09 | J28: 6.279653766 | K28: 6.360055604 | L28: 5.347103796 | M28: 6.07172777 | N28: 6.33200975 | O28: 5.449343426
B30: 3.6.3 - SYSTEM LOSSES
D31: (0's)
C32: Unit | D32: =dms_y1 -> 2006-07 | E32: =dms_y2 -> 2007-08 | F32: =dms_y3 -> 2008-09 | G32: =dms_y4 -> 2009-10 | H32: =dms_y5 -> 2010-11 | I32: =dms_y6 -> 2011-12 | J32: =dms_y7 -> 2012-13 | K32: =dms_y8 -> 2013-14 | L32: =dms_y9 -> 2014-15 | M32: =dms_y10 -> 2015-16 | N32: =dms_y11 -> 2016-17 | O32: =dms_y12 -> 2017-18
A33: DQS03 | B33: System losses | C33: % | D33: 0.09637536729 | E33: 0.08056114234 | F33: 0.06807499572 | G33: 0.07305988184 | H33: 0.07125359488 | I33: 0.07126463335 | J33: 0.06916270187 | K33: 0.05937857723 | L33: 0.0437309567 | M33: 0.04980094751 | N33: 0.05718628425 | O33: 0.05482982587
B35: 3.6.4 - CAPACITY UTILISATION
D36: (0's)
C37: Unit | D37: =dms_y1 -> 2006-07 | E37: =dms_y2 -> 2007-08 | F37: =dms_y3 -> 2008-09 | G37: =dms_y4 -> 2009-10 | H37: =dms_y5 -> 2010-11 | I37: =dms_y6 -> 2011-12 | J37: =dms_y7 -> 2012-13 | K37: =dms_y8 -> 2013-14 | L37: =dms_y9 -> 2014-15 | M37: =dms_y10 -> 2015-16 | N37: =dms_y11 -> 2016-17 | O37: =dms_y12 -> 2017-18
A38: DQS04 | B38: Overall utilisation | C38: % | D38: 0.6468981209 | E38: 0.6607884805 | F38: 0.6799994122 | G38: 0.674131266 | H38: 0.6043603423 | I38: 0.5589954308 | J38: 0.5754984523 | K38: 0.6010501763 | L38: 0.5767273384 | M38: 0.5387564918 | N38: 0.5183966136 | O38: 0.5205417194

Sheet 3.7 Operating environment
B1: =INDEX(dms_Worksheet_List,MATCH(dms_Model,dms_Model_List)) -> REALLOCATED HISTORICAL ECONOMIC BENCHMARKING
B2: =INDEX(dms_TradingNameFull_List,MATCH(dms_TradingName,dms_TradingName_List)) -> AusNet Electricity Services Pty Ltd
B3: =dms_Header_Span -> 2006-07 to 2018-19
B4: 3.7 OPERATING ENVIRONMENT FACTORS
B6: There are THREE tables on this worksheet. Each table has been grouped for ease of navigation. See the Instructions sheet on how to group or ungroup tables.
B8: 3.7.1 - DENSITY FACTORS
D9: (0's)
C10: Units | D10: =dms_y1 -> 2006-07 | E10: =dms_y2 -> 2007-08 | F10: =dms_y3 -> 2008-09 | G10: =dms_y4 -> 2009-10 | H10: =dms_y5 -> 2010-11 | I10: =dms_y6 -> 2011-12 | J10: =dms_y7 -> 2012-13 | K10: =dms_y8 -> 2013-14 | L10: =dms_y9 -> 2014-15 | M10: =dms_y10 -> 2015-16 | N10: =dms_y11 -> 2016-17 | O10: =dms_y12 -> 2017-18
A11: DOEF0101 | B11: Customer density | C11: Customer / km | D11: 17.326 | E11: 17.453 | F11: 17.5125 | G11: 17.52 | H11: 17.5715 | I11: 17.661 | J11: 17.835 | K11: 17.8835 | L11: 18.06178471 | M11: 18.33609626 | N11: 18.6180963 | O11: 18.93447811
A12: DOEF0102 | B12: Energy density | C12: MWh/customer | D12: 12.192 | E12: 12.365 | F12: 12.351 | G12: 12.1925 | H12: 11.952 | I12: 11.506 | J12: 11.1835 | K12: 10.93970095 | L12: 10.87497109 | M12: 10.74344378 | N12: 10.52536246 | O12: 10.32458133
A13: DOEF0103 | B13: Demand density | C13: kVA / customer | D13: 2.8795 | E13: 2.951 | F13: 3.046165277 | G13: 3.058122989 | H13: 2.920547817 | I13: 2.78149531 | J13: 2.770562942 | K13: 2.84471086 | L13: 2.755210298 | M13: 2.632307776 | N13: 2.510064933 | O13: 2.477926738
B15: 3.7.2 - TERRAIN FACTORS
D16: (0's)
C17: Units | D17: =dms_y1 -> 2006-07 | E17: =dms_y2 -> 2007-08 | F17: =dms_y3 -> 2008-09 | G17: =dms_y4 -> 2009-10 | H17: =dms_y5 -> 2010-11 | I17: =dms_y6 -> 2011-12 | J17: =dms_y7 -> 2012-13 | K17: =dms_y8 -> 2013-14 | L17: =dms_y9 -> 2014-15 | M17: =dms_y10 -> 2015-16 | N17: =dms_y11 -> 2016-17 | O17: =dms_y12 -> 2017-18
A18: DOEF0201 | B18: Rural proportion | C18: % | D18: 0.9453787025 | E18: 0.9453787025 | F18: 0.9453787025 | G18: 0.9379415775 | H18: 0.934672755 | I18: 0.9421638125 | J18: 0.9395956248 | K18: 0.9324745195 | L18: 0.9358588681 | M18: 0.9355710573 | N18: 0.9327844964 | O18: 0.9332501287
A19: DOEF0202 | B19: Urban and CBD vegetation maintenance spans | C19: Number of spans | D19: 6528 | E19: 6528 | F19: 6528 | G19: 6670 | H19: 7185 | I19: 8263.5 | J19: 12587.5 | K19: 14248.5 | L19: 10061.5 | M19: 9270.5 | N19: 10570 | O19: 7773
A20: DOEF0203 | B20: Rural vegetation maintenance spans | C20: Number of spans | D20: 45119 | E20: 45119 | F20: 45119 | G20: 47661 | H20: 51978.5 | I20: 55602 | J20: 61921 | K20: 60998 | L20: 59446 | M20: 61040 | N20: 61066 | O20: 59089
A21: DOEF0204 | B21: Total vegetation maintenance spans | C21: Number of spans | D21: 51647 | E21: 51647 | F21: 51647 | G21: 54331 | H21: 59163.5 | I21: 63865.5 | J21: 74508.5 | K21: 75246.5 | L21: 69507.5 | M21: 70310.5 | N21: 71636 | O21: 66862
A22: DOEF0205 | B22: Total number of spans | C22: Number of spans | D22: 314218 | E22: 314218 | F22: 314218 | G22: 314487 | H22: 314935.5 | I22: 315792.5 | J22: 316893 | K22: 317826 | L22: 319220 | M22: 318550.5 | N22: 317691 | O22: 313413.5
A23: DOEF0206 | B23: Average urban and CBD vegetation maintenance span cycle | C23: Years | D23: 2 | E23: 2 | F23: 2 | G23: 2 | H23: 2 | I23: 2 | J23: 1.5 | K23: 1 | L23: 1 | M23: 1 | N23: 1 | O23: 1
A24: DOEF0207 | B24: Average rural vegetation maintenance span cycle | C24: Years | D24: 1 | E24: 1 | F24: 1 | G24: 1 | H24: 1 | I24: 1 | J24: 1 | K24: 1 | L24: 1 | M24: 1 | N24: 1 | O24: 1
A25: DOEF0208 | B25: Average number of trees per urban and CBD vegetation maintenance span | C25: Trees | D25: 4.986212202 | E25: 4.986212202 | F25: 4.986212202 | G25: 4.986212202 | H25: 4.986212202 | I25: 4.986212202 | J25: 4.986212202 | K25: 4.988106101 | L25: 3.42 | M25: 2.647317612 | N25: 5.198543325 | O25: 4.986225713
A26: DOEF0209 | B26: Average number of trees per rural vegetation maintenance span | C26: Trees | D26: 4.986212202 | E26: 4.986212202 | F26: 4.986212202 | G26: 4.986212202 | H26: 4.986212202 | I26: 4.986212202 | J26: 4.986212202 | K26: 4.988106101 | L26: 3.945 | M26: 3.063032567 | N26: 5.2037414 | O26: 5.890708833
A27: DOEF0210 | B27: Average number of defects per urban and CBD vegetation maintenance span | C27: Defects | D27: 0.7138480392 | E27: 0.7138480392 | F27: 0.7138480392 | G27: 0.7691377601 | H27: 0.8407001125 | I27: 0.8531156507 | J27: 0.8220129637 | K27: 0.5182851577 | L27: 0.1422242511 | M27: 0.1014423041 | N27: 0.1503908323 | O27: 0.1471041513
A28: DOEF0211 | B28: Average number of defects per rural vegetation maintenance span | C28: Defects | D28: 0.2991422682 | E28: 0.2991422682 | F28: 0.2991422682 | G28: 0.3359444584 | H28: 0.4172305628 | I28: 0.4982897886 | J28: 0.4349376711 | K28: 0.2464922443 | L28: 0.1132906247 | M28: 0.0696059236 | N28: 0.07427463555 | O28: 0.1010186046
A29: DOEF0212 | B29: Tropical proportion | C29: Spans | D29: 0 | E29: 0 | F29: 0 | G29: 0 | H29: 0 | I29: 0 | J29: 0 | K29: 0 | L29: 0 | M29: 0 | N29: 0 | O29: 0
A30: DOEF0213 | B30: Standard vehicle access | C30: km | D30: 4262.964583 | E30: 4262.964583 | F30: 4262.964583 | G30: 4262.964583 | H30: 4262.964583 | I30: 4262.964583 | J30: 4262.964583 | K30: 4056.406037 | L30: 3655.931125 | M30: 3985.235005 | N30: 4103.387566 | O30: 2196.474942
A31: DOEF0214 | B31: Bushfire risk | C31: Spans | D31: 42540 | E31: 42540 | F31: 42540 | G31: 43947.5 | H31: 47359.5 | I31: 52363 | J31: 56990 | K31: 55917 | L31: 53550.5 | M31: 52559.5 | N31: 52265 | O31: 50562
B33: 3.7.3 - SERVICE AREA FACTORS
D34: (0's)
C35: Units | D35: =dms_y1 -> 2006-07 | E35: =dms_y2 -> 2007-08 | F35: =dms_y3 -> 2008-09 | G35: =dms_y4 -> 2009-10 | H35: =dms_y5 -> 2010-11 | I35: =dms_y6 -> 2011-12 | J35: =dms_y7 -> 2012-13 | K35: =dms_y8 -> 2013-14 | L35: =dms_y9 -> 2014-15 | M35: =dms_y10 -> 2015-16 | N35: =dms_y11 -> 2016-17 | O35: =dms_y12 -> 2017-18
A36: DOEF0301 | B36: Route Line length | C36: km | D36: 35263.5 | E36: 35641 | F36: 36150 | G36: 36653 | H36: 37001.5 | I36: 37464.5 | J36: 37846.5 | K36: 38206.667 | L36: 38523.40439 | M36: 38699.21693 | N36: 38870.28535 | O36: 38988.99126

Sheet NSP Amendments
B1: =CONCATENATE(dms_TradingName," data amendments") -> AusNet (D) data amendments
B2: Amended Table | C2: Comments
